Departments,Entity,Date of Payment,Expense Type,Expense Area,Supplier,Transaction Number,Amount,,
United Kingdom Atomic Energy Authority,United Kingdom Atomic Energy Authority,18/03/2015,MATERIALS & SPARES,FUSION,3L Electrical Ltd,5100317780,27960,,
United Kingdom Atomic Energy Authority,United Kingdom Atomic Energy Authority,10/03/2015,PLANT & EQUIPMENT,FUSION,40-30 Solutions Provider,1900060776,2715.28,CUL14159,
United Kingdom Atomic Energy Authority,United Kingdom Atomic Energy Authority,25/02/2015,PLANT SPARES,FUSION,A D INSTALLATION LTD,5100317163,650,,
United Kingdom Atomic Energy Authority,United Kingdom Atomic Energy Authority,16/03/2015,PLANT SPARES,FUSION,A W CLARKE,5100315114,1002.2,,
United Kingdom Atomic Energy Authority,United Kingdom Atomic Energy Authority,18/03/2015,PLANT SPARES,FUSION,A W CLARKE,5100318791,279.86,,
United Kingdom Atomic Energy Authority,United Kingdom Atomic Energy Authority,18/03/2015,PLANT SPARES,FUSION,A W CLARKE,5100318833,458,,
United Kingdom Atomic Energy Authority,United Kingdom Atomic Energy Authority,18/03/2015,PLANT SPARES,FUSION,A W CLARKE,5100318834,326.6,,
United Kingdom Atomic Energy Authority,United Kingdom Atomic Energy Authority,18/03/2015,PLANT SPARES,FUSION,A W CLARKE,5100318835,2712,,
United Kingdom Atomic Energy Authority,United Kingdom Atomic Energy Authority,26/02/2015,PLANT & EQUIPMENT,FUSION,AALCO LIMITED,5100317834,-207.36,,
United Kingdom Atomic Energy Authority,United Kingdom Atomic Energy Authority,26/02/2015,PLANT & EQUIPMENT,FUSION,AALCO LIMITED,5100317835,207.36,,
United Kingdom Atomic Energy Authority,United Kingdom Atomic Energy Authority,02/03/2015,PLANT & EQUIPMENT,FUSION,AALCO LIMITED,5100317836,51.84,,
United Kingdom Atomic Energy Authority,United Kingdom Atomic Energy Authority,16/03/2015,PLANT & EQUIPMENT,FUSION,AALCO LIMITED,5100318534,525,,
United Kingdom Atomic Energy Authority,United Kingdom Atomic Energy Authority,16/03/2015,SOFTWARE,FUSION,ABB LTD,5100317478,37918,,
United Kingdom Atomic Energy Authority,United Kingdom Atomic Energy Authority,25/02/2015,MATERIALS & SPARES,FUSION,ACAL TECHNOLOGY LTD,5100317712,648,,
United Kingdom Atomic Energy Authority,United Kingdom Atomic Energy Authority,25/03/2015,PROFESSIONAL SERVICES,SUPPORT SERVICES,ACHILLES INFORMATION LTD,5100319151,660,,
United Kingdom Atomic Energy Authority,United Kingdom Atomic Energy Authority,09/03/2015,MATERIALS & SPARES,FUSION,ACRONA ENGINEERING LTD,5100317977,14847.75,,
United Kingdom Atomic Energy Authority,United Kingdom Atomic Energy Authority,09/03/2015,MATERIALS & SPARES,FUSION,ACRONA ENGINEERING LTD,5100317978,374.45,,
United Kingdom Atomic Energy Authority,United Kingdom Atomic Energy Authority,09/03/2015,MATERIALS & SPARES,FUSION,ACRONA ENGINEERING LTD,5100317980,177,,
United Kingdom Atomic Energy Authority,United Kingdom Atomic Energy Authority,16/03/2015,MATERIALS & SPARES,FUSION,ACRONA ENGINEERING LTD,5100317249,3396.37,,
United Kingdom Atomic Energy Authority,United Kingdom Atomic Energy Authority,16/03/2015,MATERIALS & SPARES,FUSION,Aggregate Industries UK Ltd,1900060787,575.16,CUL14170,
United Kingdom Atomic Energy Authority,United Kingdom Atomic Energy Authority,16/03/2015,PLANT & EQUIPMENT,FUSION,AGGREKO UK,5100318260,3800,,
United Kingdom Atomic Energy Authority,United Kingdom Atomic Energy Authority,09/03/2015,MATERIALS & SPARES,FUSION,AGILENT TECHNOLOGIES LDA UL LTD,5100317217,53339.2,,
United Kingdom Atomic Energy Authority,United Kingdom Atomic Energy Authority,16/03/2015,PLANT & EQUIPMENT,FUSION,AIR SEA CONTAINERS LTD,5100318043,624.14,,
United Kingdom Atomic Energy Authority,United Kingdom Atomic Energy Authority,09/03/2015,PLANT & EQUIPMENT,FUSION,AIR SEA CONTAINERS LTD,5100318273,161.2,,
United Kingdom Atomic Energy Authority,United Kingdom Atomic Energy Authority,25/03/2015,MATERIALS & SPARES,FUSION,Alfasoft  AB,5100318907,15975,,
United Kingdom Atomic Energy Authority,United Kingdom Atomic Energy Authority,02/03/2015,CONSUMABLES,FUSION,ALLEGHENY TECHNOLOGIES LTD,5100317722,146.56,,
United Kingdom Atomic Energy Authority,United Kingdom Atomic Energy Authority,25/02/2015,PROFESSIONAL SERVICES,FUSION,ALLIANZ ENGINEERING,5100317162,645,,
United Kingdom Atomic Energy Authority,United Kingdom Atomic Energy Authority,25/02/2015,MATERIALS & SPARES,FUSION,ALPHA ENGINEERING SUPPLIES,5100317502,140.97,,
United Kingdom Atomic Energy Authority,United Kingdom Atomic Energy Authority,04/03/2015,MATERIALS & SPARES,FUSION,ALPHA ENGINEERING SUPPLIES,5100317822,77.7,,
United Kingdom Atomic Energy Authority,United Kingdom Atomic Energy Authority,04/03/2015,MATERIALS & SPARES,FUSION,ALPHA ENGINEERING SUPPLIES,5100317823,174.9,,
United Kingdom Atomic Energy Authority,United Kingdom Atomic Energy Authority,23/03/2015,MATERIALS & SPARES,FUSION,ALPHA ENGINEERING SUPPLIES,5100318847,216.72,,
United Kingdom Atomic Energy Authority,United Kingdom Atomic Energy Authority,25/03/2015,MATERIALS & SPARES,FUSION,ALPHA ENGINEERING SUPPLIES,5100319274,380,,
United Kingdom Atomic Energy Authority,United Kingdom Atomic Energy Authority,02/03/2015,MATERIALS & SPARES,FUSION,ALPHA PACKAGING,5100317907,103.96,,
United Kingdom Atomic Energy Authority,United Kingdom Atomic Energy Authority,11/03/2015,MATERIALS & SPARES,FUSION,ALPHA PACKAGING,5100316489,431.26,,
United Kingdom Atomic Energy Authority,United Kingdom Atomic Energy Authority,02/03/2015,MATERIALS & SPARES,FUSION,ALPHA PACKAGING,5100317911,311.88,,
United Kingdom Atomic Energy Authority,United Kingdom Atomic Energy Authority,09/03/2015,MATERIALS & SPARES,FUSION,ALPHA PACKAGING,5100317984,499.59,,
United Kingdom Atomic Energy Authority,United Kingdom Atomic Energy Authority,23/03/2015,MATERIALS & SPARES,FUSION,ALPHA PACKAGING,5100318865,979.74,,
United Kingdom Atomic Energy Authority,United Kingdom Atomic Energy Authority,25/03/2015,MATERIALS & SPARES,FUSION,ALR SERVICES,5100319200,162.1,,
United Kingdom Atomic Energy Authority,United Kingdom Atomic Energy Authority,04/03/2015,PROFESSIONAL SERVICES,FUSION,AMEC NUCLEAR UK LIMITED,5100317929,2767.5,,
United Kingdom Atomic Energy Authority,United Kingdom Atomic Energy Authority,25/02/2015,MATERIALS & SPARES,FUSION,Amodil Supplies Ltd,5100316198,17056,,
United Kingdom Atomic Energy Authority,United Kingdom Atomic Energy Authority,16/03/2015,MATERIALS & SPARES,FUSION,ANIXTER (UK) LTD,5100318548,845.75,,
United Kingdom Atomic Energy Authority,United Kingdom Atomic Energy Authority,11/03/2015,MATERIALS & SPARES,FUSION,ANIXTER (UK) LTD,5100318553,178.8,,
United Kingdom Atomic Energy Authority,United Kingdom Atomic Energy Authority,25/03/2015,MATERIALS & SPARES,FUSION,ANIXTER (UK) LTD,5100319293,850,,
United Kingdom Atomic Energy Authority,United Kingdom Atomic Energy Authority,11/03/2015,MATERIALS & SPARES,FUSION,ANIXTER (UK) LTD,5100318545,975,,
United Kingdom Atomic Energy Authority,United Kingdom Atomic Energy Authority,04/03/2015,MATERIALS & SPARES,FUSION,ANIXTER (UK) LTD,5100316677,41145.4,,
United Kingdom Atomic Energy Authority,United Kingdom Atomic Energy Authority,16/03/2015,MATERIALS & SPARES,FUSION,ANIXTER (UK) LTD,5100317669,7124.48,,
United Kingdom Atomic Energy Authority,United Kingdom Atomic Energy Authority,25/03/2015,MATERIALS & SPARES,FUSION,ANIXTER (UK) LTD,5100319002,108.6,,
United Kingdom Atomic Energy Authority,United Kingdom Atomic Energy Authority,25/03/2015,MATERIALS & SPARES,FUSION,ANIXTER (UK) LTD,5100319198,1216.72,,
United Kingdom Atomic Energy Authority,United Kingdom Atomic Energy Authority,09/03/2015,OPERATING LEASE,FUSION,ANNODATA BUSINESS COMMUNICATIONS,5100318205,-840.6,,
United Kingdom Atomic Energy Authority,United Kingdom Atomic Energy Authority,09/03/2015,OPERATING LEASE,FUSION,ANNODATA BUSINESS COMMUNICATIONS,5100318207,13955.21,,
United Kingdom Atomic Energy Authority,United Kingdom Atomic Energy Authority,18/03/2015,OPERATING LEASE,FUSION,ANNODATA BUSINESS COMMUNICATIONS,5100318783,2778.3,,
United Kingdom Atomic Energy Authority,United Kingdom Atomic Energy Authority,23/03/2015,OPERATING LEASE,FUSION,ANNODATA BUSINESS COMMUNICATIONS,5100319038,38584.16,,
United Kingdom Atomic Energy Authority,United Kingdom Atomic Energy Authority,23/03/2015,OPERATING LEASE,FUSION,ANNODATA BUSINESS COMMUNICATIONS,5100319039,2070,,
United Kingdom Atomic Energy Authority,United Kingdom Atomic Energy Authority,23/03/2015,OPERATING LEASE,FUSION,ANNODATA BUSINESS COMMUNICATIONS,5100319054,-2070,,
United Kingdom Atomic Energy Authority,United Kingdom Atomic Energy Authority,23/03/2015,OPERATING LEASE,FUSION,ANNODATA BUSINESS COMMUNICATIONS,5100319055,2070,,
United Kingdom Atomic Energy Authority,United Kingdom Atomic Energy Authority,25/02/2015,PROFESSIONAL SERVICES,SUPPORT SERVICES,AON HEWITT LTD,5100317643,150082.66,,
United Kingdom Atomic Energy Authority,United Kingdom Atomic Energy Authority,23/03/2015,PROFESSIONAL SERVICES,SUPPORT SERVICES,AON HEWITT LTD,5100318977,2747,,
United Kingdom Atomic Energy Authority,United Kingdom Atomic Energy Authority,25/03/2015,PROFESSIONAL SERVICES,SUPPORT SERVICES,AON HEWITT LTD,5100319137,35082.66,,
United Kingdom Atomic Energy Authority,United Kingdom Atomic Energy Authority,27/03/2015,MATERIALS & SPARES,FUSION,Application Tape Company Ltd,1900060818,474,CUL14200,
United Kingdom Atomic Energy Authority,United Kingdom Atomic Energy Authority,16/03/2015,PLANT SPARES,FUSION,Aquila Nuclear Engineering Ltd,5100318678,345834.01,,
United Kingdom Atomic Energy Authority,United Kingdom Atomic Energy Authority,25/02/2015,PERSONAL PROTECTIVE EQUIPMENT,SUPPORT SERVICES,ARCO LTD,5100317486,138.04,,
United Kingdom Atomic Energy Authority,United Kingdom Atomic Energy Authority,25/02/2015,PERSONAL PROTECTIVE EQUIPMENT,SUPPORT SERVICES,ARCO LTD,5100317488,34.11,,
United Kingdom Atomic Energy Authority,United Kingdom Atomic Energy Authority,09/03/2015,PERSONAL PROTECTIVE EQUIPMENT,SUPPORT SERVICES,ARCO LTD,5100318079,441.01,,
United Kingdom Atomic Energy Authority,United Kingdom Atomic Energy Authority,09/03/2015,PERSONAL PROTECTIVE EQUIPMENT,SUPPORT SERVICES,ARCO LTD,5100318081,34.11,,
United Kingdom Atomic Energy Authority,United Kingdom Atomic Energy Authority,23/03/2015,PERSONAL PROTECTIVE EQUIPMENT,SUPPORT SERVICES,ARCO LTD,5100318827,331.78,,
United Kingdom Atomic Energy Authority,United Kingdom Atomic Energy Authority,25/03/2015,PERSONAL PROTECTIVE EQUIPMENT,SUPPORT SERVICES,ARCO LTD,5100319239,100.1,,
United Kingdom Atomic Energy Authority,United Kingdom Atomic Energy Authority,25/03/2015,PERSONAL PROTECTIVE EQUIPMENT,FUSION,ARCO LTD,5100319289,109.36,,
United Kingdom Atomic Energy Authority,United Kingdom Atomic Energy Authority,25/02/2015,PERSONAL PROTECTIVE EQUIPMENT,FUSION,ARCO LTD,5100317536,12.44,,
United Kingdom Atomic Energy Authority,United Kingdom Atomic Energy Authority,25/02/2015,PERSONAL PROTECTIVE EQUIPMENT,FUSION,ARCO LTD,5100317660,165.57,,
United Kingdom Atomic Energy Authority,United Kingdom Atomic Energy Authority,23/03/2015,PERSONAL PROTECTIVE EQUIPMENT,FUSION,ARCO LTD,5100318831,69.23,,
United Kingdom Atomic Energy Authority,United Kingdom Atomic Energy Authority,25/03/2015,PERSONAL PROTECTIVE EQUIPMENT,FUSION,ARCO LTD,5100319240,150.36,,
United Kingdom Atomic Energy Authority,United Kingdom Atomic Energy Authority,25/02/2015,PERSONAL PROTECTIVE EQUIPMENT,FUSION,ARCO LTD,5100317487,50,,
United Kingdom Atomic Energy Authority,United Kingdom Atomic Energy Authority,25/02/2015,PERSONAL PROTECTIVE EQUIPMENT,FUSION,ARCO LTD,5100317671,146.26,,
United Kingdom Atomic Energy Authority,United Kingdom Atomic Energy Authority,02/03/2015,PERSONAL PROTECTIVE EQUIPMENT,FUSION,ARCO LTD,5100317672,11.73,,
United Kingdom Atomic Energy Authority,United Kingdom Atomic Energy Authority,02/03/2015,PERSONAL PROTECTIVE EQUIPMENT,FUSION,ARCO LTD,5100317685,36.24,,
United Kingdom Atomic Energy Authority,United Kingdom Atomic Energy Authority,09/03/2015,PERSONAL PROTECTIVE EQUIPMENT,FUSION,ARCO LTD,5100318053,91.66,,
United Kingdom Atomic Energy Authority,United Kingdom Atomic Energy Authority,09/03/2015,PERSONAL PROTECTIVE EQUIPMENT,FUSION,ARCO LTD,5100318055,105.98,,
United Kingdom Atomic Energy Authority,United Kingdom Atomic Energy Authority,09/03/2015,PERSONAL PROTECTIVE EQUIPMENT,FUSION,ARCO LTD,5100318187,91.8,,
United Kingdom Atomic Energy Authority,United Kingdom Atomic Energy Authority,09/03/2015,PERSONAL PROTECTIVE EQUIPMENT,FUSION,ARCO LTD,5100318262,18.88,,
United Kingdom Atomic Energy Authority,United Kingdom Atomic Energy Authority,18/03/2015,PERSONAL PROTECTIVE EQUIPMENT,FUSION,ARCO LTD,5100318828,31.55,,
United Kingdom Atomic Energy Authority,United Kingdom Atomic Energy Authority,25/02/2015,PERSONAL PROTECTIVE EQUIPMENT,FUSION,ARCO LTD,5100317159,732.6,,
United Kingdom Atomic Energy Authority,United Kingdom Atomic Energy Authority,25/02/2015,PERSONAL PROTECTIVE EQUIPMENT,FUSION,ARCO LTD,5100317160,128.7,,
United Kingdom Atomic Energy Authority,United Kingdom Atomic Energy Authority,25/02/2015,PERSONAL PROTECTIVE EQUIPMENT,FUSION,ARCO LTD,5100317161,45.19,,
United Kingdom Atomic Energy Authority,United Kingdom Atomic Energy Authority,25/02/2015,PERSONAL PROTECTIVE EQUIPMENT,FUSION,ARCO LTD,5100317294,90.38,,
United Kingdom Atomic Energy Authority,United Kingdom Atomic Energy Authority,25/02/2015,PERSONAL PROTECTIVE EQUIPMENT,FUSION,ARCO LTD,5100317341,817.36,,
United Kingdom Atomic Energy Authority,United Kingdom Atomic Energy Authority,25/02/2015,PERSONAL PROTECTIVE EQUIPMENT,FUSION,ARCO LTD,5100317537,351.6,,
United Kingdom Atomic Energy Authority,United Kingdom Atomic Energy Authority,02/03/2015,PERSONAL PROTECTIVE EQUIPMENT,FUSION,ARCO LTD,5100317662,586,,
United Kingdom Atomic Energy Authority,United Kingdom Atomic Energy Authority,02/03/2015,PERSONAL PROTECTIVE EQUIPMENT,FUSION,ARCO LTD,5100317673,188.7,,
United Kingdom Atomic Energy Authority,United Kingdom Atomic Energy Authority,02/03/2015,PERSONAL PROTECTIVE EQUIPMENT,FUSION,ARCO LTD,5100317719,1501.92,,
United Kingdom Atomic Energy Authority,United Kingdom Atomic Energy Authority,02/03/2015,PERSONAL PROTECTIVE EQUIPMENT,FUSION,ARCO LTD,5100317720,59.98,,
United Kingdom Atomic Energy Authority,United Kingdom Atomic Energy Authority,02/03/2015,PERSONAL PROTECTIVE EQUIPMENT,FUSION,ARCO LTD,5100317725,47.99,,
United Kingdom Atomic Energy Authority,United Kingdom Atomic Energy Authority,02/03/2015,PERSONAL PROTECTIVE EQUIPMENT,FUSION,ARCO LTD,5100317726,935,,
United Kingdom Atomic Energy Authority,United Kingdom Atomic Energy Authority,02/03/2015,PERSONAL PROTECTIVE EQUIPMENT,FUSION,ARCO LTD,5100317801,362.06,,
United Kingdom Atomic Energy Authority,United Kingdom Atomic Energy Authority,02/03/2015,PERSONAL PROTECTIVE EQUIPMENT,FUSION,ARCO LTD,5100317802,99.95,,
United Kingdom Atomic Energy Authority,United Kingdom Atomic Energy Authority,09/03/2015,PERSONAL PROTECTIVE EQUIPMENT,FUSION,ARCO LTD,5100318056,74.99,,
United Kingdom Atomic Energy Authority,United Kingdom Atomic Energy Authority,09/03/2015,PERSONAL PROTECTIVE EQUIPMENT,FUSION,ARCO LTD,5100318057,590.88,,
United Kingdom Atomic Energy Authority,United Kingdom Atomic Energy Authority,09/03/2015,PERSONAL PROTECTIVE EQUIPMENT,FUSION,ARCO LTD,5100318077,103.4,,
United Kingdom Atomic Energy Authority,United Kingdom Atomic Energy Authority,09/03/2015,PERSONAL PROTECTIVE EQUIPMENT,FUSION,ARCO LTD,5100318185,930.75,,
United Kingdom Atomic Energy Authority,United Kingdom Atomic Energy Authority,09/03/2015,PERSONAL PROTECTIVE EQUIPMENT,FUSION,ARCO LTD,5100318190,12.06,,
United Kingdom Atomic Energy Authority,United Kingdom Atomic Energy Authority,09/03/2015,PERSONAL PROTECTIVE EQUIPMENT,FUSION,ARCO LTD,5100318314,-586,,
United Kingdom Atomic Energy Authority,United Kingdom Atomic Energy Authority,09/03/2015,PERSONAL PROTECTIVE EQUIPMENT,FUSION,ARCO LTD,5100318421,480.06,,
United Kingdom Atomic Energy Authority,United Kingdom Atomic Energy Authority,16/03/2015,PERSONAL PROTECTIVE EQUIPMENT,FUSION,ARCO LTD,5100318424,1480,,
United Kingdom Atomic Energy Authority,United Kingdom Atomic Energy Authority,16/03/2015,PERSONAL PROTECTIVE EQUIPMENT,FUSION,ARCO LTD,5100318536,25.05,,
United Kingdom Atomic Energy Authority,United Kingdom Atomic Energy Authority,16/03/2015,PERSONAL PROTECTIVE EQUIPMENT,FUSION,ARCO LTD,5100318537,56.82,,
United Kingdom Atomic Energy Authority,United Kingdom Atomic Energy Authority,16/03/2015,PERSONAL PROTECTIVE EQUIPMENT,FUSION,ARCO LTD,5100318758,128.7,,
United Kingdom Atomic Energy Authority,United Kingdom Atomic Energy Authority,18/03/2015,PERSONAL PROTECTIVE EQUIPMENT,FUSION,ARCO LTD,5100318826,23.22,,
United Kingdom Atomic Energy Authority,United Kingdom Atomic Energy Authority,18/03/2015,PERSONAL PROTECTIVE EQUIPMENT,FUSION,ARCO LTD,5100318829,990.6,,
United Kingdom Atomic Energy Authority,United Kingdom Atomic Energy Authority,18/03/2015,PERSONAL PROTECTIVE EQUIPMENT,FUSION,ARCO LTD,5100318830,34.19,,
United Kingdom Atomic Energy Authority,United Kingdom Atomic Energy Authority,23/03/2015,PERSONAL PROTECTIVE EQUIPMENT,FUSION,ARCO LTD,5100318888,694.63,,
United Kingdom Atomic Energy Authority,United Kingdom Atomic Energy Authority,23/03/2015,PERSONAL PROTECTIVE EQUIPMENT,FUSION,ARCO LTD,5100318889,598.62,,
United Kingdom Atomic Energy Authority,United Kingdom Atomic Energy Authority,23/03/2015,PERSONAL PROTECTIVE EQUIPMENT,FUSION,ARCO LTD,5100318891,55.19,,
United Kingdom Atomic Energy Authority,United Kingdom Atomic Energy Authority,23/03/2015,PERSONAL PROTECTIVE EQUIPMENT,FUSION,ARCO LTD,5100318992,424.68,,
United Kingdom Atomic Energy Authority,United Kingdom Atomic Energy Authority,23/03/2015,PERSONAL PROTECTIVE EQUIPMENT,FUSION,ARCO LTD,5100318994,68.58,,
United Kingdom Atomic Energy Authority,United Kingdom Atomic Energy Authority,23/03/2015,PERSONAL PROTECTIVE EQUIPMENT,FUSION,ARCO LTD,5100318996,914.4,,
United Kingdom Atomic Energy Authority,United Kingdom Atomic Energy Authority,23/03/2015,PERSONAL PROTECTIVE EQUIPMENT,FUSION,ARCO LTD,5100318998,192,,
United Kingdom Atomic Energy Authority,United Kingdom Atomic Energy Authority,25/02/2015,PERSONAL PROTECTIVE EQUIPMENT,FUSION,ARCO LTD,5100317295,101.17,,
United Kingdom Atomic Energy Authority,United Kingdom Atomic Energy Authority,25/02/2015,PERSONAL PROTECTIVE EQUIPMENT,FUSION,ARCO LTD,5100317489,141.7,,
United Kingdom Atomic Energy Authority,United Kingdom Atomic Energy Authority,25/02/2015,PERSONAL PROTECTIVE EQUIPMENT,FUSION,ARCO LTD,5100317664,61.61,,
United Kingdom Atomic Energy Authority,United Kingdom Atomic Energy Authority,11/03/2015,PERSONAL PROTECTIVE EQUIPMENT,FUSION,ARCO LTD,5100317799,61.61,,
United Kingdom Atomic Energy Authority,United Kingdom Atomic Energy Authority,09/03/2015,PERSONAL PROTECTIVE EQUIPMENT,FUSION,ARCO LTD,5100318074,82.12,,
United Kingdom Atomic Energy Authority,United Kingdom Atomic Energy Authority,11/03/2015,PERSONAL PROTECTIVE EQUIPMENT,FUSION,ARCO LTD,5100318595,-61.61,,
United Kingdom Atomic Energy Authority,United Kingdom Atomic Energy Authority,23/03/2015,PERSONAL PROTECTIVE EQUIPMENT,FUSION,ARCO LTD,5100318997,17.46,,
United Kingdom Atomic Energy Authority,United Kingdom Atomic Energy Authority,25/03/2015,PERSONAL PROTECTIVE EQUIPMENT,FUSION,ARCO LTD,5100319242,14.08,,
United Kingdom Atomic Energy Authority,United Kingdom Atomic Energy Authority,25/03/2015,PERSONAL PROTECTIVE EQUIPMENT,FUSION,ARCO LTD,5100319290,61.61,,
United Kingdom Atomic Energy Authority,United Kingdom Atomic Energy Authority,25/03/2015,PERSONAL PROTECTIVE EQUIPMENT,FUSION,ARCO LTD,5100319291,5.58,,
United Kingdom Atomic Energy Authority,United Kingdom Atomic Energy Authority,02/03/2015,STATIONERY,FUSION,ARTISAN LITHO PRINT  DESIGN,5100317570,60,,
United Kingdom Atomic Energy Authority,United Kingdom Atomic Energy Authority,18/03/2015,STATIONERY,FUSION,ARTISAN LITHO PRINT  DESIGN,5100318130,444,,
United Kingdom Atomic Energy Authority,United Kingdom Atomic Energy Authority,18/03/2015,STATIONERY,FUSION,ARTISAN LITHO PRINT  DESIGN,5100318327,97,,
United Kingdom Atomic Energy Authority,United Kingdom Atomic Energy Authority,18/03/2015,STATIONERY,FUSION,ARTISAN LITHO PRINT  DESIGN,5100318976,87,,
United Kingdom Atomic Energy Authority,United Kingdom Atomic Energy Authority,23/03/2015,PLANT & EQUIPMENT,FUSION,ARVAL UK LIMITED,5100318866,264.83,,
United Kingdom Atomic Energy Authority,United Kingdom Atomic Energy Authority,25/03/2015,PLANT SPARES,FUSION,AS SCIENTIFIC PRODUCTS LTD,5100318182,9810,,
United Kingdom Atomic Energy Authority,United Kingdom Atomic Energy Authority,25/03/2015,IT EQUIPMENT NON CAPITAL,FUSION,ASHLYN COMPUTER SERVICES LTD,5100319286,250,,
United Kingdom Atomic Energy Authority,United Kingdom Atomic Energy Authority,23/03/2015,MATERIALS & SPARES,FUSION,ASO GLASBLOWING LTD,5100318892,826.16,,
United Kingdom Atomic Energy Authority,United Kingdom Atomic Energy Authority,25/03/2015,MATERIALS & SPARES,FUSION,ASTLES CONTROL SYSTEMS,5100318837,243,,
United Kingdom Atomic Energy Authority,United Kingdom Atomic Energy Authority,25/03/2015,PLANT & EQUIPMENT,FUSION,ATLANTIC MICROWAVE LTD,5100319310,448,,
United Kingdom Atomic Energy Authority,United Kingdom Atomic Energy Authority,16/03/2015,MATERIALS & SPARES,FUSION,Augean Ltd,5100318515,3840,,
United Kingdom Atomic Energy Authority,United Kingdom Atomic Energy Authority,25/03/2015,CATERING,FUSION,AVENANCE PLC,5100319128,521.24,,
United Kingdom Atomic Energy Authority,United Kingdom Atomic Energy Authority,09/03/2015,CATERING,PROPERTY,AVENANCE PLC,5100318004,279.57,,
United Kingdom Atomic Energy Authority,United Kingdom Atomic Energy Authority,09/03/2015,CATERING,PROPERTY,AVENANCE PLC,5100318444,70.8,,
United Kingdom Atomic Energy Authority,United Kingdom Atomic Energy Authority,23/03/2015,CATERING,PROPERTY,AVENANCE PLC,5100319016,6151.12,,
United Kingdom Atomic Energy Authority,United Kingdom Atomic Energy Authority,23/03/2015,CATERING,PROPERTY,AVENANCE PLC,5100319017,362.1,,
United Kingdom Atomic Energy Authority,United Kingdom Atomic Energy Authority,23/03/2015,CATERING,PROPERTY,AVENANCE PLC,5100319024,798.22,,
United Kingdom Atomic Energy Authority,United Kingdom Atomic Energy Authority,09/03/2015,CATERING,SUPPORT SERVICES,AVENANCE PLC,5100316630,693.7,,
United Kingdom Atomic Energy Authority,United Kingdom Atomic Energy Authority,25/02/2015,PLANT SPARES,FUSION,AVNET EMG LTD,5100317394,138.72,,
United Kingdom Atomic Energy Authority,United Kingdom Atomic Energy Authority,25/03/2015,PLANT SPARES,FUSION,AVNET EMG LTD,5100317398,131.16,,
United Kingdom Atomic Energy Authority,United Kingdom Atomic Energy Authority,25/03/2015,PLANT SPARES,FUSION,AVNET EMG LTD,5100319251,-27.19,,
United Kingdom Atomic Energy Authority,United Kingdom Atomic Energy Authority,25/03/2015,PLANT SPARES,FUSION,AVNET EMG LTD,5100319252,-7.23,,
United Kingdom Atomic Energy Authority,United Kingdom Atomic Energy Authority,02/03/2015,PLANT SPARES,FUSION,AVNET EMG LTD,5100317798,207,,
United Kingdom Atomic Energy Authority,United Kingdom Atomic Energy Authority,02/03/2015,TREATED WATER,FUSION,B & V WATER TREATMENT,5100317754,3987,,
United Kingdom Atomic Energy Authority,United Kingdom Atomic Energy Authority,04/03/2015,TREATED WATER,FUSION,B & V WATER TREATMENT,5100317942,1185.81,,
United Kingdom Atomic Energy Authority,United Kingdom Atomic Energy Authority,09/03/2015,MATERIALS & SPARES,FUSION,B&M Engineering Ltd,5100318177,715,,
United Kingdom Atomic Energy Authority,United Kingdom Atomic Energy Authority,09/03/2015,MATERIALS & SPARES,FUSION,B&M Engineering Ltd,5100318192,80,,
United Kingdom Atomic Energy Authority,United Kingdom Atomic Energy Authority,09/03/2015,MATERIALS & SPARES,FUSION,B&M Engineering Ltd,5100318176,350,,
United Kingdom Atomic Energy Authority,United Kingdom Atomic Energy Authority,09/03/2015,MATERIALS & SPARES,FUSION,B&M Engineering Ltd,5100318180,480,,
United Kingdom Atomic Energy Authority,United Kingdom Atomic Energy Authority,09/03/2015,MATERIALS & SPARES,FUSION,B&M Engineering Ltd,5100318189,380,,
United Kingdom Atomic Energy Authority,United Kingdom Atomic Energy Authority,09/03/2015,MATERIALS & SPARES,FUSION,B&M Engineering Ltd,5100318175,1050,,
United Kingdom Atomic Energy Authority,United Kingdom Atomic Energy Authority,09/03/2015,MATERIALS & SPARES,FUSION,B&M Engineering Ltd,5100318179,1530,,
United Kingdom Atomic Energy Authority,United Kingdom Atomic Energy Authority,18/03/2015,MATERIALS & SPARES,FUSION,B&M Engineering Ltd,5100318181,430,,
United Kingdom Atomic Energy Authority,United Kingdom Atomic Energy Authority,09/03/2015,MATERIALS & SPARES,FUSION,B&M Engineering Ltd,5100318184,630,,
United Kingdom Atomic Energy Authority,United Kingdom Atomic Energy Authority,09/03/2015,MATERIALS & SPARES,FUSION,B&M Engineering Ltd,5100318186,1360,,
United Kingdom Atomic Energy Authority,United Kingdom Atomic Energy Authority,09/03/2015,COMPUTER REPAIRS,FUSION,BCAS LTD,5100318156,86.3,,
United Kingdom Atomic Energy Authority,United Kingdom Atomic Energy Authority,18/03/2015,PLANT SPARES,FUSION,Beacon Group International Ltd,5100317317,876.95,,
United Kingdom Atomic Energy Authority,United Kingdom Atomic Energy Authority,04/03/2015,PLANT SPARES,FUSION,Beacon Group International Ltd,5100317676,77.3,,
United Kingdom Atomic Energy Authority,United Kingdom Atomic Energy Authority,18/03/2015,PLANT SPARES,FUSION,Beacon Group International Ltd,5100318741,1145.6,,
United Kingdom Atomic Energy Authority,United Kingdom Atomic Energy Authority,18/03/2015,PLANT SPARES,FUSION,Beacon Group International Ltd,5100318938,-572.8,,
United Kingdom Atomic Energy Authority,United Kingdom Atomic Energy Authority,18/03/2015,PLANT SPARES,FUSION,Beacon Group International Ltd,5100318661,316.04,,
United Kingdom Atomic Energy Authority,United Kingdom Atomic Energy Authority,25/02/2015,REPAIRS & MAINTENANCE,FUSION,BEAVER 84 LIMITED,5100317608,1825,,
United Kingdom Atomic Energy Authority,United Kingdom Atomic Energy Authority,09/03/2015,REPAIRS & MAINTENANCE,FUSION,BEAVER 84 LIMITED,5100318092,165.49,,
United Kingdom Atomic Energy Authority,United Kingdom Atomic Energy Authority,09/03/2015,REPAIRS & MAINTENANCE,FUSION,BEAVER 84 LIMITED,5100318393,1472,,
United Kingdom Atomic Energy Authority,United Kingdom Atomic Energy Authority,09/03/2015,REPAIRS & MAINTENANCE,FUSION,BEAVER 84 LIMITED,5100318075,11.33,,
United Kingdom Atomic Energy Authority,United Kingdom Atomic Energy Authority,09/03/2015,REPAIRS & MAINTENANCE,FUSION,BEAVER 84 LIMITED,5100318068,308.79,,
United Kingdom Atomic Energy Authority,United Kingdom Atomic Energy Authority,09/03/2015,REPAIRS & MAINTENANCE,FUSION,BEAVER 84 LIMITED,5100318070,151.49,,
United Kingdom Atomic Energy Authority,United Kingdom Atomic Energy Authority,09/03/2015,REPAIRS & MAINTENANCE,FUSION,BEAVER 84 LIMITED,5100318072,28.48,,
United Kingdom Atomic Energy Authority,United Kingdom Atomic Energy Authority,09/03/2015,REPAIRS & MAINTENANCE,FUSION,BEAVER 84 LIMITED,5100318084,88,,
United Kingdom Atomic Energy Authority,United Kingdom Atomic Energy Authority,09/03/2015,REPAIRS & MAINTENANCE,FUSION,BEAVER 84 LIMITED,5100318088,171.36,,
United Kingdom Atomic Energy Authority,United Kingdom Atomic Energy Authority,19/03/2015,MATERIALS & SPARES,FUSION,Belcom Cables Ltd,1900060798,1260,CUL14184,
United Kingdom Atomic Energy Authority,United Kingdom Atomic Energy Authority,02/03/2015,REPAIRS & MAINTENANCE,SUPPORT SERVICES,Belfor Ltd,1900060759,7029.73,CUL14143,
United Kingdom Atomic Energy Authority,United Kingdom Atomic Energy Authority,25/02/2015,PLANT & EQUIPMENT,FUSION,BELLEVILLE SPRINGS LTD,5100317548,495,,
United Kingdom Atomic Energy Authority,United Kingdom Atomic Energy Authority,09/03/2015,PLANT & EQUIPMENT,FUSION,BELLEVILLE SPRINGS LTD,5100318240,18944,,
United Kingdom Atomic Energy Authority,United Kingdom Atomic Energy Authority,11/03/2015,COMPENSATIO AND LEGAL FEES,SUPPORT SERVICES,BIGGART BAILLIE,5100318584,3032.93,,
United Kingdom Atomic Energy Authority,United Kingdom Atomic Energy Authority,04/03/2015,COMPENSATIO AND LEGAL FEES,SUPPORT SERVICES,BIGGART BAILLIE,5100318111,433.5,,
United Kingdom Atomic Energy Authority,United Kingdom Atomic Energy Authority,16/03/2015,HIRED STAFF,FUSION,BLACK DIAMOND UMBRELLA LTD,5100318466,1196.63,,
United Kingdom Atomic Energy Authority,United Kingdom Atomic Energy Authority,16/03/2015,HIRED STAFF,FUSION,BLACK DIAMOND UMBRELLA LTD,5100318467,781.8,,
United Kingdom Atomic Energy Authority,United Kingdom Atomic Energy Authority,16/03/2015,HIRED STAFF,FUSION,BLACK DIAMOND UMBRELLA LTD,5100318468,1196.63,,
United Kingdom Atomic Energy Authority,United Kingdom Atomic Energy Authority,16/03/2015,HIRED STAFF,FUSION,BLACK DIAMOND UMBRELLA LTD,5100318469,1196.63,,
United Kingdom Atomic Energy Authority,United Kingdom Atomic Energy Authority,16/03/2015,HIRED STAFF,FUSION,BLACK DIAMOND UMBRELLA LTD,5100318470,851.63,,
United Kingdom Atomic Energy Authority,United Kingdom Atomic Energy Authority,16/03/2015,HIRED STAFF,FUSION,BLACK DIAMOND UMBRELLA LTD,5100318471,851.63,,
United Kingdom Atomic Energy Authority,United Kingdom Atomic Energy Authority,16/03/2015,HIRED STAFF,FUSION,BLACK DIAMOND UMBRELLA LTD,5100318472,681.3,,
United Kingdom Atomic Energy Authority,United Kingdom Atomic Energy Authority,16/03/2015,HIRED STAFF,FUSION,BLACK DIAMOND UMBRELLA LTD,5100318473,851.63,,
United Kingdom Atomic Energy Authority,United Kingdom Atomic Energy Authority,16/03/2015,HIRED STAFF,FUSION,BLACK DIAMOND UMBRELLA LTD,5100318474,4060.9,,
United Kingdom Atomic Energy Authority,United Kingdom Atomic Energy Authority,16/03/2015,HIRED STAFF,FUSION,BLACK DIAMOND UMBRELLA LTD,5100318475,5070.14,,
United Kingdom Atomic Energy Authority,United Kingdom Atomic Energy Authority,16/03/2015,LAUNDRY,FUSION,BLUEBELL LAUNDRY,5100318430,166.11,,
United Kingdom Atomic Energy Authority,United Kingdom Atomic Energy Authority,25/02/2015,PROFESSIONAL SERVICES,FUSION,BNS NUCLEAR SERVICES,5100317564,76421.8,,
United Kingdom Atomic Energy Authority,United Kingdom Atomic Energy Authority,25/02/2015,PROFESSIONAL SERVICES,FUSION,BNS NUCLEAR SERVICES,5100317565,4711.57,,
United Kingdom Atomic Energy Authority,United Kingdom Atomic Energy Authority,09/03/2015,PROFESSIONAL SERVICES,FUSION,BNS NUCLEAR SERVICES,5100318265,39737.37,,
United Kingdom Atomic Energy Authority,United Kingdom Atomic Energy Authority,18/03/2015,PROFESSIONAL SERVICES,FUSION,BNS NUCLEAR SERVICES,5100318809,79747.39,,
United Kingdom Atomic Energy Authority,United Kingdom Atomic Energy Authority,09/03/2015,GASES,FUSION,BOC LTD,5100318035,81.12,,
United Kingdom Atomic Energy Authority,United Kingdom Atomic Energy Authority,16/03/2015,GASES,FUSION,BOC LTD,5100318510,39.76,,
United Kingdom Atomic Energy Authority,United Kingdom Atomic Energy Authority,16/03/2015,GASES,FUSION,BOC LTD,5100318677,81.12,,
United Kingdom Atomic Energy Authority,United Kingdom Atomic Energy Authority,09/03/2015,GASES,FUSION,BOC LTD,5100318135,35.86,,
United Kingdom Atomic Energy Authority,United Kingdom Atomic Energy Authority,16/03/2015,GASES,FUSION,BOC LTD,5100318498,428.42,,
United Kingdom Atomic Energy Authority,United Kingdom Atomic Energy Authority,25/02/2015,GASES,FUSION,BOC LTD,5100317255,128.16,,
United Kingdom Atomic Energy Authority,United Kingdom Atomic Energy Authority,25/02/2015,GASES,FUSION,BOC LTD,5100317516,354.8,,
United Kingdom Atomic Energy Authority,United Kingdom Atomic Energy Authority,25/02/2015,GASES,FUSION,BOC LTD,5100317514,664.8,,
United Kingdom Atomic Energy Authority,United Kingdom Atomic Energy Authority,09/03/2015,GASES,FUSION,BOC LTD,5100318117,4932.96,,
United Kingdom Atomic Energy Authority,United Kingdom Atomic Energy Authority,09/03/2015,GASES,FUSION,BOC LTD,5100318134,664.8,,
United Kingdom Atomic Energy Authority,United Kingdom Atomic Energy Authority,11/03/2015,GASES,FUSION,BOC LTD,5100318428,17048.61,,
United Kingdom Atomic Energy Authority,United Kingdom Atomic Energy Authority,16/03/2015,GASES,FUSION,BOC LTD,5100318673,204.34,,
United Kingdom Atomic Energy Authority,United Kingdom Atomic Energy Authority,16/03/2015,GASES,FUSION,BOC LTD,5100318499,304.78,,
United Kingdom Atomic Energy Authority,United Kingdom Atomic Energy Authority,18/03/2015,GASES,FUSION,BOC LTD,5100318676,88.74,,
United Kingdom Atomic Energy Authority,United Kingdom Atomic Energy Authority,25/02/2015,GASES,FUSION,BOC LTD,5100317197,211.58,,
United Kingdom Atomic Energy Authority,United Kingdom Atomic Energy Authority,16/03/2015,GASES,FUSION,BOC LTD,5100318506,216.36,,
United Kingdom Atomic Energy Authority,United Kingdom Atomic Energy Authority,16/03/2015,GASES,FUSION,BOC LTD,5100318497,236.8,,
United Kingdom Atomic Energy Authority,United Kingdom Atomic Energy Authority,25/02/2015,GASES,FUSION,BOC LTD,5100317691,39.76,,
United Kingdom Atomic Energy Authority,United Kingdom Atomic Energy Authority,16/03/2015,GASES,FUSION,BOC LTD,5100318502,28.86,,
United Kingdom Atomic Energy Authority,United Kingdom Atomic Energy Authority,16/03/2015,GASES,FUSION,BOC LTD,5100318505,233.22,,
United Kingdom Atomic Energy Authority,United Kingdom Atomic Energy Authority,25/02/2015,GASES,FUSION,BOC LTD,5100316646,51.48,,
United Kingdom Atomic Energy Authority,United Kingdom Atomic Energy Authority,18/03/2015,GASES,FUSION,BOC LTD,5100318509,52.91,,
United Kingdom Atomic Energy Authority,United Kingdom Atomic Energy Authority,18/03/2015,GASES,FUSION,BOC LTD,5100318935,-52.91,,
United Kingdom Atomic Energy Authority,United Kingdom Atomic Energy Authority,18/03/2015,GASES,FUSION,BOC LTD,5100318937,52.91,,
United Kingdom Atomic Energy Authority,United Kingdom Atomic Energy Authority,25/02/2015,GASES,FUSION,BOC LTD,5100317692,1688.64,,
United Kingdom Atomic Energy Authority,United Kingdom Atomic Energy Authority,11/03/2015,GASES,FUSION,BOC LTD,5100318037,587.52,,
United Kingdom Atomic Energy Authority,United Kingdom Atomic Energy Authority,11/03/2015,GASES,FUSION,BOC LTD,5100318429,1175.04,,
United Kingdom Atomic Energy Authority,United Kingdom Atomic Energy Authority,16/03/2015,GASES,FUSION,BOC LTD,5100318500,318.62,,
United Kingdom Atomic Energy Authority,United Kingdom Atomic Energy Authority,16/03/2015,GASES,FUSION,BOC LTD,5100318508,75.79,,
United Kingdom Atomic Energy Authority,United Kingdom Atomic Energy Authority,16/03/2015,GASES,FUSION,BOC LTD,5100318671,256.6,,
United Kingdom Atomic Energy Authority,United Kingdom Atomic Energy Authority,25/02/2015,GASES,FUSION,BOC LTD,5100317517,41.1,,
United Kingdom Atomic Energy Authority,United Kingdom Atomic Energy Authority,09/03/2015,GASES,FUSION,BOC LTD,5100318136,41.1,,
United Kingdom Atomic Energy Authority,United Kingdom Atomic Energy Authority,16/03/2015,GASES,FUSION,BOC LTD,5100318504,189.99,,
United Kingdom Atomic Energy Authority,United Kingdom Atomic Energy Authority,23/03/2015,CONSUMABLES,FUSION,BOXER MACHINE TOOLS SERVICES,5100319059,1485,,
United Kingdom Atomic Energy Authority,United Kingdom Atomic Energy Authority,09/03/2015,COMPENSATIO AND LEGAL FEES,SUPPORT SERVICES,COMPENSATION CLAIMANT,1900060775,14000,CUL14158,
United Kingdom Atomic Energy Authority,United Kingdom Atomic Energy Authority,25/02/2015,PLANT & EQUIPMENT,FUSION,Britcab Ltd,5100314741,20860,,
United Kingdom Atomic Energy Authority,United Kingdom Atomic Energy Authority,25/02/2015,PLANT SPARES,FUSION,BRITE PRECISION,5100317526,2540,,
United Kingdom Atomic Energy Authority,United Kingdom Atomic Energy Authority,16/03/2015,PLANT SPARES,FUSION,BRITE PRECISION,5100318512,9378,,
United Kingdom Atomic Energy Authority,United Kingdom Atomic Energy Authority,25/02/2015,PLANT SPARES,FUSION,BRITE PRECISION,5100317518,9096,,
United Kingdom Atomic Energy Authority,United Kingdom Atomic Energy Authority,25/02/2015,PLANT SPARES,FUSION,BRITE PRECISION,5100317519,9096,,
United Kingdom Atomic Energy Authority,United Kingdom Atomic Energy Authority,25/02/2015,PLANT SPARES,FUSION,BRITE PRECISION,5100317699,12732,,
United Kingdom Atomic Energy Authority,United Kingdom Atomic Energy Authority,25/02/2015,PLANT SPARES,FUSION,BRITE PRECISION,5100317700,12732,,
United Kingdom Atomic Energy Authority,United Kingdom Atomic Energy Authority,09/03/2015,PLANT SPARES,FUSION,BRITE PRECISION,5100318133,829.98,,
United Kingdom Atomic Energy Authority,United Kingdom Atomic Energy Authority,09/03/2015,PLANT SPARES,FUSION,BRITE PRECISION,5100318266,540,,
United Kingdom Atomic Energy Authority,United Kingdom Atomic Energy Authority,09/03/2015,PLANT SPARES,FUSION,BRITE PRECISION,5100318286,7402,,
United Kingdom Atomic Energy Authority,United Kingdom Atomic Energy Authority,09/03/2015,PLANT SPARES,FUSION,BRITE PRECISION,5100318287,7844,,
United Kingdom Atomic Energy Authority,United Kingdom Atomic Energy Authority,09/03/2015,PLANT SPARES,FUSION,BRITE PRECISION,5100318288,5232,,
United Kingdom Atomic Energy Authority,United Kingdom Atomic Energy Authority,16/03/2015,PLANT SPARES,FUSION,BRITE PRECISION,5100318513,2048,,
United Kingdom Atomic Energy Authority,United Kingdom Atomic Energy Authority,16/03/2015,PLANT SPARES,FUSION,BRITE PRECISION,5100318626,168,,
United Kingdom Atomic Energy Authority,United Kingdom Atomic Energy Authority,16/03/2015,PLANT SPARES,FUSION,BRITE PRECISION,5100318627,3239,,
United Kingdom Atomic Energy Authority,United Kingdom Atomic Energy Authority,25/02/2015,UTILITIES/ELECTRICITY,PROPERTY,BRITISH GAS BUSINESS,5100317649,69.01,,
United Kingdom Atomic Energy Authority,United Kingdom Atomic Energy Authority,25/02/2015,UTILITIES/ELECTRICITY,PROPERTY,BRITISH GAS BUSINESS,5100317651,-42,,
United Kingdom Atomic Energy Authority,United Kingdom Atomic Energy Authority,25/02/2015,UTILITIES/ELECTRICITY,PROPERTY,BRITISH GAS BUSINESS,5100317655,63.88,,
United Kingdom Atomic Energy Authority,United Kingdom Atomic Energy Authority,25/02/2015,UTILITIES/ELECTRICITY,PROPERTY,BRITISH GAS BUSINESS,5100317656,234.83,,
United Kingdom Atomic Energy Authority,United Kingdom Atomic Energy Authority,25/02/2015,UTILITIES/ELECTRICITY,PROPERTY,BRITISH GAS BUSINESS,5100317659,99.07,,
United Kingdom Atomic Energy Authority,United Kingdom Atomic Energy Authority,25/02/2015,UTILITIES/ELECTRICITY,PROPERTY,BRITISH GAS BUSINESS,5100317661,97.74,,
United Kingdom Atomic Energy Authority,United Kingdom Atomic Energy Authority,25/02/2015,UTILITIES/ELECTRICITY,PROPERTY,BRITISH GAS BUSINESS,5100317663,1110.63,,
United Kingdom Atomic Energy Authority,United Kingdom Atomic Energy Authority,25/02/2015,UTILITIES/ELECTRICITY,PROPERTY,BRITISH GAS BUSINESS,5100317665,1510.04,,
United Kingdom Atomic Energy Authority,United Kingdom Atomic Energy Authority,25/02/2015,UTILITIES/ELECTRICITY,PROPERTY,BRITISH GAS BUSINESS,5100317666,1470.36,,
United Kingdom Atomic Energy Authority,United Kingdom Atomic Energy Authority,25/02/2015,UTILITIES/ELECTRICITY,PROPERTY,BRITISH GAS BUSINESS,5100317668,-42,,
United Kingdom Atomic Energy Authority,United Kingdom Atomic Energy Authority,25/02/2015,UTILITIES/ELECTRICITY,PROPERTY,BRITISH GAS BUSINESS,5100317670,514.61,,
United Kingdom Atomic Energy Authority,United Kingdom Atomic Energy Authority,23/03/2015,UTILITIES/ELECTRICITY,PROPERTY,BRITISH GAS BUSINESS,5100318852,41.66,,
United Kingdom Atomic Energy Authority,United Kingdom Atomic Energy Authority,23/03/2015,UTILITIES/ELECTRICITY,PROPERTY,BRITISH GAS BUSINESS,5100318853,60.19,,
United Kingdom Atomic Energy Authority,United Kingdom Atomic Energy Authority,23/03/2015,UTILITIES/ELECTRICITY,PROPERTY,BRITISH GAS BUSINESS,5100318854,308.58,,
United Kingdom Atomic Energy Authority,United Kingdom Atomic Energy Authority,23/03/2015,UTILITIES/ELECTRICITY,PROPERTY,BRITISH GAS BUSINESS,5100318855,98.96,,
United Kingdom Atomic Energy Authority,United Kingdom Atomic Energy Authority,23/03/2015,UTILITIES/ELECTRICITY,PROPERTY,BRITISH GAS BUSINESS,5100318856,102.73,,
United Kingdom Atomic Energy Authority,United Kingdom Atomic Energy Authority,23/03/2015,UTILITIES/ELECTRICITY,PROPERTY,BRITISH GAS BUSINESS,5100318857,785.39,,
United Kingdom Atomic Energy Authority,United Kingdom Atomic Energy Authority,23/03/2015,UTILITIES/ELECTRICITY,PROPERTY,BRITISH GAS BUSINESS,5100318858,1595.89,,
United Kingdom Atomic Energy Authority,United Kingdom Atomic Energy Authority,23/03/2015,UTILITIES/ELECTRICITY,PROPERTY,BRITISH GAS BUSINESS,5100318859,870.35,,
United Kingdom Atomic Energy Authority,United Kingdom Atomic Energy Authority,23/03/2015,UTILITIES/ELECTRICITY,PROPERTY,BRITISH GAS BUSINESS,5100318860,604.87,,
United Kingdom Atomic Energy Authority,United Kingdom Atomic Energy Authority,02/03/2015,REPAIRS & MAINTENANCE,FUSION,BSA MACHINE TOOLS LTD,5100317784,1775,,
United Kingdom Atomic Energy Authority,United Kingdom Atomic Energy Authority,02/03/2015,REPAIRS & MAINTENANCE,FUSION,BSA MACHINE TOOLS LTD,5100317785,710,,
United Kingdom Atomic Energy Authority,United Kingdom Atomic Energy Authority,09/03/2015,REPAIRS & MAINTENANCE,FUSION,BSA MACHINE TOOLS LTD,5100318139,170.7,,
United Kingdom Atomic Energy Authority,United Kingdom Atomic Energy Authority,09/03/2015,PROFESSIONAL SERVICES,PROPERTY,BSP CONSULTING,5100318174,755,,
United Kingdom Atomic Energy Authority,United Kingdom Atomic Energy Authority,02/03/2015,PERSONAL PROTECTIVE EQUIPMENT,FUSION,BUCK & HICKMAN LTD,5100317775,155.45,,
United Kingdom Atomic Energy Authority,United Kingdom Atomic Energy Authority,02/03/2015,PERSONAL PROTECTIVE EQUIPMENT,FUSION,BUCK & HICKMAN LTD,5100317777,145.33,,
United Kingdom Atomic Energy Authority,United Kingdom Atomic Energy Authority,09/03/2015,PERSONAL PROTECTIVE EQUIPMENT,FUSION,BUCK & HICKMAN LTD,5100318322,79.58,,
United Kingdom Atomic Energy Authority,United Kingdom Atomic Energy Authority,25/02/2015,PERSONAL PROTECTIVE EQUIPMENT,FUSION,BUCK & HICKMAN LTD,5100317525,44.8,,
United Kingdom Atomic Energy Authority,United Kingdom Atomic Energy Authority,25/02/2015,PERSONAL PROTECTIVE EQUIPMENT,FUSION,BUCK & HICKMAN LTD,5100317521,152.72,,
United Kingdom Atomic Energy Authority,United Kingdom Atomic Energy Authority,25/02/2015,PERSONAL PROTECTIVE EQUIPMENT,FUSION,BUCK & HICKMAN LTD,5100317523,59.15,,
United Kingdom Atomic Energy Authority,United Kingdom Atomic Energy Authority,02/03/2015,PERSONAL PROTECTIVE EQUIPMENT,FUSION,BUCK & HICKMAN LTD,5100317776,12.8,,
United Kingdom Atomic Energy Authority,United Kingdom Atomic Energy Authority,09/03/2015,PERSONAL PROTECTIVE EQUIPMENT,FUSION,BUCK & HICKMAN LTD,5100318323,154.07,,
United Kingdom Atomic Energy Authority,United Kingdom Atomic Energy Authority,16/03/2015,PERSONAL PROTECTIVE EQUIPMENT,FUSION,BUCK & HICKMAN LTD,5100318767,627.6,,
United Kingdom Atomic Energy Authority,United Kingdom Atomic Energy Authority,16/03/2015,MATERIALS & SPARES,FUSION,BUDGET FORKTRUCKS LTD,5100317758,793,,
United Kingdom Atomic Energy Authority,United Kingdom Atomic Energy Authority,23/03/2015,MATERIALS & SPARES,FUSION,BUDGET FORKTRUCKS LTD,5100317761,390,,
United Kingdom Atomic Energy Authority,United Kingdom Atomic Energy Authority,23/03/2015,MATERIALS & SPARES,FUSION,BUDGET FORKTRUCKS LTD,5100317762,268.67,,
United Kingdom Atomic Energy Authority,United Kingdom Atomic Energy Authority,23/03/2015,MATERIALS & SPARES,FUSION,BUDGET FORKTRUCKS LTD,5100318290,270,,
United Kingdom Atomic Energy Authority,United Kingdom Atomic Energy Authority,25/02/2015,MATERIALS & SPARES,FUSION,BUDGET FORKTRUCKS LTD,5100317757,390,,
United Kingdom Atomic Energy Authority,United Kingdom Atomic Energy Authority,18/03/2015,MATERIALS & SPARES,FUSION,BUDGET FORKTRUCKS LTD,5100317760,312,,
United Kingdom Atomic Energy Authority,United Kingdom Atomic Energy Authority,18/03/2015,MATERIALS & SPARES,FUSION,BUDGET FORKTRUCKS LTD,5100318291,144,,
United Kingdom Atomic Energy Authority,United Kingdom Atomic Energy Authority,09/03/2015,MATERIALS & SPARES,FUSION,BUDGET FORKTRUCKS LTD,5100318292,342,,
United Kingdom Atomic Energy Authority,United Kingdom Atomic Energy Authority,02/03/2015,MATERIALS & SPARES,FUSION,BUDGET FORKTRUCKS LTD,5100317756,366,,
United Kingdom Atomic Energy Authority,United Kingdom Atomic Energy Authority,02/03/2015,MATERIALS & SPARES,FUSION,BUDGET FORKTRUCKS LTD,5100317983,30,,
United Kingdom Atomic Energy Authority,United Kingdom Atomic Energy Authority,23/03/2015,MATERIALS & SPARES,PROPERTY,BUDGET FORKTRUCKS LTD,5100317759,342.33,,
United Kingdom Atomic Energy Authority,United Kingdom Atomic Energy Authority,23/03/2015,MATERIALS & SPARES,PROPERTY,BUDGET FORKTRUCKS LTD,5100318293,406,,
United Kingdom Atomic Energy Authority,United Kingdom Atomic Energy Authority,23/03/2015,PLANT SPARES,FUSION,BURCKHARDT COMPRESSION UK LTD,5100317888,27043.92,,
United Kingdom Atomic Energy Authority,United Kingdom Atomic Energy Authority,18/03/2015,CATERING SUPPLIES,SUPPORT SERVICES,BWT UK LTD,5100318434,1189.56,,
United Kingdom Atomic Energy Authority,United Kingdom Atomic Energy Authority,18/03/2015,CATERING SUPPLIES,SUPPORT SERVICES,BWT UK LTD,5100318904,-165.24,,
United Kingdom Atomic Energy Authority,United Kingdom Atomic Energy Authority,11/03/2015,MATERIALS & SPARES,FUSION,Cablecraft Ltd,5100318236,956.68,,
United Kingdom Atomic Energy Authority,United Kingdom Atomic Energy Authority,02/03/2015,CONSUMABLES,FUSION,CARILLON INDUSTRIAL SERVICES LTD,5100316782,117.2,,
United Kingdom Atomic Energy Authority,United Kingdom Atomic Energy Authority,02/03/2015,CONSUMABLES,FUSION,CARILLON INDUSTRIAL SERVICES LTD,5100316783,497.85,,
United Kingdom Atomic Energy Authority,United Kingdom Atomic Energy Authority,02/03/2015,CONSUMABLES,FUSION,CARILLON INDUSTRIAL SERVICES LTD,5100317859,48.48,,
United Kingdom Atomic Energy Authority,United Kingdom Atomic Energy Authority,02/03/2015,CONSUMABLES,FUSION,CARILLON INDUSTRIAL SERVICES LTD,5100317860,-24.24,,
United Kingdom Atomic Energy Authority,United Kingdom Atomic Energy Authority,02/03/2015,CONSUMABLES,FUSION,CARILLON INDUSTRIAL SERVICES LTD,5100317861,-59.27,,
United Kingdom Atomic Energy Authority,United Kingdom Atomic Energy Authority,26/02/2015,CONSUMABLES,FUSION,CARILLON INDUSTRIAL SERVICES LTD,5100317862,-117.2,,
United Kingdom Atomic Energy Authority,United Kingdom Atomic Energy Authority,26/02/2015,CONSUMABLES,FUSION,CARILLON INDUSTRIAL SERVICES LTD,5100317863,117.2,,
United Kingdom Atomic Energy Authority,United Kingdom Atomic Energy Authority,09/03/2015,CONSUMABLES,FUSION,CARILLON INDUSTRIAL SERVICES LTD,5100318331,69.79,,
United Kingdom Atomic Energy Authority,United Kingdom Atomic Energy Authority,09/03/2015,CONSUMABLES,FUSION,CARILLON INDUSTRIAL SERVICES LTD,5100318333,69.79,,
United Kingdom Atomic Energy Authority,United Kingdom Atomic Energy Authority,23/03/2015,CONSUMABLES,FUSION,CARILLON INDUSTRIAL SERVICES LTD,5100318988,27.26,,
United Kingdom Atomic Energy Authority,United Kingdom Atomic Energy Authority,25/02/2015,PROFESSIONAL SERVICES,PROPERTY,Carter Jonas LLP,5100317453,260,,
United Kingdom Atomic Energy Authority,United Kingdom Atomic Energy Authority,23/03/2015,COMPENSATIO AND LEGAL FEES,SUPPORT SERVICES,CATER LEYDON MILLARD LTD,5100319025,583.5,,
United Kingdom Atomic Energy Authority,United Kingdom Atomic Energy Authority,23/03/2015,COMPENSATIO AND LEGAL FEES,SUPPORT SERVICES,CATER LEYDON MILLARD LTD,5100319026,490,,
United Kingdom Atomic Energy Authority,United Kingdom Atomic Energy Authority,25/03/2015,COMPENSATIO AND LEGAL FEES,SUPPORT SERVICES,CATER LEYDON MILLARD LTD,5100319302,122.5,,
United Kingdom Atomic Energy Authority,United Kingdom Atomic Energy Authority,25/03/2015,COMPENSATIO AND LEGAL FEES,SUPPORT SERVICES,CATER LEYDON MILLARD LTD,5100319303,1032.5,,
United Kingdom Atomic Energy Authority,United Kingdom Atomic Energy Authority,25/03/2015,COMPENSATIO AND LEGAL FEES,SUPPORT SERVICES,CATER LEYDON MILLARD LTD,5100319304,792.5,,
United Kingdom Atomic Energy Authority,United Kingdom Atomic Energy Authority,25/03/2015,COMPENSATIO AND LEGAL FEES,SUPPORT SERVICES,CATER LEYDON MILLARD LTD,5100319306,87.5,,
United Kingdom Atomic Energy Authority,United Kingdom Atomic Energy Authority,11/03/2015,MATERIALS & SPARES,FUSION,CBL ELECTRIC VEHICLES LTD,5100318397,176,,
United Kingdom Atomic Energy Authority,United Kingdom Atomic Energy Authority,25/02/2015,PROFESSIONAL SERVICES,FUSION,CELTECH CONSULTANCY LTD,5100317443,2000,,
United Kingdom Atomic Energy Authority,United Kingdom Atomic Energy Authority,25/02/2015,PROFESSIONAL SERVICES,PROPERTY,CELTECH CONSULTANCY LTD,5100317451,450,,
United Kingdom Atomic Energy Authority,United Kingdom Atomic Energy Authority,16/03/2015,PLANT & EQUIPMENT,FUSION,Centronic Limited,1900060785,4200,CUL14168,
United Kingdom Atomic Energy Authority,United Kingdom Atomic Energy Authority,18/03/2015,PLANT SPARES,FUSION,CHELL INSTRUMENTS LTD,5100318761,351.5,,
United Kingdom Atomic Energy Authority,United Kingdom Atomic Energy Authority,09/03/2015,REPAIRS & MAINTENANCE,FUSION,CHUBB ELECTRONIC SECURITY LTD,5100316735,165.25,,
United Kingdom Atomic Energy Authority,United Kingdom Atomic Energy Authority,09/03/2015,REPAIRS & MAINTENANCE,FUSION,CHUBB ELECTRONIC SECURITY LTD,5100316736,144.5,,
United Kingdom Atomic Energy Authority,United Kingdom Atomic Energy Authority,09/03/2015,REPAIRS & MAINTENANCE,FUSION,CHUBB ELECTRONIC SECURITY LTD,5100318118,40,,
United Kingdom Atomic Energy Authority,United Kingdom Atomic Energy Authority,09/03/2015,REPAIRS & MAINTENANCE,FUSION,CHUBB ELECTRONIC SECURITY LTD,5100318358,-82.63,,
United Kingdom Atomic Energy Authority,United Kingdom Atomic Energy Authority,23/03/2015,MATERIALS & SPARES,FUSION,CITY ELECTRICAL FACTORS,5100318197,1198.17,,
United Kingdom Atomic Energy Authority,United Kingdom Atomic Energy Authority,25/02/2015,MATERIALS & SPARES,FUSION,CITY ELECTRICAL FACTORS,5100316589,24.67,,
United Kingdom Atomic Energy Authority,United Kingdom Atomic Energy Authority,09/03/2015,MATERIALS & SPARES,FUSION,CITY ELECTRICAL FACTORS,5100318195,21.52,,
United Kingdom Atomic Energy Authority,United Kingdom Atomic Energy Authority,09/03/2015,MATERIALS & SPARES,FUSION,CITY ELECTRICAL FACTORS,5100318196,36.9,,
United Kingdom Atomic Energy Authority,United Kingdom Atomic Energy Authority,09/03/2015,MATERIALS & SPARES,FUSION,CITY ELECTRICAL FACTORS,5100318198,387.39,,
United Kingdom Atomic Energy Authority,United Kingdom Atomic Energy Authority,02/03/2015,LAUNDRY,FUSION,CLEAN LINEN SERVICES LTD,5100317870,76.92,,
United Kingdom Atomic Energy Authority,United Kingdom Atomic Energy Authority,18/03/2015,UTILITIES/GAS,PROPERTY,COFELY LTD,5100315345,4275.19,,
United Kingdom Atomic Energy Authority,United Kingdom Atomic Energy Authority,25/02/2015,UTILITIES/GAS,PROPERTY,COFELY LTD,5100315346,67668.47,,
United Kingdom Atomic Energy Authority,United Kingdom Atomic Energy Authority,25/02/2015,UTILITIES/GAS,PROPERTY,COFELY LTD,5100317545,-67668.47,,
United Kingdom Atomic Energy Authority,United Kingdom Atomic Energy Authority,02/03/2015,UTILITIES/GAS,PROPERTY,COFELY LTD,5100317734,20911.5,,
United Kingdom Atomic Energy Authority,United Kingdom Atomic Energy Authority,16/03/2015,UTILITIES/GAS,PROPERTY,COFELY LTD,5100318762,91409.05,,
United Kingdom Atomic Energy Authority,United Kingdom Atomic Energy Authority,16/03/2015,UTILITIES/GAS,PROPERTY,COFELY LTD,5100318763,5775.08,,
United Kingdom Atomic Energy Authority,United Kingdom Atomic Energy Authority,16/03/2015,UTILITIES/GAS,PROPERTY,COFELY LTD,5100318764,3197.67,,
United Kingdom Atomic Energy Authority,United Kingdom Atomic Energy Authority,16/03/2015,UTILITIES/GAS,PROPERTY,COFELY LTD,5100318765,50613.4,,
United Kingdom Atomic Energy Authority,United Kingdom Atomic Energy Authority,18/03/2015,UTILITIES/GAS,PROPERTY,COFELY LTD,5100318954,-4275.19,,
United Kingdom Atomic Energy Authority,United Kingdom Atomic Energy Authority,09/03/2015,MATERIALS & SPARES,FUSION,COMPLETE PCB SERVICES LTD,5100317994,761.5,,
United Kingdom Atomic Energy Authority,United Kingdom Atomic Energy Authority,16/03/2015,MATERIALS & SPARES,FUSION,COMPLETE PCB SERVICES LTD,5100318692,241,,
United Kingdom Atomic Energy Authority,United Kingdom Atomic Energy Authority,25/03/2015,MATERIALS & SPARES,FUSION,COMPLETE PCB SERVICES LTD,5100319158,689.24,,
United Kingdom Atomic Energy Authority,United Kingdom Atomic Energy Authority,25/02/2015,MATERIALS & SPARES,FUSION,COMPLETE PCB SERVICES LTD,5100317689,1075.32,,
United Kingdom Atomic Energy Authority,United Kingdom Atomic Energy Authority,16/03/2015,MATERIALS & SPARES,FUSION,COMPLETE PCB SERVICES LTD,5100318465,138.05,,
United Kingdom Atomic Energy Authority,United Kingdom Atomic Energy Authority,25/02/2015,PLANT SPARES,FUSION,CONDEC INDUSTRIAL MAINTENANCE,5100317732,1964,,
United Kingdom Atomic Energy Authority,United Kingdom Atomic Energy Authority,11/03/2015,PLANT SPARES,FUSION,CONDEC INDUSTRIAL MAINTENANCE,5100318326,175,,
United Kingdom Atomic Energy Authority,United Kingdom Atomic Energy Authority,02/03/2015,UNIVERSITY PLACEMENT,FUSION,Coventry University,5100317827,9807.5,,
United Kingdom Atomic Energy Authority,United Kingdom Atomic Energy Authority,02/03/2015,MATERIALS & SPARES,FUSION,CPC PLC,5100317943,124.7,,
United Kingdom Atomic Energy Authority,United Kingdom Atomic Energy Authority,18/03/2015,MATERIALS & SPARES,FUSION,CPC PLC,5100318825,41.35,,
United Kingdom Atomic Energy Authority,United Kingdom Atomic Energy Authority,25/03/2015,MATERIALS & SPARES,FUSION,CPC PLC,5100319152,34.89,,
United Kingdom Atomic Energy Authority,United Kingdom Atomic Energy Authority,16/03/2015,MATERIALS & SPARES,FUSION,CPC PLC,5100318643,78.64,,
United Kingdom Atomic Energy Authority,United Kingdom Atomic Energy Authority,11/03/2015,MATERIALS & SPARES,FUSION,CPC PLC,5100318644,34.17,,
United Kingdom Atomic Energy Authority,United Kingdom Atomic Energy Authority,11/03/2015,MATERIALS & SPARES,FUSION,CPC PLC,5100318642,70.06,,
United Kingdom Atomic Energy Authority,United Kingdom Atomic Energy Authority,25/02/2015,MATERIALS & SPARES,FUSION,CPC PLC,5100317612,5.92,,
United Kingdom Atomic Energy Authority,United Kingdom Atomic Energy Authority,09/03/2015,MATERIALS & SPARES,FUSION,CPC PLC,5100318433,196,,
United Kingdom Atomic Energy Authority,United Kingdom Atomic Energy Authority,19/03/2015,MATERIALS & SPARES,FUSION,CPL Ness Heatshrink,1900060801,101.64,CUL14182,
United Kingdom Atomic Energy Authority,United Kingdom Atomic Energy Authority,25/03/2015,SOFTWARE - NON-CAP,FUSION,CPO Ltd,1900060809,3750,CUL14191,
United Kingdom Atomic Energy Authority,United Kingdom Atomic Energy Authority,11/03/2015,PLANT & EQUIPMENT,FUSION,CRDM LIMITED,5100318427,1560,,
United Kingdom Atomic Energy Authority,United Kingdom Atomic Energy Authority,25/03/2015,PLANT & EQUIPMENT,FUSION,CRDM LIMITED,5100319297,600,,
United Kingdom Atomic Energy Authority,United Kingdom Atomic Energy Authority,25/02/2015,PLANT & EQUIPMENT,FUSION,CRDM LIMITED,5100317483,7111.5,,
United Kingdom Atomic Energy Authority,United Kingdom Atomic Energy Authority,02/03/2015,BOOKS & PUBLICATIONS,FUSION,Criterion Partnership Business Psychologists,1900060758,216,CUL14142,
United Kingdom Atomic Energy Authority,United Kingdom Atomic Energy Authority,25/02/2015,MATERIALS & SPARES,FUSION,CROMWELL LTD,5100317266,332.1,,
United Kingdom Atomic Energy Authority,United Kingdom Atomic Energy Authority,18/03/2015,MATERIALS & SPARES,FUSION,CROMWELL LTD,5100317268,79.57,,
United Kingdom Atomic Energy Authority,United Kingdom Atomic Energy Authority,25/02/2015,MATERIALS & SPARES,FUSION,CROMWELL LTD,5100317616,274.8,,
United Kingdom Atomic Energy Authority,United Kingdom Atomic Energy Authority,25/02/2015,MATERIALS & SPARES,FUSION,CROMWELL LTD,5100317624,36,,
United Kingdom Atomic Energy Authority,United Kingdom Atomic Energy Authority,25/02/2015,MATERIALS & SPARES,FUSION,CROMWELL LTD,5100317626,354.77,,
United Kingdom Atomic Energy Authority,United Kingdom Atomic Energy Authority,18/03/2015,MATERIALS & SPARES,FUSION,CROMWELL LTD,5100318395,157.6,,
United Kingdom Atomic Energy Authority,United Kingdom Atomic Energy Authority,09/03/2015,MATERIALS & SPARES,FUSION,CROMWELL LTD,5100318401,70.86,,
United Kingdom Atomic Energy Authority,United Kingdom Atomic Energy Authority,23/03/2015,MATERIALS & SPARES,FUSION,CROMWELL LTD,5100319099,111.08,,
United Kingdom Atomic Energy Authority,United Kingdom Atomic Energy Authority,02/03/2015,MATERIALS & SPARES,FUSION,CROMWELL LTD,5100317880,34.75,,
United Kingdom Atomic Energy Authority,United Kingdom Atomic Energy Authority,09/03/2015,MATERIALS & SPARES,FUSION,CROMWELL LTD,5100318404,112.25,,
United Kingdom Atomic Energy Authority,United Kingdom Atomic Energy Authority,25/02/2015,MATERIALS & SPARES,FUSION,CROMWELL LTD,5100317622,397.62,,
United Kingdom Atomic Energy Authority,United Kingdom Atomic Energy Authority,09/03/2015,MATERIALS & SPARES,FUSION,CROMWELL LTD,5100318396,177,,
United Kingdom Atomic Energy Authority,United Kingdom Atomic Energy Authority,16/03/2015,MATERIALS & SPARES,FUSION,CROMWELL LTD,5100318731,265.5,,
United Kingdom Atomic Energy Authority,United Kingdom Atomic Energy Authority,23/03/2015,MATERIALS & SPARES,FUSION,CROMWELL LTD,5100319090,187.64,,
United Kingdom Atomic Energy Authority,United Kingdom Atomic Energy Authority,23/03/2015,MATERIALS & SPARES,FUSION,CROMWELL LTD,5100319091,32.81,,
United Kingdom Atomic Energy Authority,United Kingdom Atomic Energy Authority,23/03/2015,MATERIALS & SPARES,FUSION,CROMWELL LTD,5100319093,52.48,,
United Kingdom Atomic Energy Authority,United Kingdom Atomic Energy Authority,04/03/2015,MATERIALS & SPARES,FUSION,CROMWELL LTD,5100317877,322.46,,
United Kingdom Atomic Energy Authority,United Kingdom Atomic Energy Authority,02/03/2015,MATERIALS & SPARES,FUSION,CROMWELL LTD,5100317884,306.5,,
United Kingdom Atomic Energy Authority,United Kingdom Atomic Energy Authority,18/03/2015,MATERIALS & SPARES,FUSION,CROMWELL LTD,5100318732,115.5,,
United Kingdom Atomic Energy Authority,United Kingdom Atomic Energy Authority,02/03/2015,MATERIALS & SPARES,FUSION,CROMWELL LTD,5100317886,9.1,,
United Kingdom Atomic Energy Authority,United Kingdom Atomic Energy Authority,11/03/2015,MATERIALS & SPARES,FUSION,CROMWELL LTD,5100318398,57.41,,
United Kingdom Atomic Energy Authority,United Kingdom Atomic Energy Authority,11/03/2015,MATERIALS & SPARES,FUSION,CROMWELL LTD,5100318402,80.95,,
United Kingdom Atomic Energy Authority,United Kingdom Atomic Energy Authority,25/02/2015,MATERIALS & SPARES,FUSION,CROMWELL LTD,5100317630,259.1,,
United Kingdom Atomic Energy Authority,United Kingdom Atomic Energy Authority,25/02/2015,MATERIALS & SPARES,FUSION,CROMWELL LTD,5100317631,64.99,,
United Kingdom Atomic Energy Authority,United Kingdom Atomic Energy Authority,25/02/2015,MATERIALS & SPARES,FUSION,CROMWELL LTD,5100317617,5.28,,
United Kingdom Atomic Energy Authority,United Kingdom Atomic Energy Authority,25/02/2015,MATERIALS & SPARES,FUSION,CROMWELL LTD,5100317625,57.6,,
United Kingdom Atomic Energy Authority,United Kingdom Atomic Energy Authority,02/03/2015,MATERIALS & SPARES,FUSION,CROMWELL LTD,5100317882,169.98,,
United Kingdom Atomic Energy Authority,United Kingdom Atomic Energy Authority,23/03/2015,MATERIALS & SPARES,FUSION,CROMWELL LTD,5100319094,75.38,,
United Kingdom Atomic Energy Authority,United Kingdom Atomic Energy Authority,25/02/2015,MATERIALS & SPARES,FUSION,CROMWELL LTD,5100317627,13.55,,
United Kingdom Atomic Energy Authority,United Kingdom Atomic Energy Authority,02/03/2015,MATERIALS & SPARES,FUSION,CROMWELL LTD,5100317875,16.22,,
United Kingdom Atomic Energy Authority,United Kingdom Atomic Energy Authority,02/03/2015,MATERIALS & SPARES,FUSION,CROMWELL LTD,5100317879,188.8,,
United Kingdom Atomic Energy Authority,United Kingdom Atomic Energy Authority,02/03/2015,MATERIALS & SPARES,FUSION,CROMWELL LTD,5100317885,270.5,,
United Kingdom Atomic Energy Authority,United Kingdom Atomic Energy Authority,09/03/2015,MATERIALS & SPARES,FUSION,CROMWELL LTD,5100318403,21.89,,
United Kingdom Atomic Energy Authority,United Kingdom Atomic Energy Authority,25/03/2015,MATERIALS & SPARES,FUSION,CROMWELL LTD,5100319095,105.76,,
United Kingdom Atomic Energy Authority,United Kingdom Atomic Energy Authority,23/03/2015,MATERIALS & SPARES,FUSION,CROMWELL LTD,5100319096,22.32,,
United Kingdom Atomic Energy Authority,United Kingdom Atomic Energy Authority,25/02/2015,MATERIALS & SPARES,FUSION,CROMWELL LTD,5100317629,31,,
United Kingdom Atomic Energy Authority,United Kingdom Atomic Energy Authority,25/02/2015,MATERIALS & SPARES,FUSION,CROMWELL LTD,5100317619,63.4,,
United Kingdom Atomic Energy Authority,United Kingdom Atomic Energy Authority,02/03/2015,MATERIALS & SPARES,FUSION,CROMWELL LTD,5100317887,591.97,,
United Kingdom Atomic Energy Authority,United Kingdom Atomic Energy Authority,09/03/2015,MATERIALS & SPARES,FUSION,CROMWELL LTD,5100318400,107.48,,
United Kingdom Atomic Energy Authority,United Kingdom Atomic Energy Authority,16/03/2015,MATERIALS & SPARES,FUSION,CROMWELL LTD,5100318735,67.5,,
United Kingdom Atomic Energy Authority,United Kingdom Atomic Energy Authority,18/03/2015,MATERIALS & SPARES,FUSION,CROMWELL LTD,5100318736,88.32,,
United Kingdom Atomic Energy Authority,United Kingdom Atomic Energy Authority,25/02/2015,MATERIALS & SPARES,FUSION,CROMWELL LTD,5100317620,98.19,,
United Kingdom Atomic Energy Authority,United Kingdom Atomic Energy Authority,16/03/2015,MATERIALS & SPARES,FUSION,CROMWELL LTD,5100318734,19.58,,
United Kingdom Atomic Energy Authority,United Kingdom Atomic Energy Authority,09/03/2015,MATERIALS & SPARES,FUSION,CROSSMAN ENGINEERING,5100318138,514,,
United Kingdom Atomic Energy Authority,United Kingdom Atomic Energy Authority,18/03/2015,MATERIALS & SPARES,FUSION,CROSSMAN ENGINEERING,5100318818,159,,
United Kingdom Atomic Energy Authority,United Kingdom Atomic Energy Authority,25/02/2015,REPAIRS & MAINTENANCE,FUSION,CRYO ENGINEERING GMBH,5100317047,9153.34,,
United Kingdom Atomic Energy Authority,United Kingdom Atomic Energy Authority,25/02/2015,REPAIRS & MAINTENANCE,FUSION,CRYO ENGINEERING GMBH,5100317748,7323.99,,
United Kingdom Atomic Energy Authority,United Kingdom Atomic Energy Authority,25/02/2015,PROFESSIONAL SERVICES,SUPPORT SERVICES,CSC COMPUTER SERVICES,5100317439,2503.02,,
United Kingdom Atomic Energy Authority,United Kingdom Atomic Energy Authority,25/02/2015,PROFESSIONAL SERVICES,SUPPORT SERVICES,CSC COMPUTER SERVICES,5100317446,17161.6,,
United Kingdom Atomic Energy Authority,United Kingdom Atomic Energy Authority,25/02/2015,PROFESSIONAL SERVICES,SUPPORT SERVICES,CSC COMPUTER SERVICES,5100317447,30403.01,,
United Kingdom Atomic Energy Authority,United Kingdom Atomic Energy Authority,23/03/2015,PROFESSIONAL SERVICES,SUPPORT SERVICES,CSC COMPUTER SERVICES,5100318962,4741.61,,
United Kingdom Atomic Energy Authority,United Kingdom Atomic Energy Authority,23/03/2015,PROFESSIONAL SERVICES,SUPPORT SERVICES,CSC COMPUTER SERVICES,5100318979,16330.99,,
United Kingdom Atomic Energy Authority,United Kingdom Atomic Energy Authority,23/03/2015,PROFESSIONAL SERVICES,SUPPORT SERVICES,CSC COMPUTER SERVICES,5100318982,17161.6,,
United Kingdom Atomic Energy Authority,United Kingdom Atomic Energy Authority,25/02/2015,PROFESSIONAL SERVICES,SUPPORT SERVICES,CSS WORKSAFE,5100316387,795,,
United Kingdom Atomic Energy Authority,United Kingdom Atomic Energy Authority,25/02/2015,PROFESSIONAL SERVICES,SUPPORT SERVICES,CSS WORKSAFE,5100316707,795,,
United Kingdom Atomic Energy Authority,United Kingdom Atomic Energy Authority,25/02/2015,PROFESSIONAL SERVICES,PROPERTY,CSS WORKSAFE,5100317440,-40.72,,
United Kingdom Atomic Energy Authority,United Kingdom Atomic Energy Authority,25/03/2015,MATERIALS & SPARES,SUPPORT SERVICES,Cut Keys Direct Ltd,5100319207,5.6,,
United Kingdom Atomic Energy Authority,United Kingdom Atomic Energy Authority,25/02/2015,MATERIALS & SPARES,FUSION,Cut Keys Direct Ltd,5100316778,10,,
United Kingdom Atomic Energy Authority,United Kingdom Atomic Energy Authority,02/03/2015,MATERIALS & SPARES,FUSION,Cut Keys Direct Ltd,5100317710,23.2,,
United Kingdom Atomic Energy Authority,United Kingdom Atomic Energy Authority,16/03/2015,MATERIALS & SPARES,FUSION,Cut Keys Direct Ltd,5100318487,5.6,,
United Kingdom Atomic Energy Authority,United Kingdom Atomic Energy Authority,16/03/2015,MATERIALS & SPARES,PROPERTY,Cut Keys Direct Ltd,5100318486,21.56,,
United Kingdom Atomic Energy Authority,United Kingdom Atomic Energy Authority,02/03/2015,PLANT & EQUIPMENT,FUSION,Cutting Edge Diamond Drilling Ltd,5100317788,450,,
United Kingdom Atomic Energy Authority,United Kingdom Atomic Energy Authority,02/03/2015,PLANT SPARES,FUSION,CUTWEL LTD,5100317749,135.99,,
United Kingdom Atomic Energy Authority,United Kingdom Atomic Energy Authority,25/02/2015,PLANT SPARES,FUSION,CUTWEL LTD,5100317750,139,,
United Kingdom Atomic Energy Authority,United Kingdom Atomic Energy Authority,09/03/2015,PLANT SPARES,FUSION,CUTWEL LTD,5100318023,485.36,,
United Kingdom Atomic Energy Authority,United Kingdom Atomic Energy Authority,23/03/2015,CONSUMABLES,FUSION,CYFAS SYSTEMS LTD,5100312887,3665,,
United Kingdom Atomic Energy Authority,United Kingdom Atomic Energy Authority,23/03/2015,CONSUMABLES,FUSION,CYFAS SYSTEMS LTD,5100312888,-3260,,
United Kingdom Atomic Energy Authority,United Kingdom Atomic Energy Authority,23/03/2015,CONSUMABLES,FUSION,CYFAS SYSTEMS LTD,5100319046,-405,,
United Kingdom Atomic Energy Authority,United Kingdom Atomic Energy Authority,11/03/2015,BUILDING REPAIRS,FUSION,D CLOUGH LTD,5100318490,2375.96,,
United Kingdom Atomic Energy Authority,United Kingdom Atomic Energy Authority,09/03/2015,BUILDING REPAIRS,FUSION,D CLOUGH LTD,5100318439,14000,,
United Kingdom Atomic Energy Authority,United Kingdom Atomic Energy Authority,25/02/2015,PLANT & EQUIPMENT,FUSION,D Furnell Plant Services Ltd,5100317589,495,,
United Kingdom Atomic Energy Authority,United Kingdom Atomic Energy Authority,25/02/2015,PLANT & EQUIPMENT,FUSION,D Furnell Plant Services Ltd,5100317590,-495,,
United Kingdom Atomic Energy Authority,United Kingdom Atomic Energy Authority,02/03/2015,PLANT & EQUIPMENT,FUSION,D Furnell Plant Services Ltd,5100317591,495,,
United Kingdom Atomic Energy Authority,United Kingdom Atomic Energy Authority,02/03/2015,MATERIALS & SPARES,FUSION,DAVID BRADLEY ENGINEERING,5100317568,10720,,
United Kingdom Atomic Energy Authority,United Kingdom Atomic Energy Authority,11/03/2015,MATERIALS & SPARES,FUSION,DIDCOT PLANT LTD,5100318392,289,,
United Kingdom Atomic Energy Authority,United Kingdom Atomic Energy Authority,26/03/2015,PLANT & EQUIPMENT,FUSION,DIGIKEY CORPORATION,5100319149,612.15,,
United Kingdom Atomic Energy Authority,United Kingdom Atomic Energy Authority,04/03/2015,PLANT & EQUIPMENT,FUSION,DIGIKEY CORPORATION,5100317601,48.26,,
United Kingdom Atomic Energy Authority,United Kingdom Atomic Energy Authority,04/03/2015,PLANT & EQUIPMENT,FUSION,DIGIKEY CORPORATION,5100317693,148.66,,
United Kingdom Atomic Energy Authority,United Kingdom Atomic Energy Authority,04/03/2015,MATERIALS & SPARES,FUSION,DILO ARMATURAN AND ANLAGEN GMBH,5100317641,941.96,,
United Kingdom Atomic Energy Authority,United Kingdom Atomic Energy Authority,25/02/2015,PROFESSIONAL SERVICES,SUPPORT SERVICES,DISCLOSURE SCOTLAND,5100317507,25,,
United Kingdom Atomic Energy Authority,United Kingdom Atomic Energy Authority,25/03/2015,PROFESSIONAL SERVICES,SUPPORT SERVICES,DISCLOSURE SCOTLAND,5100319135,175,,
United Kingdom Atomic Energy Authority,United Kingdom Atomic Energy Authority,23/03/2015,PAYROLL BUREAU,SUPPORT SERVICES,DOUNREAY SITE RESTORATION LTD,5100319033,2679.77,,
United Kingdom Atomic Energy Authority,United Kingdom Atomic Energy Authority,23/03/2015,PAYROLL BUREAU,SUPPORT SERVICES,DOUNREAY SITE RESTORATION LTD,5100319034,1751.46,,
United Kingdom Atomic Energy Authority,United Kingdom Atomic Energy Authority,02/03/2015,MATERIALS & SPARES,FUSION,DURBIN METAL INDUSTRIES LTD,5100317687,34,,
United Kingdom Atomic Energy Authority,United Kingdom Atomic Energy Authority,02/03/2015,MATERIALS & SPARES,FUSION,DURBIN METAL INDUSTRIES LTD,5100317688,248.8,,
United Kingdom Atomic Energy Authority,United Kingdom Atomic Energy Authority,02/03/2015,MATERIALS & SPARES,FUSION,DURBIN METAL INDUSTRIES LTD,5100317729,123.5,,
United Kingdom Atomic Energy Authority,United Kingdom Atomic Energy Authority,09/03/2015,MATERIALS & SPARES,FUSION,DURBIN METAL INDUSTRIES LTD,5100318028,31.9,,
United Kingdom Atomic Energy Authority,United Kingdom Atomic Energy Authority,16/03/2015,MATERIALS & SPARES,FUSION,DURBIN METAL INDUSTRIES LTD,5100318463,78.5,,
United Kingdom Atomic Energy Authority,United Kingdom Atomic Energy Authority,16/03/2015,MATERIALS & SPARES,FUSION,DURBIN METAL INDUSTRIES LTD,5100318464,51.25,,
United Kingdom Atomic Energy Authority,United Kingdom Atomic Energy Authority,18/03/2015,MATERIALS & SPARES,FUSION,DURBIN METAL INDUSTRIES LTD,5100318694,58.5,,
United Kingdom Atomic Energy Authority,United Kingdom Atomic Energy Authority,18/03/2015,MATERIALS & SPARES,FUSION,DURBIN METAL INDUSTRIES LTD,5100318695,21.75,,
United Kingdom Atomic Energy Authority,United Kingdom Atomic Energy Authority,18/03/2015,MATERIALS & SPARES,FUSION,DURBIN METAL INDUSTRIES LTD,5100318697,42.75,,
United Kingdom Atomic Energy Authority,United Kingdom Atomic Energy Authority,23/03/2015,MATERIALS & SPARES,FUSION,DURBIN METAL INDUSTRIES LTD,5100318899,28.32,,
United Kingdom Atomic Energy Authority,United Kingdom Atomic Energy Authority,23/03/2015,MATERIALS & SPARES,FUSION,DURBIN METAL INDUSTRIES LTD,5100318900,124.8,,
United Kingdom Atomic Energy Authority,United Kingdom Atomic Energy Authority,23/03/2015,MATERIALS & SPARES,FUSION,DURBIN METAL INDUSTRIES LTD,5100319035,30,,
United Kingdom Atomic Energy Authority,United Kingdom Atomic Energy Authority,09/03/2015,UTILITIES/ELECTRICITY,FUSION,EDF ENERGY,5100318377,56961.17,,
United Kingdom Atomic Energy Authority,United Kingdom Atomic Energy Authority,25/02/2015,UTILITIES/ELECTRICITY,PROPERTY,EDF ENERGY,5100317377,68.01,,
United Kingdom Atomic Energy Authority,United Kingdom Atomic Energy Authority,09/03/2015,UTILITIES/ELECTRICITY,PROPERTY,EDF ENERGY,5100318361,3790.79,,
United Kingdom Atomic Energy Authority,United Kingdom Atomic Energy Authority,09/03/2015,UTILITIES/ELECTRICITY,PROPERTY,EDF ENERGY,5100318362,7436.39,,
United Kingdom Atomic Energy Authority,United Kingdom Atomic Energy Authority,09/03/2015,UTILITIES/ELECTRICITY,PROPERTY,EDF ENERGY,5100318363,23568.56,,
United Kingdom Atomic Energy Authority,United Kingdom Atomic Energy Authority,09/03/2015,UTILITIES/ELECTRICITY,PROPERTY,EDF ENERGY,5100318364,1.44,,
United Kingdom Atomic Energy Authority,United Kingdom Atomic Energy Authority,09/03/2015,UTILITIES/ELECTRICITY,PROPERTY,EDF ENERGY,5100318365,2916.05,,
United Kingdom Atomic Energy Authority,United Kingdom Atomic Energy Authority,09/03/2015,UTILITIES/ELECTRICITY,PROPERTY,EDF ENERGY,5100318366,0.52,,
United Kingdom Atomic Energy Authority,United Kingdom Atomic Energy Authority,09/03/2015,UTILITIES/ELECTRICITY,PROPERTY,EDF ENERGY,5100318369,1378.49,,
United Kingdom Atomic Energy Authority,United Kingdom Atomic Energy Authority,09/03/2015,UTILITIES/ELECTRICITY,PROPERTY,EDF ENERGY,5100318370,21216.09,,
United Kingdom Atomic Energy Authority,United Kingdom Atomic Energy Authority,09/03/2015,UTILITIES/ELECTRICITY,PROPERTY,EDF ENERGY,5100318371,753.3,,
United Kingdom Atomic Energy Authority,United Kingdom Atomic Energy Authority,09/03/2015,UTILITIES/ELECTRICITY,PROPERTY,EDF ENERGY,5100318373,0.34,,
United Kingdom Atomic Energy Authority,United Kingdom Atomic Energy Authority,09/03/2015,UTILITIES/ELECTRICITY,PROPERTY,EDF ENERGY,5100318374,63.84,,
United Kingdom Atomic Energy Authority,United Kingdom Atomic Energy Authority,09/03/2015,UTILITIES/ELECTRICITY,PROPERTY,EDF ENERGY,5100318376,270.33,,
United Kingdom Atomic Energy Authority,United Kingdom Atomic Energy Authority,25/02/2015,PROFESSIONAL SERVICES,FUSION,EDM PRECISION TECHNOLOGIES,5100317733,1474.2,,
United Kingdom Atomic Energy Authority,United Kingdom Atomic Energy Authority,16/03/2015,PROFESSIONAL SERVICES,FUSION,EDM PRECISION TECHNOLOGIES,5100318699,516.2,,
United Kingdom Atomic Energy Authority,United Kingdom Atomic Energy Authority,25/02/2015,MATERIALS & SPARES,FUSION,EDMUND OPTICS LTD,5100317567,380,,
United Kingdom Atomic Energy Authority,United Kingdom Atomic Energy Authority,18/03/2015,PLANT & EQUIPMENT,FUSION,EDMUNDSON ELECTRICALS LTD,5100318820,105.24,,
United Kingdom Atomic Energy Authority,United Kingdom Atomic Energy Authority,02/03/2015,PLANT & EQUIPMENT,FUSION,EDMUNDSON ELECTRICALS LTD,5100317849,894.8,,
United Kingdom Atomic Energy Authority,United Kingdom Atomic Energy Authority,23/03/2015,PLANT & EQUIPMENT,FUSION,EDMUNDSON ELECTRICALS LTD,5100318883,29.26,,
United Kingdom Atomic Energy Authority,United Kingdom Atomic Energy Authority,09/03/2015,PLANT & EQUIPMENT,FUSION,EDMUNDSON ELECTRICALS LTD,5100318415,77.3,,
United Kingdom Atomic Energy Authority,United Kingdom Atomic Energy Authority,16/03/2015,PLANT & EQUIPMENT,FUSION,EDMUNDSON ELECTRICALS LTD,5100318726,34.44,,
United Kingdom Atomic Energy Authority,United Kingdom Atomic Energy Authority,18/03/2015,PLANT & EQUIPMENT,FUSION,EDMUNDSON ELECTRICALS LTD,5100318823,7.9,,
United Kingdom Atomic Energy Authority,United Kingdom Atomic Energy Authority,25/02/2015,PLANT & EQUIPMENT,FUSION,EDMUNDSON ELECTRICALS LTD,5100317344,33.87,,
United Kingdom Atomic Energy Authority,United Kingdom Atomic Energy Authority,25/02/2015,PLANT & EQUIPMENT,FUSION,EDMUNDSON ELECTRICALS LTD,5100317555,495.31,,
United Kingdom Atomic Energy Authority,United Kingdom Atomic Energy Authority,25/02/2015,PLANT & EQUIPMENT,FUSION,EDMUNDSON ELECTRICALS LTD,5100317557,9.47,,
United Kingdom Atomic Energy Authority,United Kingdom Atomic Energy Authority,25/02/2015,PLANT & EQUIPMENT,FUSION,EDMUNDSON ELECTRICALS LTD,5100317558,61.02,,
United Kingdom Atomic Energy Authority,United Kingdom Atomic Energy Authority,25/02/2015,PLANT & EQUIPMENT,FUSION,EDMUNDSON ELECTRICALS LTD,5100317611,-21.7,,
United Kingdom Atomic Energy Authority,United Kingdom Atomic Energy Authority,04/03/2015,PLANT & EQUIPMENT,FUSION,EDMUNDSON ELECTRICALS LTD,5100317614,608.31,,
United Kingdom Atomic Energy Authority,United Kingdom Atomic Energy Authority,25/02/2015,PLANT & EQUIPMENT,FUSION,EDMUNDSON ELECTRICALS LTD,5100317694,130,,
United Kingdom Atomic Energy Authority,United Kingdom Atomic Energy Authority,04/03/2015,PLANT & EQUIPMENT,FUSION,EDMUNDSON ELECTRICALS LTD,5100317774,46.35,,
United Kingdom Atomic Energy Authority,United Kingdom Atomic Energy Authority,04/03/2015,PLANT & EQUIPMENT,FUSION,EDMUNDSON ELECTRICALS LTD,5100317857,75,,
United Kingdom Atomic Energy Authority,United Kingdom Atomic Energy Authority,04/03/2015,PLANT & EQUIPMENT,FUSION,EDMUNDSON ELECTRICALS LTD,5100317945,5.15,,
United Kingdom Atomic Energy Authority,United Kingdom Atomic Energy Authority,04/03/2015,PLANT & EQUIPMENT,FUSION,EDMUNDSON ELECTRICALS LTD,5100317947,50.5,,
United Kingdom Atomic Energy Authority,United Kingdom Atomic Energy Authority,09/03/2015,PLANT & EQUIPMENT,FUSION,EDMUNDSON ELECTRICALS LTD,5100318145,384,,
United Kingdom Atomic Energy Authority,United Kingdom Atomic Energy Authority,09/03/2015,PLANT & EQUIPMENT,FUSION,EDMUNDSON ELECTRICALS LTD,5100318147,235.53,,
United Kingdom Atomic Energy Authority,United Kingdom Atomic Energy Authority,09/03/2015,PLANT & EQUIPMENT,FUSION,EDMUNDSON ELECTRICALS LTD,5100318149,49.11,,
United Kingdom Atomic Energy Authority,United Kingdom Atomic Energy Authority,18/03/2015,PLANT & EQUIPMENT,FUSION,EDMUNDSON ELECTRICALS LTD,5100318420,375,,
United Kingdom Atomic Energy Authority,United Kingdom Atomic Energy Authority,16/03/2015,PLANT & EQUIPMENT,FUSION,EDMUNDSON ELECTRICALS LTD,5100318729,338.16,,
United Kingdom Atomic Energy Authority,United Kingdom Atomic Energy Authority,23/03/2015,PLANT & EQUIPMENT,FUSION,EDMUNDSON ELECTRICALS LTD,5100318874,2017.37,,
United Kingdom Atomic Energy Authority,United Kingdom Atomic Energy Authority,23/03/2015,PLANT & EQUIPMENT,FUSION,EDMUNDSON ELECTRICALS LTD,5100318875,49.24,,
United Kingdom Atomic Energy Authority,United Kingdom Atomic Energy Authority,23/03/2015,PLANT & EQUIPMENT,FUSION,EDMUNDSON ELECTRICALS LTD,5100318878,8.01,,
United Kingdom Atomic Energy Authority,United Kingdom Atomic Energy Authority,23/03/2015,PLANT & EQUIPMENT,FUSION,EDMUNDSON ELECTRICALS LTD,5100318880,444.17,,
United Kingdom Atomic Energy Authority,United Kingdom Atomic Energy Authority,23/03/2015,PLANT & EQUIPMENT,FUSION,EDMUNDSON ELECTRICALS LTD,5100318990,1345.28,,
United Kingdom Atomic Energy Authority,United Kingdom Atomic Energy Authority,23/03/2015,PLANT & EQUIPMENT,FUSION,EDMUNDSON ELECTRICALS LTD,5100318993,580.61,,
United Kingdom Atomic Energy Authority,United Kingdom Atomic Energy Authority,25/02/2015,PLANT & EQUIPMENT,FUSION,EDMUNDSON ELECTRICALS LTD,5100317613,6523.18,,
United Kingdom Atomic Energy Authority,United Kingdom Atomic Energy Authority,18/03/2015,PLANT & EQUIPMENT,FUSION,EDMUNDSON ELECTRICALS LTD,5100318821,4264.87,,
United Kingdom Atomic Energy Authority,United Kingdom Atomic Energy Authority,23/03/2015,PLANT & EQUIPMENT,FUSION,EDMUNDSON ELECTRICALS LTD,5100318884,182.21,,
United Kingdom Atomic Energy Authority,United Kingdom Atomic Energy Authority,25/02/2015,PLANT & EQUIPMENT,FUSION,EDMUNDSON ELECTRICALS LTD,5100317556,813.42,,
United Kingdom Atomic Energy Authority,United Kingdom Atomic Energy Authority,25/02/2015,PLANT & EQUIPMENT,FUSION,EDMUNDSON ELECTRICALS LTD,5100317559,86.98,,
United Kingdom Atomic Energy Authority,United Kingdom Atomic Energy Authority,25/02/2015,PLANT & EQUIPMENT,FUSION,EDMUNDSON ELECTRICALS LTD,5100317615,394.74,,
United Kingdom Atomic Energy Authority,United Kingdom Atomic Energy Authority,25/02/2015,PLANT & EQUIPMENT,FUSION,EDMUNDSON ELECTRICALS LTD,5100317695,61.19,,
United Kingdom Atomic Energy Authority,United Kingdom Atomic Energy Authority,25/02/2015,PLANT & EQUIPMENT,FUSION,EDMUNDSON ELECTRICALS LTD,5100317696,42.35,,
United Kingdom Atomic Energy Authority,United Kingdom Atomic Energy Authority,25/02/2015,PLANT & EQUIPMENT,FUSION,EDMUNDSON ELECTRICALS LTD,5100317697,394.74,,
United Kingdom Atomic Energy Authority,United Kingdom Atomic Energy Authority,25/02/2015,PLANT & EQUIPMENT,FUSION,EDMUNDSON ELECTRICALS LTD,5100317698,523.03,,
United Kingdom Atomic Energy Authority,United Kingdom Atomic Energy Authority,02/03/2015,PLANT & EQUIPMENT,FUSION,EDMUNDSON ELECTRICALS LTD,5100317773,304.85,,
United Kingdom Atomic Energy Authority,United Kingdom Atomic Energy Authority,18/03/2015,PLANT & EQUIPMENT,FUSION,EDMUNDSON ELECTRICALS LTD,5100317853,176,,
United Kingdom Atomic Energy Authority,United Kingdom Atomic Energy Authority,02/03/2015,PLANT & EQUIPMENT,FUSION,EDMUNDSON ELECTRICALS LTD,5100317856,45.54,,
United Kingdom Atomic Energy Authority,United Kingdom Atomic Energy Authority,02/03/2015,PLANT & EQUIPMENT,FUSION,EDMUNDSON ELECTRICALS LTD,5100317946,7.59,,
United Kingdom Atomic Energy Authority,United Kingdom Atomic Energy Authority,02/03/2015,PLANT & EQUIPMENT,FUSION,EDMUNDSON ELECTRICALS LTD,5100317976,343,,
United Kingdom Atomic Energy Authority,United Kingdom Atomic Energy Authority,09/03/2015,PLANT & EQUIPMENT,FUSION,EDMUNDSON ELECTRICALS LTD,5100318143,263.19,,
United Kingdom Atomic Energy Authority,United Kingdom Atomic Energy Authority,09/03/2015,PLANT & EQUIPMENT,FUSION,EDMUNDSON ELECTRICALS LTD,5100318162,81.85,,
United Kingdom Atomic Energy Authority,United Kingdom Atomic Energy Authority,09/03/2015,PLANT & EQUIPMENT,FUSION,EDMUNDSON ELECTRICALS LTD,5100318268,55.06,,
United Kingdom Atomic Energy Authority,United Kingdom Atomic Energy Authority,09/03/2015,PLANT & EQUIPMENT,FUSION,EDMUNDSON ELECTRICALS LTD,5100318269,130,,
United Kingdom Atomic Energy Authority,United Kingdom Atomic Energy Authority,09/03/2015,PLANT & EQUIPMENT,FUSION,EDMUNDSON ELECTRICALS LTD,5100318399,119.4,,
United Kingdom Atomic Energy Authority,United Kingdom Atomic Energy Authority,09/03/2015,PLANT & EQUIPMENT,FUSION,EDMUNDSON ELECTRICALS LTD,5100318409,396.5,,
United Kingdom Atomic Energy Authority,United Kingdom Atomic Energy Authority,09/03/2015,PLANT & EQUIPMENT,FUSION,EDMUNDSON ELECTRICALS LTD,5100318413,1200,,
United Kingdom Atomic Energy Authority,United Kingdom Atomic Energy Authority,11/03/2015,PLANT & EQUIPMENT,FUSION,EDMUNDSON ELECTRICALS LTD,5100318417,214.36,,
United Kingdom Atomic Energy Authority,United Kingdom Atomic Energy Authority,16/03/2015,PLANT & EQUIPMENT,FUSION,EDMUNDSON ELECTRICALS LTD,5100318725,35.4,,
United Kingdom Atomic Energy Authority,United Kingdom Atomic Energy Authority,16/03/2015,PLANT & EQUIPMENT,FUSION,EDMUNDSON ELECTRICALS LTD,5100318728,167.02,,
United Kingdom Atomic Energy Authority,United Kingdom Atomic Energy Authority,23/03/2015,PLANT & EQUIPMENT,FUSION,EDMUNDSON ELECTRICALS LTD,5100318882,63.16,,
United Kingdom Atomic Energy Authority,United Kingdom Atomic Energy Authority,23/03/2015,PLANT & EQUIPMENT,FUSION,EDMUNDSON ELECTRICALS LTD,5100318991,58.04,,
United Kingdom Atomic Energy Authority,United Kingdom Atomic Energy Authority,25/03/2015,PLANT & EQUIPMENT,FUSION,EDMUNDSON ELECTRICALS LTD,5100319235,314.45,,
United Kingdom Atomic Energy Authority,United Kingdom Atomic Energy Authority,09/03/2015,PLANT & EQUIPMENT,FUSION,EDMUNDSON ELECTRICALS LTD,5100318148,1894.65,,
United Kingdom Atomic Energy Authority,United Kingdom Atomic Energy Authority,09/03/2015,PLANT & EQUIPMENT,FUSION,EDMUNDSON ELECTRICALS LTD,5100318163,1122.87,,
United Kingdom Atomic Energy Authority,United Kingdom Atomic Energy Authority,09/03/2015,PLANT & EQUIPMENT,FUSION,EDMUNDSON ELECTRICALS LTD,5100318164,757.12,,
United Kingdom Atomic Energy Authority,United Kingdom Atomic Energy Authority,16/03/2015,PLANT & EQUIPMENT,FUSION,EDWARDS LIMITED,5100318621,190.4,,
United Kingdom Atomic Energy Authority,United Kingdom Atomic Energy Authority,25/02/2015,F&F,SUPPORT SERVICES,EFG MATTHEWS OFFICE FURNITURE LTD,5100317705,69.75,,
United Kingdom Atomic Energy Authority,United Kingdom Atomic Energy Authority,25/02/2015,F&F,SUPPORT SERVICES,EFG MATTHEWS OFFICE FURNITURE LTD,5100317706,428.5,,
United Kingdom Atomic Energy Authority,United Kingdom Atomic Energy Authority,18/03/2015,F&F,SUPPORT SERVICES,EFG MATTHEWS OFFICE FURNITURE LTD,5100318390,352.5,,
United Kingdom Atomic Energy Authority,United Kingdom Atomic Energy Authority,16/03/2015,F&F,SUPPORT SERVICES,EFG MATTHEWS OFFICE FURNITURE LTD,5100318581,396,,
United Kingdom Atomic Energy Authority,United Kingdom Atomic Energy Authority,18/03/2015,F&F,SUPPORT SERVICES,EFG MATTHEWS OFFICE FURNITURE LTD,5100318805,408,,
United Kingdom Atomic Energy Authority,United Kingdom Atomic Energy Authority,18/03/2015,F&F,SUPPORT SERVICES,EFG MATTHEWS OFFICE FURNITURE LTD,5100318806,428.5,,
United Kingdom Atomic Energy Authority,United Kingdom Atomic Energy Authority,16/03/2015,F&F,FUSION,EFG MATTHEWS OFFICE FURNITURE LTD,5100313901,58,,
United Kingdom Atomic Energy Authority,United Kingdom Atomic Energy Authority,16/03/2015,F&F,FUSION,EFG MATTHEWS OFFICE FURNITURE LTD,5100318685,-58,,
United Kingdom Atomic Energy Authority,United Kingdom Atomic Energy Authority,23/03/2015,F&F,PROPERTY,EFG MATTHEWS OFFICE FURNITURE LTD,5100318970,2660.5,,
United Kingdom Atomic Energy Authority,United Kingdom Atomic Energy Authority,09/03/2015,MATERIALS & SPARES,FUSION,EG Carter and Company Ltd,5100318169,188063.33,,
United Kingdom Atomic Energy Authority,United Kingdom Atomic Energy Authority,11/03/2015,MATERIALS & SPARES,FUSION,ELECTRICAL OIL SERVICES LTD,5100318128,211.61,,
United Kingdom Atomic Energy Authority,United Kingdom Atomic Energy Authority,25/03/2015,MATERIALS & SPARES,FUSION,ELECTRICAL OIL SERVICES LTD,5100319222,122.89,,
United Kingdom Atomic Energy Authority,United Kingdom Atomic Energy Authority,18/03/2015,HEALTH PHYSICS,,Elsievier Science Ltd BV (EU),5100318711,1867.71,,
United Kingdom Atomic Energy Authority,United Kingdom Atomic Energy Authority,24/03/2015,HEALTH PHYSICS,,Elsievier Science Ltd BV (EU),5100319283,-1867.71,,
United Kingdom Atomic Energy Authority,United Kingdom Atomic Energy Authority,24/03/2015,HEALTH PHYSICS,,Elsievier Science Ltd BV (EU),5100319285,2045.13,,
United Kingdom Atomic Energy Authority,United Kingdom Atomic Energy Authority,26/03/2015,TAXIS,SUPPORT SERVICES,Employees Expenses,100762530,12.00,,
United Kingdom Atomic Energy Authority,United Kingdom Atomic Energy Authority,26/03/2015,SUBSISTENCE,SUPPORT SERVICES,Employees Expenses,100762530,4.19,,
United Kingdom Atomic Energy Authority,United Kingdom Atomic Energy Authority,26/03/2015,SUBSISTENCE,SUPPORT SERVICES,Employees Expenses,100762530,4.40,,
United Kingdom Atomic Energy Authority,United Kingdom Atomic Energy Authority,26/03/2015,SUBSISTENCE,SUPPORT SERVICES,Employees Expenses,100762557,6.83,,
United Kingdom Atomic Energy Authority,United Kingdom Atomic Energy Authority,26/03/2015,RAIL TRAVEL,SUPPORT SERVICES,Employees Expenses,100762557,20.00,,
United Kingdom Atomic Energy Authority,United Kingdom Atomic Energy Authority,26/03/2015,ROAD TRAVEL,SUPPORT SERVICES,Employees Expenses,100762530,6.00,,
United Kingdom Atomic Energy Authority,United Kingdom Atomic Energy Authority,26/03/2015,ROAD TRAVEL,SUPPORT SERVICES,Employees Expenses,100762557,10.33,,
United Kingdom Atomic Energy Authority,United Kingdom Atomic Energy Authority,21/03/2015,SUBSISTENCE,SUPPORT SERVICES,Employees Expenses,100762003,9.45,,
United Kingdom Atomic Energy Authority,United Kingdom Atomic Energy Authority,28/02/2015,MILEAGE ALLOWANCE,SUPPORT SERVICES,Employees Expenses,100759023,135.00,,
United Kingdom Atomic Energy Authority,United Kingdom Atomic Energy Authority,08/03/2015,MILEAGE ALLOWANCE,SUPPORT SERVICES,Employees Expenses,100759101,13.50,,
United Kingdom Atomic Energy Authority,United Kingdom Atomic Energy Authority,08/03/2015,MILEAGE ALLOWANCE,SUPPORT SERVICES,Employees Expenses,100759104,45.00,,
United Kingdom Atomic Energy Authority,United Kingdom Atomic Energy Authority,21/03/2015,MILEAGE ALLOWANCE,SUPPORT SERVICES,Employees Expenses,100762021,99.00,,
United Kingdom Atomic Energy Authority,United Kingdom Atomic Energy Authority,21/03/2015,MILEAGE ALLOWANCE,SUPPORT SERVICES,Employees Expenses,100762030,210.60,,
United Kingdom Atomic Energy Authority,United Kingdom Atomic Energy Authority,08/03/2015,PROFESSIONAL SUBSCRIPTION,SUPPORT SERVICES,Employees Expenses,100759107,147.00,,
United Kingdom Atomic Energy Authority,United Kingdom Atomic Energy Authority,21/03/2015,PROFESSIONAL SUBSCRIPTION,SUPPORT SERVICES,Employees Expenses,100761991,140.00,,
United Kingdom Atomic Energy Authority,United Kingdom Atomic Energy Authority,27/03/2015,TRAINING ,FUSION,Employees Expenses,1900060816,25.4,CUL14198,
United Kingdom Atomic Energy Authority,United Kingdom Atomic Energy Authority,27/03/2015,TRAINING ,FUSION,Employees Expenses,1900060817,108.48,CUL14199,
United Kingdom Atomic Energy Authority,United Kingdom Atomic Energy Authority,21/03/2015,MILEAGE ALLOWANCE,FUSION,Employees Expenses,100762031,196.20,,
United Kingdom Atomic Energy Authority,United Kingdom Atomic Energy Authority,21/03/2015,MILEAGE ALLOWANCE,FUSION,Employees Expenses,100762032,28.80,,
United Kingdom Atomic Energy Authority,United Kingdom Atomic Energy Authority,21/03/2015,MILEAGE ALLOWANCE,FUSION,Employees Expenses,100762033,57.60,,
United Kingdom Atomic Energy Authority,United Kingdom Atomic Energy Authority,21/03/2015,MILEAGE ALLOWANCE,FUSION,Employees Expenses,100762034,43.20,,
United Kingdom Atomic Energy Authority,United Kingdom Atomic Energy Authority,26/03/2015,MILEAGE ALLOWANCE,FUSION,Employees Expenses,100762556,153.00,,
United Kingdom Atomic Energy Authority,United Kingdom Atomic Energy Authority,26/03/2015,MILEAGE ALLOWANCE,FUSION,Employees Expenses,100762559,25.20,,
United Kingdom Atomic Energy Authority,United Kingdom Atomic Energy Authority,26/03/2015,ROAD TRAVEL,FUSION,Employees Expenses,100762558,4.17,,
United Kingdom Atomic Energy Authority,United Kingdom Atomic Energy Authority,08/03/2015,MILEAGE ALLOWANCE,FUSION,Employees Expenses,100759102,139.50,,
United Kingdom Atomic Energy Authority,United Kingdom Atomic Energy Authority,26/03/2015,RAIL TRAVEL,FUSION,Employees Expenses,100762544,62.40,,
United Kingdom Atomic Energy Authority,United Kingdom Atomic Energy Authority,08/03/2015,ROAD TRAVEL,FUSION,Employees Expenses,100759102,16.08,,
United Kingdom Atomic Energy Authority,United Kingdom Atomic Energy Authority,26/03/2015,PROFESSIONAL SUBSCRIPTION,FUSION,Employees Expenses,100762544,233.70,,
United Kingdom Atomic Energy Authority,United Kingdom Atomic Energy Authority,13/03/2015,OTHER EMPLOYEE EXPENSES,FUSION,Employees Expenses,100759193,30.00,,
United Kingdom Atomic Energy Authority,United Kingdom Atomic Energy Authority,26/03/2015,SUBSISTENCE,FUSION,Employees Expenses,100762560,335.94,,
United Kingdom Atomic Energy Authority,United Kingdom Atomic Energy Authority,26/03/2015,SUBSISTENCE,FUSION,Employees Expenses,100762560,4.87,,
United Kingdom Atomic Energy Authority,United Kingdom Atomic Energy Authority,08/03/2015,RAIL TRAVEL,FUSION,Employees Expenses,100759109,79.10,,
United Kingdom Atomic Energy Authority,United Kingdom Atomic Energy Authority,08/03/2015,ROAD TRAVEL,FUSION,Employees Expenses,100759109,7.00,,
United Kingdom Atomic Energy Authority,United Kingdom Atomic Energy Authority,26/03/2015,ROAD TRAVEL,FUSION,Employees Expenses,100762560,8.91,,
United Kingdom Atomic Energy Authority,United Kingdom Atomic Energy Authority,28/02/2015,MILEAGE ALLOWANCE,FUSION,Employees Expenses,100759006,66.60,,
United Kingdom Atomic Energy Authority,United Kingdom Atomic Energy Authority,28/02/2015,MILEAGE ALLOWANCE,FUSION,Employees Expenses,100759007,66.60,,
United Kingdom Atomic Energy Authority,United Kingdom Atomic Energy Authority,28/02/2015,MILEAGE ALLOWANCE,FUSION,Employees Expenses,100759008,66.60,,
United Kingdom Atomic Energy Authority,United Kingdom Atomic Energy Authority,28/02/2015,MILEAGE ALLOWANCE,FUSION,Employees Expenses,100759013,58.50,,
United Kingdom Atomic Energy Authority,United Kingdom Atomic Energy Authority,28/02/2015,MILEAGE ALLOWANCE,FUSION,Employees Expenses,100759014,69.75,,
United Kingdom Atomic Energy Authority,United Kingdom Atomic Energy Authority,08/03/2015,MILEAGE ALLOWANCE,FUSION,Employees Expenses,100759088,66.60,,
United Kingdom Atomic Energy Authority,United Kingdom Atomic Energy Authority,08/03/2015,MILEAGE ALLOWANCE,FUSION,Employees Expenses,100759091,58.50,,
United Kingdom Atomic Energy Authority,United Kingdom Atomic Energy Authority,08/03/2015,MILEAGE ALLOWANCE,FUSION,Employees Expenses,100759092,58.50,,
United Kingdom Atomic Energy Authority,United Kingdom Atomic Energy Authority,08/03/2015,MILEAGE ALLOWANCE,FUSION,Employees Expenses,100759093,58.50,,
United Kingdom Atomic Energy Authority,United Kingdom Atomic Energy Authority,08/03/2015,MILEAGE ALLOWANCE,FUSION,Employees Expenses,100759094,69.75,,
United Kingdom Atomic Energy Authority,United Kingdom Atomic Energy Authority,08/03/2015,MILEAGE ALLOWANCE,FUSION,Employees Expenses,100759095,69.75,,
United Kingdom Atomic Energy Authority,United Kingdom Atomic Energy Authority,13/03/2015,MILEAGE ALLOWANCE,FUSION,Employees Expenses,100759186,69.75,,
United Kingdom Atomic Energy Authority,United Kingdom Atomic Energy Authority,21/03/2015,MILEAGE ALLOWANCE,FUSION,Employees Expenses,100762014,58.50,,
United Kingdom Atomic Energy Authority,United Kingdom Atomic Energy Authority,21/03/2015,MILEAGE ALLOWANCE,FUSION,Employees Expenses,100762015,69.75,,
United Kingdom Atomic Energy Authority,United Kingdom Atomic Energy Authority,21/03/2015,MILEAGE ALLOWANCE,FUSION,Employees Expenses,100762019,50.40,,
United Kingdom Atomic Energy Authority,United Kingdom Atomic Energy Authority,26/03/2015,MILEAGE ALLOWANCE,FUSION,Employees Expenses,100762545,66.60,,
United Kingdom Atomic Energy Authority,United Kingdom Atomic Energy Authority,26/03/2015,MILEAGE ALLOWANCE,FUSION,Employees Expenses,100762546,66.60,,
United Kingdom Atomic Energy Authority,United Kingdom Atomic Energy Authority,26/03/2015,MILEAGE ALLOWANCE,FUSION,Employees Expenses,100762547,66.60,,
United Kingdom Atomic Energy Authority,United Kingdom Atomic Energy Authority,28/02/2015,ROAD TRAVEL,FUSION,Employees Expenses,100759014,3.00,,
United Kingdom Atomic Energy Authority,United Kingdom Atomic Energy Authority,08/03/2015,ROAD TRAVEL,FUSION,Employees Expenses,100759094,3.00,,
United Kingdom Atomic Energy Authority,United Kingdom Atomic Energy Authority,08/03/2015,ROAD TRAVEL,FUSION,Employees Expenses,100759095,3.00,,
United Kingdom Atomic Energy Authority,United Kingdom Atomic Energy Authority,13/03/2015,ROAD TRAVEL,FUSION,Employees Expenses,100759186,3.00,,
United Kingdom Atomic Energy Authority,United Kingdom Atomic Energy Authority,21/03/2015,ROAD TRAVEL,FUSION,Employees Expenses,100762015,3.00,,
United Kingdom Atomic Energy Authority,United Kingdom Atomic Energy Authority,08/03/2015,PROFESSIONAL SUBSCRIPTION,FUSION,Employees Expenses,100759075,225.50,,
United Kingdom Atomic Energy Authority,United Kingdom Atomic Energy Authority,13/03/2015,PROFESSIONAL SUBSCRIPTION,FUSION,Employees Expenses,100759184,213.70,,
United Kingdom Atomic Energy Authority,United Kingdom Atomic Energy Authority,21/03/2015,SUBSISTENCE,FUSION,Employees Expenses,100762010,10.00,,
United Kingdom Atomic Energy Authority,United Kingdom Atomic Energy Authority,21/03/2015,SUBSISTENCE,FUSION,Employees Expenses,100762011,10.00,,
United Kingdom Atomic Energy Authority,United Kingdom Atomic Energy Authority,21/03/2015,SUBSISTENCE,FUSION,Employees Expenses,100762012,10.00,,
United Kingdom Atomic Energy Authority,United Kingdom Atomic Energy Authority,21/03/2015,SUBSISTENCE,FUSION,Employees Expenses,100762013,10.00,,
United Kingdom Atomic Energy Authority,United Kingdom Atomic Energy Authority,21/03/2015,RAIL TRAVEL,FUSION,Employees Expenses,100762010,37.50,,
United Kingdom Atomic Energy Authority,United Kingdom Atomic Energy Authority,21/03/2015,RAIL TRAVEL,FUSION,Employees Expenses,100762011,37.50,,
United Kingdom Atomic Energy Authority,United Kingdom Atomic Energy Authority,21/03/2015,RAIL TRAVEL,FUSION,Employees Expenses,100762012,37.50,,
United Kingdom Atomic Energy Authority,United Kingdom Atomic Energy Authority,21/03/2015,RAIL TRAVEL,FUSION,Employees Expenses,100762013,37.50,,
United Kingdom Atomic Energy Authority,United Kingdom Atomic Energy Authority,21/03/2015,ROAD TRAVEL,FUSION,Employees Expenses,100762010,6.25,,
United Kingdom Atomic Energy Authority,United Kingdom Atomic Energy Authority,21/03/2015,ROAD TRAVEL,FUSION,Employees Expenses,100762011,5.21,,
United Kingdom Atomic Energy Authority,United Kingdom Atomic Energy Authority,21/03/2015,ROAD TRAVEL,FUSION,Employees Expenses,100762012,5.21,,
United Kingdom Atomic Energy Authority,United Kingdom Atomic Energy Authority,21/03/2015,ROAD TRAVEL,FUSION,Employees Expenses,100762013,5.21,,
United Kingdom Atomic Energy Authority,United Kingdom Atomic Energy Authority,26/03/2015,PROFESSIONAL SUBSCRIPTION,FUSION,Employees Expenses,100762552,112.00,,
United Kingdom Atomic Energy Authority,United Kingdom Atomic Energy Authority,08/03/2015,SUBSISTENCE,FUSION,Employees Expenses,100759078,12.65,,
United Kingdom Atomic Energy Authority,United Kingdom Atomic Energy Authority,08/03/2015,MILEAGE ALLOWANCE,FUSION,Employees Expenses,100759078,57.60,,
United Kingdom Atomic Energy Authority,United Kingdom Atomic Energy Authority,26/03/2015,ROAD TRAVEL,FUSION,Employees Expenses,100762536,16.01,,
United Kingdom Atomic Energy Authority,United Kingdom Atomic Energy Authority,08/03/2015,CAR HIRE,FUSION,Employees Expenses,100759090,340.39,,
United Kingdom Atomic Energy Authority,United Kingdom Atomic Energy Authority,08/03/2015,SUBSISTENCE,FUSION,Employees Expenses,100759090,166.58,,
United Kingdom Atomic Energy Authority,United Kingdom Atomic Energy Authority,08/03/2015,ROAD TRAVEL,FUSION,Employees Expenses,100759090,98.81,,
United Kingdom Atomic Energy Authority,United Kingdom Atomic Energy Authority,08/03/2015,PROFESSIONAL SUBSCRIPTION,FUSION,Employees Expenses,100759106,140.00,,
United Kingdom Atomic Energy Authority,United Kingdom Atomic Energy Authority,13/03/2015,PROFESSIONAL SUBSCRIPTION,FUSION,Employees Expenses,100759188,161.00,,
United Kingdom Atomic Energy Authority,United Kingdom Atomic Energy Authority,13/03/2015,PROFESSIONAL SUBSCRIPTION,FUSION,Employees Expenses,100759197,105.00,,
United Kingdom Atomic Energy Authority,United Kingdom Atomic Energy Authority,21/03/2015,PROFESSIONAL SUBSCRIPTION,FUSION,Employees Expenses,100762039,132.00,,
United Kingdom Atomic Energy Authority,United Kingdom Atomic Energy Authority,08/03/2015,SUBSISTENCE,FUSION,Employees Expenses,100759096,7.90,,
United Kingdom Atomic Energy Authority,United Kingdom Atomic Energy Authority,08/03/2015,SUBSISTENCE,FUSION,Employees Expenses,100759096,90.75,,
United Kingdom Atomic Energy Authority,United Kingdom Atomic Energy Authority,08/03/2015,ROAD TRAVEL,FUSION,Employees Expenses,100759096,49.83,,
United Kingdom Atomic Energy Authority,United Kingdom Atomic Energy Authority,21/03/2015,PROFESSIONAL SUBSCRIPTION,FUSION,Employees Expenses,100762043,122.40,,
United Kingdom Atomic Energy Authority,United Kingdom Atomic Energy Authority,21/03/2015,PROFESSIONAL SUBSCRIPTION,FUSION,Employees Expenses,100762048,133.00,,
United Kingdom Atomic Energy Authority,United Kingdom Atomic Energy Authority,28/02/2015,RELOCATION COSTS,FUSION,Employees Expenses,100759029,"1,171.33",,
United Kingdom Atomic Energy Authority,United Kingdom Atomic Energy Authority,21/03/2015,RELOCATION COSTS,FUSION,Employees Expenses,100762042,"1,150.00",,
United Kingdom Atomic Energy Authority,United Kingdom Atomic Energy Authority,08/03/2015,CAR HIRE,FUSION,Employees Expenses,100759103,119.75,,
United Kingdom Atomic Energy Authority,United Kingdom Atomic Energy Authority,08/03/2015,SUBSISTENCE,FUSION,Employees Expenses,100759103,147.53,,
United Kingdom Atomic Energy Authority,United Kingdom Atomic Energy Authority,08/03/2015,SUBSISTENCE,FUSION,Employees Expenses,100759103,8.08,,
United Kingdom Atomic Energy Authority,United Kingdom Atomic Energy Authority,08/03/2015,ROAD TRAVEL,FUSION,Employees Expenses,100759103,22.50,,
United Kingdom Atomic Energy Authority,United Kingdom Atomic Energy Authority,04/03/2015,SUBSISTENCE,FUSION,Employees Expenses,1900060764,323.77,CUL14148,
United Kingdom Atomic Energy Authority,United Kingdom Atomic Energy Authority,16/03/2015,SUBSISTENCE,FUSION,Employees Expenses,1900060784,156.61,CUL14167,
United Kingdom Atomic Energy Authority,United Kingdom Atomic Energy Authority,13/03/2015,CAR HIRE,FUSION,Employees Expenses,100759182,100.07,,
United Kingdom Atomic Energy Authority,United Kingdom Atomic Energy Authority,13/03/2015,SUBSISTENCE,FUSION,Employees Expenses,100759182,223.78,,
United Kingdom Atomic Energy Authority,United Kingdom Atomic Energy Authority,13/03/2015,SUBSISTENCE,FUSION,Employees Expenses,100759182,2.71,,
United Kingdom Atomic Energy Authority,United Kingdom Atomic Energy Authority,13/03/2015,ROAD TRAVEL,FUSION,Employees Expenses,100759182,17.51,,
United Kingdom Atomic Energy Authority,United Kingdom Atomic Energy Authority,13/03/2015,OTHER EMPLOYEE EXPENSES,FUSION,Employees Expenses,100759182,2.99,,
United Kingdom Atomic Energy Authority,United Kingdom Atomic Energy Authority,28/02/2015,SUBSISTENCE,FUSION,Employees Expenses,100759004,6.10,,
United Kingdom Atomic Energy Authority,United Kingdom Atomic Energy Authority,28/02/2015,SUBSISTENCE,FUSION,Employees Expenses,100759004,5.07,,
United Kingdom Atomic Energy Authority,United Kingdom Atomic Energy Authority,28/02/2015,SUBSISTENCE,FUSION,Employees Expenses,100759010,5.50,,
United Kingdom Atomic Energy Authority,United Kingdom Atomic Energy Authority,28/02/2015,SUBSISTENCE,FUSION,Employees Expenses,100759010,1.37,,
United Kingdom Atomic Energy Authority,United Kingdom Atomic Energy Authority,28/02/2015,SUBSISTENCE,FUSION,Employees Expenses,100759017,4.17,,
United Kingdom Atomic Energy Authority,United Kingdom Atomic Energy Authority,28/02/2015,SUBSISTENCE,FUSION,Employees Expenses,100759017,1.75,,
United Kingdom Atomic Energy Authority,United Kingdom Atomic Energy Authority,13/03/2015,SUBSISTENCE,FUSION,Employees Expenses,100759180,3.91,,
United Kingdom Atomic Energy Authority,United Kingdom Atomic Energy Authority,21/03/2015,SUBSISTENCE,FUSION,Employees Expenses,100762002,5.78,,
United Kingdom Atomic Energy Authority,United Kingdom Atomic Energy Authority,21/03/2015,SUBSISTENCE,FUSION,Employees Expenses,100762002,5.72,,
United Kingdom Atomic Energy Authority,United Kingdom Atomic Energy Authority,28/02/2015,MILEAGE ALLOWANCE,FUSION,Employees Expenses,100759017,97.20,,
United Kingdom Atomic Energy Authority,United Kingdom Atomic Energy Authority,28/02/2015,ROAD TRAVEL,FUSION,Employees Expenses,100759004,41.64,,
United Kingdom Atomic Energy Authority,United Kingdom Atomic Energy Authority,21/03/2015,ROAD TRAVEL,FUSION,Employees Expenses,100762002,28.95,,
United Kingdom Atomic Energy Authority,United Kingdom Atomic Energy Authority,26/03/2015,ROAD TRAVEL,FUSION,Employees Expenses,100762529,24.00,,
United Kingdom Atomic Energy Authority,United Kingdom Atomic Energy Authority,26/03/2015,ROAD TRAVEL,FUSION,Employees Expenses,100762529,8.00,,
United Kingdom Atomic Energy Authority,United Kingdom Atomic Energy Authority,28/02/2015,SUBSISTENCE,FUSION,Employees Expenses,100759002,935.39,,
United Kingdom Atomic Energy Authority,United Kingdom Atomic Energy Authority,21/03/2015,SUBSISTENCE,FUSION,Employees Expenses,100762001,869.57,,
United Kingdom Atomic Energy Authority,United Kingdom Atomic Energy Authority,08/03/2015,PROFESSIONAL SUBSCRIPTION,FUSION,Employees Expenses,100759082,100.00,,
United Kingdom Atomic Energy Authority,United Kingdom Atomic Energy Authority,08/03/2015,TAXIS,FUSION,Employees Expenses,100759072,11.00,,
United Kingdom Atomic Energy Authority,United Kingdom Atomic Energy Authority,21/03/2015,SUBSISTENCE,FUSION,Employees Expenses,100761992,2.30,,
United Kingdom Atomic Energy Authority,United Kingdom Atomic Energy Authority,21/03/2015,SUBSISTENCE,FUSION,Employees Expenses,100761997,1.83,,
United Kingdom Atomic Energy Authority,United Kingdom Atomic Energy Authority,21/03/2015,SUBSISTENCE,FUSION,Employees Expenses,100761999,2.30,,
United Kingdom Atomic Energy Authority,United Kingdom Atomic Energy Authority,21/03/2015,SUBSISTENCE,FUSION,Employees Expenses,100762000,2.30,,
United Kingdom Atomic Energy Authority,United Kingdom Atomic Energy Authority,21/03/2015,SUBSISTENCE,FUSION,Employees Expenses,100762044,1.79,,
United Kingdom Atomic Energy Authority,United Kingdom Atomic Energy Authority,21/03/2015,MILEAGE ALLOWANCE,FUSION,Employees Expenses,100761992,7.65,,
United Kingdom Atomic Energy Authority,United Kingdom Atomic Energy Authority,21/03/2015,MILEAGE ALLOWANCE,FUSION,Employees Expenses,100761993,7.20,,
United Kingdom Atomic Energy Authority,United Kingdom Atomic Energy Authority,21/03/2015,MILEAGE ALLOWANCE,FUSION,Employees Expenses,100761994,7.65,,
United Kingdom Atomic Energy Authority,United Kingdom Atomic Energy Authority,21/03/2015,MILEAGE ALLOWANCE,FUSION,Employees Expenses,100761995,11.25,,
United Kingdom Atomic Energy Authority,United Kingdom Atomic Energy Authority,21/03/2015,MILEAGE ALLOWANCE,FUSION,Employees Expenses,100761996,11.25,,
United Kingdom Atomic Energy Authority,United Kingdom Atomic Energy Authority,21/03/2015,MILEAGE ALLOWANCE,FUSION,Employees Expenses,100761997,11.25,,
United Kingdom Atomic Energy Authority,United Kingdom Atomic Energy Authority,21/03/2015,MILEAGE ALLOWANCE,FUSION,Employees Expenses,100761998,7.65,,
United Kingdom Atomic Energy Authority,United Kingdom Atomic Energy Authority,21/03/2015,MILEAGE ALLOWANCE,FUSION,Employees Expenses,100762038,52.65,,
United Kingdom Atomic Energy Authority,United Kingdom Atomic Energy Authority,26/03/2015,MILEAGE ALLOWANCE,FUSION,Employees Expenses,100762531,10.80,,
United Kingdom Atomic Energy Authority,United Kingdom Atomic Energy Authority,21/03/2015,RAIL TRAVEL,FUSION,Employees Expenses,100762047,66.60,,
United Kingdom Atomic Energy Authority,United Kingdom Atomic Energy Authority,21/03/2015,ROAD TRAVEL,FUSION,Employees Expenses,100761998,1.70,,
United Kingdom Atomic Energy Authority,United Kingdom Atomic Energy Authority,21/03/2015,ROAD TRAVEL,FUSION,Employees Expenses,100762044,12.72,,
United Kingdom Atomic Energy Authority,United Kingdom Atomic Energy Authority,26/03/2015,ROAD TRAVEL,FUSION,Employees Expenses,100762531,3.50,,
United Kingdom Atomic Energy Authority,United Kingdom Atomic Energy Authority,28/02/2015,DELIVERY & CARRIAGE,FUSION,Employees Expenses,100759025,8.45,,
United Kingdom Atomic Energy Authority,United Kingdom Atomic Energy Authority,08/03/2015,SUBSISTENCE,FUSION,Employees Expenses,100759108,5.24,,
United Kingdom Atomic Energy Authority,United Kingdom Atomic Energy Authority,08/03/2015,SUBSISTENCE,FUSION,Employees Expenses,100759113,19.55,,
United Kingdom Atomic Energy Authority,United Kingdom Atomic Energy Authority,21/03/2015,SUBSISTENCE,FUSION,Employees Expenses,100762007,26.47,,
United Kingdom Atomic Energy Authority,United Kingdom Atomic Energy Authority,21/03/2015,SUBSISTENCE,FUSION,Employees Expenses,100762007,6.87,,
United Kingdom Atomic Energy Authority,United Kingdom Atomic Energy Authority,21/03/2015,SUBSISTENCE,FUSION,Employees Expenses,100762017,372.50,,
United Kingdom Atomic Energy Authority,United Kingdom Atomic Energy Authority,21/03/2015,SUBSISTENCE,FUSION,Employees Expenses,100762018,973.01,,
United Kingdom Atomic Energy Authority,United Kingdom Atomic Energy Authority,26/03/2015,SUBSISTENCE,FUSION,Employees Expenses,100762562,486.00,,
United Kingdom Atomic Energy Authority,United Kingdom Atomic Energy Authority,21/03/2015,MILEAGE ALLOWANCE,FUSION,Employees Expenses,100762008,85.50,,
United Kingdom Atomic Energy Authority,United Kingdom Atomic Energy Authority,21/03/2015,MILEAGE ALLOWANCE,FUSION,Employees Expenses,100762009,85.50,,
United Kingdom Atomic Energy Authority,United Kingdom Atomic Energy Authority,08/03/2015,RAIL TRAVEL,FUSION,Employees Expenses,100759108,24.80,,
United Kingdom Atomic Energy Authority,United Kingdom Atomic Energy Authority,21/03/2015,ROAD TRAVEL,FUSION,Employees Expenses,100762017,92.38,,
United Kingdom Atomic Energy Authority,United Kingdom Atomic Energy Authority,21/03/2015,SEA TRAVEL,FUSION,Employees Expenses,100762017,48.00,,
United Kingdom Atomic Energy Authority,United Kingdom Atomic Energy Authority,28/02/2015,OTHER EMPLOYEE EXPENSES,FUSION,Employees Expenses,100759016,58.52,,
United Kingdom Atomic Energy Authority,United Kingdom Atomic Energy Authority,21/03/2015,OTHER EMPLOYEE EXPENSES,FUSION,Employees Expenses,100762017,396.83,,
United Kingdom Atomic Energy Authority,United Kingdom Atomic Energy Authority,21/03/2015,OTHER EMPLOYEE EXPENSES,FUSION,Employees Expenses,100762018,"1,516.31",,
United Kingdom Atomic Energy Authority,United Kingdom Atomic Energy Authority,28/02/2015,PROFESSIONAL SUBSCRIPTION,FUSION,Employees Expenses,100759026,54.00,,
United Kingdom Atomic Energy Authority,United Kingdom Atomic Energy Authority,08/03/2015,PROFESSIONAL SUBSCRIPTION,FUSION,Employees Expenses,100759084,65.00,,
United Kingdom Atomic Energy Authority,United Kingdom Atomic Energy Authority,08/03/2015,PROFESSIONAL SUBSCRIPTION,FUSION,Employees Expenses,100759111,35.00,,
United Kingdom Atomic Energy Authority,United Kingdom Atomic Energy Authority,08/03/2015,PROFESSIONAL SUBSCRIPTION,FUSION,Employees Expenses,100759112,94.50,,
United Kingdom Atomic Energy Authority,United Kingdom Atomic Energy Authority,13/03/2015,PROFESSIONAL SUBSCRIPTION,FUSION,Employees Expenses,100759196,94.50,,
United Kingdom Atomic Energy Authority,United Kingdom Atomic Energy Authority,28/02/2015,SUBSISTENCE,FUSION,Employees Expenses,100759011,539.49,,
United Kingdom Atomic Energy Authority,United Kingdom Atomic Energy Authority,28/02/2015,SUBSISTENCE,FUSION,Employees Expenses,100759012,4.87,,
United Kingdom Atomic Energy Authority,United Kingdom Atomic Energy Authority,13/03/2015,SUBSISTENCE,FUSION,Employees Expenses,100759183,"5,344.56",,
United Kingdom Atomic Energy Authority,United Kingdom Atomic Energy Authority,21/03/2015,SUBSISTENCE,FUSION,Employees Expenses,100762006,159.42,,
United Kingdom Atomic Energy Authority,United Kingdom Atomic Energy Authority,21/03/2015,SUBSISTENCE,FUSION,Employees Expenses,100762025,282.39,,
United Kingdom Atomic Energy Authority,United Kingdom Atomic Energy Authority,08/03/2015,AIR TRAVEL,FUSION,Employees Expenses,100759080,481.08,,
United Kingdom Atomic Energy Authority,United Kingdom Atomic Energy Authority,21/03/2015,RAIL TRAVEL,FUSION,Employees Expenses,100762006,53.17,,
United Kingdom Atomic Energy Authority,United Kingdom Atomic Energy Authority,21/03/2015,RAIL TRAVEL,FUSION,Employees Expenses,100762025,24.18,,
United Kingdom Atomic Energy Authority,United Kingdom Atomic Energy Authority,28/02/2015,ROAD TRAVEL,FUSION,Employees Expenses,100759012,0.05,,
United Kingdom Atomic Energy Authority,United Kingdom Atomic Energy Authority,21/03/2015,ROAD TRAVEL,FUSION,Employees Expenses,100762006,7.79,,
United Kingdom Atomic Energy Authority,United Kingdom Atomic Energy Authority,21/03/2015,ROAD TRAVEL,FUSION,Employees Expenses,100762025,71.67,,
United Kingdom Atomic Energy Authority,United Kingdom Atomic Energy Authority,13/03/2015,OTHER EMPLOYEE EXPENSES,FUSION,Employees Expenses,100759183,29.60,,
United Kingdom Atomic Energy Authority,United Kingdom Atomic Energy Authority,08/03/2015,SUBSISTENCE,FUSION,Employees Expenses,100759100,20.00,,
United Kingdom Atomic Energy Authority,United Kingdom Atomic Energy Authority,08/03/2015,MILEAGE ALLOWANCE,FUSION,Employees Expenses,100759100,75.15,,
United Kingdom Atomic Energy Authority,United Kingdom Atomic Energy Authority,26/03/2015,TAXIS,FUSION,Employees Expenses,100762561,60.00,,
United Kingdom Atomic Energy Authority,United Kingdom Atomic Energy Authority,28/02/2015,SUBSISTENCE,FUSION,Employees Expenses,100759018,43.70,,
United Kingdom Atomic Energy Authority,United Kingdom Atomic Energy Authority,26/03/2015,SUBSISTENCE,FUSION,Employees Expenses,100762561,34.01,,
United Kingdom Atomic Energy Authority,United Kingdom Atomic Energy Authority,28/02/2015,ROAD TRAVEL,FUSION,Employees Expenses,100759018,19.74,,
United Kingdom Atomic Energy Authority,United Kingdom Atomic Energy Authority,08/03/2015,TAXIS,FUSION,Employees Expenses,100759086,14.00,,
United Kingdom Atomic Energy Authority,United Kingdom Atomic Energy Authority,08/03/2015,TAXIS,FUSION,Employees Expenses,100759087,14.00,,
United Kingdom Atomic Energy Authority,United Kingdom Atomic Energy Authority,21/03/2015,TAXIS,FUSION,Employees Expenses,100762004,14.20,,
United Kingdom Atomic Energy Authority,United Kingdom Atomic Energy Authority,26/03/2015,TAXIS,FUSION,Employees Expenses,100762542,15.00,,
United Kingdom Atomic Energy Authority,United Kingdom Atomic Energy Authority,08/03/2015,SUBSISTENCE,FUSION,Employees Expenses,100759086,329.35,,
United Kingdom Atomic Energy Authority,United Kingdom Atomic Energy Authority,08/03/2015,SUBSISTENCE,FUSION,Employees Expenses,100759086,3.90,,
United Kingdom Atomic Energy Authority,United Kingdom Atomic Energy Authority,08/03/2015,SUBSISTENCE,FUSION,Employees Expenses,100759087,186.49,,
United Kingdom Atomic Energy Authority,United Kingdom Atomic Energy Authority,08/03/2015,SUBSISTENCE,FUSION,Employees Expenses,100759087,2.08,,
United Kingdom Atomic Energy Authority,United Kingdom Atomic Energy Authority,13/03/2015,SUBSISTENCE,FUSION,Employees Expenses,100759181,"2,028.46",,
United Kingdom Atomic Energy Authority,United Kingdom Atomic Energy Authority,13/03/2015,SUBSISTENCE,FUSION,Employees Expenses,100759181,10.19,,
United Kingdom Atomic Energy Authority,United Kingdom Atomic Energy Authority,21/03/2015,SUBSISTENCE,FUSION,Employees Expenses,100762004,181.52,,
United Kingdom Atomic Energy Authority,United Kingdom Atomic Energy Authority,21/03/2015,SUBSISTENCE,FUSION,Employees Expenses,100762004,3.90,,
United Kingdom Atomic Energy Authority,United Kingdom Atomic Energy Authority,21/03/2015,SUBSISTENCE,FUSION,Employees Expenses,100762035,943.99,,
United Kingdom Atomic Energy Authority,United Kingdom Atomic Energy Authority,21/03/2015,SUBSISTENCE,FUSION,Employees Expenses,100762036,787.17,,
United Kingdom Atomic Energy Authority,United Kingdom Atomic Energy Authority,21/03/2015,SUBSISTENCE,FUSION,Employees Expenses,100762037,460.11,,
United Kingdom Atomic Energy Authority,United Kingdom Atomic Energy Authority,26/03/2015,SUBSISTENCE,FUSION,Employees Expenses,100762542,187.78,,
United Kingdom Atomic Energy Authority,United Kingdom Atomic Energy Authority,26/03/2015,SUBSISTENCE,FUSION,Employees Expenses,100762542,4.57,,
United Kingdom Atomic Energy Authority,United Kingdom Atomic Energy Authority,13/03/2015,RAIL TRAVEL,FUSION,Employees Expenses,100759181,22.59,,
United Kingdom Atomic Energy Authority,United Kingdom Atomic Energy Authority,21/03/2015,RAIL TRAVEL,FUSION,Employees Expenses,100762036,81.71,,
United Kingdom Atomic Energy Authority,United Kingdom Atomic Energy Authority,08/03/2015,ROAD TRAVEL,FUSION,Employees Expenses,100759086,24.00,,
United Kingdom Atomic Energy Authority,United Kingdom Atomic Energy Authority,08/03/2015,ROAD TRAVEL,FUSION,Employees Expenses,100759086,17.92,,
United Kingdom Atomic Energy Authority,United Kingdom Atomic Energy Authority,08/03/2015,ROAD TRAVEL,FUSION,Employees Expenses,100759087,24.00,,
United Kingdom Atomic Energy Authority,United Kingdom Atomic Energy Authority,08/03/2015,ROAD TRAVEL,FUSION,Employees Expenses,100759087,9.62,,
United Kingdom Atomic Energy Authority,United Kingdom Atomic Energy Authority,21/03/2015,ROAD TRAVEL,FUSION,Employees Expenses,100762004,24.00,,
United Kingdom Atomic Energy Authority,United Kingdom Atomic Energy Authority,21/03/2015,ROAD TRAVEL,FUSION,Employees Expenses,100762004,9.31,,
United Kingdom Atomic Energy Authority,United Kingdom Atomic Energy Authority,26/03/2015,ROAD TRAVEL,FUSION,Employees Expenses,100762542,24.00,,
United Kingdom Atomic Energy Authority,United Kingdom Atomic Energy Authority,08/03/2015,OTHER EMPLOYEE EXPENSES,FUSION,Employees Expenses,100759086,3.00,,
United Kingdom Atomic Energy Authority,United Kingdom Atomic Energy Authority,08/03/2015,OTHER EMPLOYEE EXPENSES,FUSION,Employees Expenses,100759087,3.00,,
United Kingdom Atomic Energy Authority,United Kingdom Atomic Energy Authority,21/03/2015,OTHER EMPLOYEE EXPENSES,FUSION,Employees Expenses,100762004,3.00,,
United Kingdom Atomic Energy Authority,United Kingdom Atomic Energy Authority,26/03/2015,OTHER EMPLOYEE EXPENSES,FUSION,Employees Expenses,100762542,3.00,,
United Kingdom Atomic Energy Authority,United Kingdom Atomic Energy Authority,26/03/2015,TAXIS,FUSION,Employees Expenses,100762551,21.70,,
United Kingdom Atomic Energy Authority,United Kingdom Atomic Energy Authority,26/03/2015,MILEAGE ALLOWANCE,FUSION,Employees Expenses,100762526,59.40,,
United Kingdom Atomic Energy Authority,United Kingdom Atomic Energy Authority,08/03/2015,RELOCATION COSTS,FUSION,Employees Expenses,100759110,"1,480.00",,
United Kingdom Atomic Energy Authority,United Kingdom Atomic Energy Authority,08/03/2015,RELOCATION COSTS,FUSION,Employees Expenses,100759110,"3,050.00",,
United Kingdom Atomic Energy Authority,United Kingdom Atomic Energy Authority,28/02/2015,PROFESSIONAL SUBSCRIPTION,FUSION,Employees Expenses,100759005,245.70,,
United Kingdom Atomic Energy Authority,United Kingdom Atomic Energy Authority,28/02/2015,PROFESSIONAL SUBSCRIPTION,FUSION,Employees Expenses,100759024,60.00,,
United Kingdom Atomic Energy Authority,United Kingdom Atomic Energy Authority,28/02/2015,PROFESSIONAL SUBSCRIPTION,FUSION,Employees Expenses,100759028,283.20,,
United Kingdom Atomic Energy Authority,United Kingdom Atomic Energy Authority,08/03/2015,PROFESSIONAL SUBSCRIPTION,FUSION,Employees Expenses,100759089,253.50,,
United Kingdom Atomic Energy Authority,United Kingdom Atomic Energy Authority,13/03/2015,PROFESSIONAL SUBSCRIPTION,FUSION,Employees Expenses,100759187,213.70,,
United Kingdom Atomic Energy Authority,United Kingdom Atomic Energy Authority,13/03/2015,PROFESSIONAL SUBSCRIPTION,FUSION,Employees Expenses,100759194,245.70,,
United Kingdom Atomic Energy Authority,United Kingdom Atomic Energy Authority,21/03/2015,PROFESSIONAL SUBSCRIPTION,FUSION,Employees Expenses,100762046,144.00,,
United Kingdom Atomic Energy Authority,United Kingdom Atomic Energy Authority,13/03/2015,SUBSISTENCE,FUSION,Employees Expenses,100759191,7.50,,
United Kingdom Atomic Energy Authority,United Kingdom Atomic Energy Authority,13/03/2015,SUBSISTENCE,FUSION,Employees Expenses,100759191,2.00,,
United Kingdom Atomic Energy Authority,United Kingdom Atomic Energy Authority,13/03/2015,RAIL TRAVEL,FUSION,Employees Expenses,100759191,29.40,,
United Kingdom Atomic Energy Authority,United Kingdom Atomic Energy Authority,13/03/2015,ROAD TRAVEL,FUSION,Employees Expenses,100759191,5.17,,
United Kingdom Atomic Energy Authority,United Kingdom Atomic Energy Authority,13/03/2015,MILEAGE ALLOWANCE,FUSION,Employees Expenses,100759177,18.00,,
United Kingdom Atomic Energy Authority,United Kingdom Atomic Energy Authority,28/02/2015,MILEAGE ALLOWANCE,FUSION,Employees Expenses,100759027,89.10,,
United Kingdom Atomic Energy Authority,United Kingdom Atomic Energy Authority,28/02/2015,ROAD TRAVEL,FUSION,Employees Expenses,100759027,5.42,,
United Kingdom Atomic Energy Authority,United Kingdom Atomic Energy Authority,13/03/2015,TAXIS,FUSION,Employees Expenses,100759176,29.94,,
United Kingdom Atomic Energy Authority,United Kingdom Atomic Energy Authority,26/03/2015,TAXIS,FUSION,Employees Expenses,100762550,32.28,,
United Kingdom Atomic Energy Authority,United Kingdom Atomic Energy Authority,28/02/2015,SUBSISTENCE,FUSION,Employees Expenses,100758997,22.70,,
United Kingdom Atomic Energy Authority,United Kingdom Atomic Energy Authority,28/02/2015,SUBSISTENCE,FUSION,Employees Expenses,100758997,127.47,,
United Kingdom Atomic Energy Authority,United Kingdom Atomic Energy Authority,28/02/2015,SUBSISTENCE,FUSION,Employees Expenses,100758999,610.34,,
United Kingdom Atomic Energy Authority,United Kingdom Atomic Energy Authority,28/02/2015,SUBSISTENCE,FUSION,Employees Expenses,100759003,187.62,,
United Kingdom Atomic Energy Authority,United Kingdom Atomic Energy Authority,28/02/2015,SUBSISTENCE,FUSION,Employees Expenses,100759003,1.67,,
United Kingdom Atomic Energy Authority,United Kingdom Atomic Energy Authority,28/02/2015,SUBSISTENCE,FUSION,Employees Expenses,100759012,520.31,,
United Kingdom Atomic Energy Authority,United Kingdom Atomic Energy Authority,08/03/2015,SUBSISTENCE,FUSION,Employees Expenses,100759073,10.55,,
United Kingdom Atomic Energy Authority,United Kingdom Atomic Energy Authority,08/03/2015,SUBSISTENCE,FUSION,Employees Expenses,100759073,47.72,,
United Kingdom Atomic Energy Authority,United Kingdom Atomic Energy Authority,08/03/2015,SUBSISTENCE,FUSION,Employees Expenses,100759074,8.90,,
United Kingdom Atomic Energy Authority,United Kingdom Atomic Energy Authority,08/03/2015,SUBSISTENCE,FUSION,Employees Expenses,100759074,68.08,,
United Kingdom Atomic Energy Authority,United Kingdom Atomic Energy Authority,08/03/2015,SUBSISTENCE,FUSION,Employees Expenses,100759081,185.48,,
United Kingdom Atomic Energy Authority,United Kingdom Atomic Energy Authority,08/03/2015,SUBSISTENCE,FUSION,Employees Expenses,100759083,198.65,,
United Kingdom Atomic Energy Authority,United Kingdom Atomic Energy Authority,13/03/2015,SUBSISTENCE,FUSION,Employees Expenses,100759176,137.80,,
United Kingdom Atomic Energy Authority,United Kingdom Atomic Energy Authority,13/03/2015,SUBSISTENCE,FUSION,Employees Expenses,100759179,10.55,,
United Kingdom Atomic Energy Authority,United Kingdom Atomic Energy Authority,13/03/2015,SUBSISTENCE,FUSION,Employees Expenses,100759179,59.79,,
United Kingdom Atomic Energy Authority,United Kingdom Atomic Energy Authority,13/03/2015,SUBSISTENCE,FUSION,Employees Expenses,100759185,54.30,,
United Kingdom Atomic Energy Authority,United Kingdom Atomic Energy Authority,13/03/2015,SUBSISTENCE,FUSION,Employees Expenses,100759185,3.75,,
United Kingdom Atomic Energy Authority,United Kingdom Atomic Energy Authority,13/03/2015,SUBSISTENCE,FUSION,Employees Expenses,100759195,136.77,,
United Kingdom Atomic Energy Authority,United Kingdom Atomic Energy Authority,21/03/2015,SUBSISTENCE,FUSION,Employees Expenses,100762045,93.98,,
United Kingdom Atomic Energy Authority,United Kingdom Atomic Energy Authority,26/03/2015,SUBSISTENCE,FUSION,Employees Expenses,100762527,138.52,,
United Kingdom Atomic Energy Authority,United Kingdom Atomic Energy Authority,26/03/2015,SUBSISTENCE,FUSION,Employees Expenses,100762529,102.53,,
United Kingdom Atomic Energy Authority,United Kingdom Atomic Energy Authority,26/03/2015,SUBSISTENCE,FUSION,Employees Expenses,100762550,63.80,,
United Kingdom Atomic Energy Authority,United Kingdom Atomic Energy Authority,28/02/2015,MILEAGE ALLOWANCE,FUSION,Employees Expenses,100758996,93.60,,
United Kingdom Atomic Energy Authority,United Kingdom Atomic Energy Authority,28/02/2015,MILEAGE ALLOWANCE,FUSION,Employees Expenses,100758997,54.00,,
United Kingdom Atomic Energy Authority,United Kingdom Atomic Energy Authority,08/03/2015,MILEAGE ALLOWANCE,FUSION,Employees Expenses,100759073,54.00,,
United Kingdom Atomic Energy Authority,United Kingdom Atomic Energy Authority,08/03/2015,MILEAGE ALLOWANCE,FUSION,Employees Expenses,100759074,57.60,,
United Kingdom Atomic Energy Authority,United Kingdom Atomic Energy Authority,13/03/2015,MILEAGE ALLOWANCE,FUSION,Employees Expenses,100759179,54.00,,
United Kingdom Atomic Energy Authority,United Kingdom Atomic Energy Authority,13/03/2015,MILEAGE ALLOWANCE,FUSION,Employees Expenses,100759195,76.14,,
United Kingdom Atomic Energy Authority,United Kingdom Atomic Energy Authority,26/03/2015,MILEAGE ALLOWANCE,FUSION,Employees Expenses,100762529,8.55,,
United Kingdom Atomic Energy Authority,United Kingdom Atomic Energy Authority,28/02/2015,RAIL TRAVEL,FUSION,Employees Expenses,100758999,37.02,,
United Kingdom Atomic Energy Authority,United Kingdom Atomic Energy Authority,13/03/2015,RAIL TRAVEL,FUSION,Employees Expenses,100759185,74.95,,
United Kingdom Atomic Energy Authority,United Kingdom Atomic Energy Authority,21/03/2015,RAIL TRAVEL,FUSION,Employees Expenses,100762045,2.98,,
United Kingdom Atomic Energy Authority,United Kingdom Atomic Energy Authority,28/02/2015,ROAD TRAVEL,FUSION,Employees Expenses,100759012,4.88,,
United Kingdom Atomic Energy Authority,United Kingdom Atomic Energy Authority,08/03/2015,ROAD TRAVEL,FUSION,Employees Expenses,100759074,6.00,,
United Kingdom Atomic Energy Authority,United Kingdom Atomic Energy Authority,08/03/2015,ROAD TRAVEL,FUSION,Employees Expenses,100759083,43.20,,
United Kingdom Atomic Energy Authority,United Kingdom Atomic Energy Authority,08/03/2015,ROAD TRAVEL,FUSION,Employees Expenses,100759083,7.85,,
United Kingdom Atomic Energy Authority,United Kingdom Atomic Energy Authority,13/03/2015,ROAD TRAVEL,FUSION,Employees Expenses,100759185,6.20,,
United Kingdom Atomic Energy Authority,United Kingdom Atomic Energy Authority,13/03/2015,ROAD TRAVEL,FUSION,Employees Expenses,100759195,25.64,,
United Kingdom Atomic Energy Authority,United Kingdom Atomic Energy Authority,13/03/2015,ROAD TRAVEL,FUSION,Employees Expenses,100759195,5.00,,
United Kingdom Atomic Energy Authority,United Kingdom Atomic Energy Authority,26/03/2015,ROAD TRAVEL,FUSION,Employees Expenses,100762529,4.22,,
United Kingdom Atomic Energy Authority,United Kingdom Atomic Energy Authority,28/02/2015,OTHER EMPLOYEE EXPENSES,FUSION,Employees Expenses,100758999,3.43,,
United Kingdom Atomic Energy Authority,United Kingdom Atomic Energy Authority,28/02/2015,OTHER EMPLOYEE EXPENSES,FUSION,Employees Expenses,100759003,3.00,,
United Kingdom Atomic Energy Authority,United Kingdom Atomic Energy Authority,13/03/2015,OTHER EMPLOYEE EXPENSES,FUSION,Employees Expenses,100759176,2.99,,
United Kingdom Atomic Energy Authority,United Kingdom Atomic Energy Authority,26/03/2015,OTHER EMPLOYEE EXPENSES,FUSION,Employees Expenses,100762527,2.95,,
United Kingdom Atomic Energy Authority,United Kingdom Atomic Energy Authority,08/03/2015,EFDA TRAVEL EXPENSES,,Employees Expenses,100759085,615.77,,
United Kingdom Atomic Energy Authority,United Kingdom Atomic Energy Authority,08/03/2015,EFDA TRAVEL EXPENSES,,Employees Expenses,100759105,727.54,,
United Kingdom Atomic Energy Authority,United Kingdom Atomic Energy Authority,26/03/2015,EFDA TRAVEL EXPENSES,,Employees Expenses,100762533,237.52,,
United Kingdom Atomic Energy Authority,United Kingdom Atomic Energy Authority,26/03/2015,EFDA TRAVEL EXPENSES,,Employees Expenses,100762534,210.06,,
United Kingdom Atomic Energy Authority,United Kingdom Atomic Energy Authority,26/03/2015,EFDA TRAVEL EXPENSES,,Employees Expenses,100762535,865.51,,
United Kingdom Atomic Energy Authority,United Kingdom Atomic Energy Authority,26/03/2015,EFDA TRAVEL EXPENSES,,Employees Expenses,100762537,162.90,,
United Kingdom Atomic Energy Authority,United Kingdom Atomic Energy Authority,26/03/2015,EFDA TRAVEL EXPENSES,,Employees Expenses,100762538,102.50,,
United Kingdom Atomic Energy Authority,United Kingdom Atomic Energy Authority,26/03/2015,EFDA TRAVEL EXPENSES,,Employees Expenses,100762539,7.80,,
United Kingdom Atomic Energy Authority,United Kingdom Atomic Energy Authority,26/03/2015,EFDA TRAVEL EXPENSES,,Employees Expenses,100762540,282.29,,
United Kingdom Atomic Energy Authority,United Kingdom Atomic Energy Authority,26/03/2015,EFDA TRAVEL EXPENSES,,Employees Expenses,100762541,"1,051.34",,
United Kingdom Atomic Energy Authority,United Kingdom Atomic Energy Authority,26/03/2015,EFDA TRAVEL EXPENSES,,Employees Expenses,100762543,878.34,,
United Kingdom Atomic Energy Authority,United Kingdom Atomic Energy Authority,26/03/2015,EFDA TRAVEL EXPENSES,,Employees Expenses,100762554,721.19,,
United Kingdom Atomic Energy Authority,United Kingdom Atomic Energy Authority,08/03/2015,SUBSISTENCE,,Employees Expenses,100759076,178.77,,
United Kingdom Atomic Energy Authority,United Kingdom Atomic Energy Authority,08/03/2015,SUBSISTENCE,,Employees Expenses,100759076,18.96,,
United Kingdom Atomic Energy Authority,United Kingdom Atomic Energy Authority,08/03/2015,SUBSISTENCE,,Employees Expenses,100759077,141.36,,
United Kingdom Atomic Energy Authority,United Kingdom Atomic Energy Authority,08/03/2015,RAIL TRAVEL,,Employees Expenses,100759076,3.27,,
United Kingdom Atomic Energy Authority,United Kingdom Atomic Energy Authority,08/03/2015,RAIL TRAVEL,,Employees Expenses,100759077,3.12,,
United Kingdom Atomic Energy Authority,United Kingdom Atomic Energy Authority,28/02/2015,CAR HIRE,FUSION,Employees Expenses,100759001,188.46,,
United Kingdom Atomic Energy Authority,United Kingdom Atomic Energy Authority,08/03/2015,CAR HIRE,FUSION,Employees Expenses,100759097,216.81,,
United Kingdom Atomic Energy Authority,United Kingdom Atomic Energy Authority,08/03/2015,TAXIS,FUSION,Employees Expenses,100759097,150.45,,
United Kingdom Atomic Energy Authority,United Kingdom Atomic Energy Authority,08/03/2015,TAXIS,FUSION,Employees Expenses,100759098,5.00,,
United Kingdom Atomic Energy Authority,United Kingdom Atomic Energy Authority,26/03/2015,TAXIS,FUSION,Employees Expenses,100762549,30.61,,
United Kingdom Atomic Energy Authority,United Kingdom Atomic Energy Authority,28/02/2015,SUBSISTENCE,FUSION,Employees Expenses,100759001,299.46,,
United Kingdom Atomic Energy Authority,United Kingdom Atomic Energy Authority,08/03/2015,SUBSISTENCE,FUSION,Employees Expenses,100759097,706.22,,
United Kingdom Atomic Energy Authority,United Kingdom Atomic Energy Authority,08/03/2015,SUBSISTENCE,FUSION,Employees Expenses,100759097,704.22,,
United Kingdom Atomic Energy Authority,United Kingdom Atomic Energy Authority,08/03/2015,SUBSISTENCE,FUSION,Employees Expenses,100759098,19.30,,
United Kingdom Atomic Energy Authority,United Kingdom Atomic Energy Authority,08/03/2015,SUBSISTENCE,FUSION,Employees Expenses,100759098,141.54,,
United Kingdom Atomic Energy Authority,United Kingdom Atomic Energy Authority,08/03/2015,SUBSISTENCE,FUSION,Employees Expenses,100759099,11.45,,
United Kingdom Atomic Energy Authority,United Kingdom Atomic Energy Authority,08/03/2015,SUBSISTENCE,FUSION,Employees Expenses,100759099,100.39,,
United Kingdom Atomic Energy Authority,United Kingdom Atomic Energy Authority,21/03/2015,SUBSISTENCE,FUSION,Employees Expenses,100762016,2.35,,
United Kingdom Atomic Energy Authority,United Kingdom Atomic Energy Authority,21/03/2015,SUBSISTENCE,FUSION,Employees Expenses,100762016,12.16,,
United Kingdom Atomic Energy Authority,United Kingdom Atomic Energy Authority,26/03/2015,SUBSISTENCE,FUSION,Employees Expenses,100762549,318.61,,
United Kingdom Atomic Energy Authority,United Kingdom Atomic Energy Authority,26/03/2015,SUBSISTENCE,FUSION,Employees Expenses,100762549,5.54,,
United Kingdom Atomic Energy Authority,United Kingdom Atomic Energy Authority,26/03/2015,SUBSISTENCE,FUSION,Employees Expenses,100762553,280.27,,
United Kingdom Atomic Energy Authority,United Kingdom Atomic Energy Authority,26/03/2015,SUBSISTENCE,FUSION,Employees Expenses,100762553,4.62,,
United Kingdom Atomic Energy Authority,United Kingdom Atomic Energy Authority,08/03/2015,AIR TRAVEL,FUSION,Employees Expenses,100759097,95.81,,
United Kingdom Atomic Energy Authority,United Kingdom Atomic Energy Authority,26/03/2015,RAIL TRAVEL,FUSION,Employees Expenses,100762553,20.98,,
United Kingdom Atomic Energy Authority,United Kingdom Atomic Energy Authority,08/03/2015,ROAD TRAVEL,FUSION,Employees Expenses,100759097,20.00,,
United Kingdom Atomic Energy Authority,United Kingdom Atomic Energy Authority,08/03/2015,ROAD TRAVEL,FUSION,Employees Expenses,100759097,16.03,,
United Kingdom Atomic Energy Authority,United Kingdom Atomic Energy Authority,08/03/2015,ROAD TRAVEL,FUSION,Employees Expenses,100759097,140.87,,
United Kingdom Atomic Energy Authority,United Kingdom Atomic Energy Authority,08/03/2015,ROAD TRAVEL,FUSION,Employees Expenses,100759099,40.28,,
United Kingdom Atomic Energy Authority,United Kingdom Atomic Energy Authority,08/03/2015,ROAD TRAVEL,FUSION,Employees Expenses,100759099,9.17,,
United Kingdom Atomic Energy Authority,United Kingdom Atomic Energy Authority,08/03/2015,OTHER EMPLOYEE EXPENSES,FUSION,Employees Expenses,100759097,7.96,,
United Kingdom Atomic Energy Authority,United Kingdom Atomic Energy Authority,26/03/2015,OTHER EMPLOYEE EXPENSES,FUSION,Employees Expenses,100762553,3.00,,
United Kingdom Atomic Energy Authority,United Kingdom Atomic Energy Authority,28/02/2015,MILEAGE ALLOWANCE,FUSION,Employees Expenses,100758995,7.20,,
United Kingdom Atomic Energy Authority,United Kingdom Atomic Energy Authority,08/03/2015,MILEAGE ALLOWANCE,FUSION,Employees Expenses,100759071,14.40,,
United Kingdom Atomic Energy Authority,United Kingdom Atomic Energy Authority,13/03/2015,MILEAGE ALLOWANCE,FUSION,Employees Expenses,100759175,7.20,,
United Kingdom Atomic Energy Authority,United Kingdom Atomic Energy Authority,26/03/2015,MILEAGE ALLOWANCE,FUSION,Employees Expenses,100762524,7.20,,
United Kingdom Atomic Energy Authority,United Kingdom Atomic Energy Authority,26/03/2015,MILEAGE ALLOWANCE,FUSION,Employees Expenses,100762525,7.20,,
United Kingdom Atomic Energy Authority,United Kingdom Atomic Energy Authority,26/03/2015,ROAD TRAVEL,FUSION,Employees Expenses,100762528,35.00,,
United Kingdom Atomic Energy Authority,United Kingdom Atomic Energy Authority,13/03/2015,OTHER EMPLOYEE EXPENSES,FUSION,Employees Expenses,100759178,9.00,,
United Kingdom Atomic Energy Authority,United Kingdom Atomic Energy Authority,26/03/2015,TAXIS,FUSION,Employees Expenses,100762548,24.93,,
United Kingdom Atomic Energy Authority,United Kingdom Atomic Energy Authority,26/03/2015,SUBSISTENCE,FUSION,Employees Expenses,100762548,79.38,,
United Kingdom Atomic Energy Authority,United Kingdom Atomic Energy Authority,26/03/2015,SUBSISTENCE,FUSION,Employees Expenses,100762548,53.12,,
United Kingdom Atomic Energy Authority,United Kingdom Atomic Energy Authority,28/02/2015,CAR HIRE,FUSION,Employees Expenses,100759015,96.20,,
United Kingdom Atomic Energy Authority,United Kingdom Atomic Energy Authority,28/02/2015,TAXIS,FUSION,Employees Expenses,100758998,54.74,,
United Kingdom Atomic Energy Authority,United Kingdom Atomic Energy Authority,28/02/2015,TAXIS,FUSION,Employees Expenses,100759015,13.80,,
United Kingdom Atomic Energy Authority,United Kingdom Atomic Energy Authority,28/02/2015,SUBSISTENCE,FUSION,Employees Expenses,100758998,153.03,,
United Kingdom Atomic Energy Authority,United Kingdom Atomic Energy Authority,28/02/2015,SUBSISTENCE,FUSION,Employees Expenses,100759015,254.75,,
United Kingdom Atomic Energy Authority,United Kingdom Atomic Energy Authority,28/02/2015,SUBSISTENCE,FUSION,Employees Expenses,100759015,11.92,,
United Kingdom Atomic Energy Authority,United Kingdom Atomic Energy Authority,28/02/2015,ROAD TRAVEL,FUSION,Employees Expenses,100759015,29.50,,
United Kingdom Atomic Energy Authority,United Kingdom Atomic Energy Authority,28/02/2015,ROAD TRAVEL,FUSION,Employees Expenses,100759015,64.17,,
United Kingdom Atomic Energy Authority,United Kingdom Atomic Energy Authority,21/03/2015,MILEAGE ALLOWANCE,FUSION,Employees Expenses,100762040,26.10,,
United Kingdom Atomic Energy Authority,United Kingdom Atomic Energy Authority,13/03/2015,SUBSISTENCE,FUSION,Employees Expenses,100759192,19.76,,
United Kingdom Atomic Energy Authority,United Kingdom Atomic Energy Authority,13/03/2015,ROAD TRAVEL,FUSION,Employees Expenses,100759192,29.53,,
United Kingdom Atomic Energy Authority,United Kingdom Atomic Energy Authority,28/02/2015,SUBSISTENCE,,Employees Expenses,100759000,5.00,,
United Kingdom Atomic Energy Authority,United Kingdom Atomic Energy Authority,28/02/2015,SUBSISTENCE,,Employees Expenses,100759000,62.50,,
United Kingdom Atomic Energy Authority,United Kingdom Atomic Energy Authority,28/02/2015,ROAD TRAVEL,,Employees Expenses,100759000,9.17,,
United Kingdom Atomic Energy Authority,United Kingdom Atomic Energy Authority,28/02/2015,MILEAGE ALLOWANCE,SUPPORT SERVICES,Employees Expenses,100759009,56.70,,
United Kingdom Atomic Energy Authority,United Kingdom Atomic Energy Authority,28/02/2015,ROAD TRAVEL,SUPPORT SERVICES,Employees Expenses,100759009,21.67,,
United Kingdom Atomic Energy Authority,United Kingdom Atomic Energy Authority,28/02/2015,TAXIS,SUPPORT SERVICES,Employees Expenses,100759019,52.62,,
United Kingdom Atomic Energy Authority,United Kingdom Atomic Energy Authority,28/02/2015,TAXIS,SUPPORT SERVICES,Employees Expenses,100759021,9.00,,
United Kingdom Atomic Energy Authority,United Kingdom Atomic Energy Authority,28/02/2015,TAXIS,SUPPORT SERVICES,Employees Expenses,100759022,27.00,,
United Kingdom Atomic Energy Authority,United Kingdom Atomic Energy Authority,21/03/2015,TAXIS,SUPPORT SERVICES,Employees Expenses,100762020,30.50,,
United Kingdom Atomic Energy Authority,United Kingdom Atomic Energy Authority,21/03/2015,TAXIS,SUPPORT SERVICES,Employees Expenses,100762027,27.00,,
United Kingdom Atomic Energy Authority,United Kingdom Atomic Energy Authority,26/03/2015,TAXIS,SUPPORT SERVICES,Employees Expenses,100762555,65.21,,
United Kingdom Atomic Energy Authority,United Kingdom Atomic Energy Authority,28/02/2015,SUBSISTENCE,SUPPORT SERVICES,Employees Expenses,100759019,237.31,,
United Kingdom Atomic Energy Authority,United Kingdom Atomic Energy Authority,21/03/2015,SUBSISTENCE,SUPPORT SERVICES,Employees Expenses,100762022,133.45,,
United Kingdom Atomic Energy Authority,United Kingdom Atomic Energy Authority,21/03/2015,SUBSISTENCE,SUPPORT SERVICES,Employees Expenses,100762026,6.42,,
United Kingdom Atomic Energy Authority,United Kingdom Atomic Energy Authority,21/03/2015,SUBSISTENCE,SUPPORT SERVICES,Employees Expenses,100762027,7.46,,
United Kingdom Atomic Energy Authority,United Kingdom Atomic Energy Authority,21/03/2015,SUBSISTENCE,SUPPORT SERVICES,Employees Expenses,100762028,10.00,,
United Kingdom Atomic Energy Authority,United Kingdom Atomic Energy Authority,26/03/2015,SUBSISTENCE,SUPPORT SERVICES,Employees Expenses,100762555,108.46,,
United Kingdom Atomic Energy Authority,United Kingdom Atomic Energy Authority,26/03/2015,SUBSISTENCE,SUPPORT SERVICES,Employees Expenses,100762555,1.83,,
United Kingdom Atomic Energy Authority,United Kingdom Atomic Energy Authority,13/03/2015,MILEAGE ALLOWANCE,SUPPORT SERVICES,Employees Expenses,100759189,33.30,,
United Kingdom Atomic Energy Authority,United Kingdom Atomic Energy Authority,13/03/2015,MILEAGE ALLOWANCE,SUPPORT SERVICES,Employees Expenses,100759190,33.30,,
United Kingdom Atomic Energy Authority,United Kingdom Atomic Energy Authority,21/03/2015,MILEAGE ALLOWANCE,SUPPORT SERVICES,Employees Expenses,100762022,93.15,,
United Kingdom Atomic Energy Authority,United Kingdom Atomic Energy Authority,21/03/2015,MILEAGE ALLOWANCE,SUPPORT SERVICES,Employees Expenses,100762023,68.40,,
United Kingdom Atomic Energy Authority,United Kingdom Atomic Energy Authority,21/03/2015,MILEAGE ALLOWANCE,SUPPORT SERVICES,Employees Expenses,100762024,66.60,,
United Kingdom Atomic Energy Authority,United Kingdom Atomic Energy Authority,21/03/2015,MILEAGE ALLOWANCE,SUPPORT SERVICES,Employees Expenses,100762026,18.00,,
United Kingdom Atomic Energy Authority,United Kingdom Atomic Energy Authority,21/03/2015,MILEAGE ALLOWANCE,SUPPORT SERVICES,Employees Expenses,100762027,72.00,,
United Kingdom Atomic Energy Authority,United Kingdom Atomic Energy Authority,21/03/2015,MILEAGE ALLOWANCE,SUPPORT SERVICES,Employees Expenses,100762029,9.00,,
United Kingdom Atomic Energy Authority,United Kingdom Atomic Energy Authority,28/02/2015,AIR TRAVEL,SUPPORT SERVICES,Employees Expenses,100759019,195.69,,
United Kingdom Atomic Energy Authority,United Kingdom Atomic Energy Authority,28/02/2015,RAIL TRAVEL,SUPPORT SERVICES,Employees Expenses,100759020,19.40,,
United Kingdom Atomic Energy Authority,United Kingdom Atomic Energy Authority,28/02/2015,RAIL TRAVEL,SUPPORT SERVICES,Employees Expenses,100759021,19.40,,
United Kingdom Atomic Energy Authority,United Kingdom Atomic Energy Authority,28/02/2015,RAIL TRAVEL,SUPPORT SERVICES,Employees Expenses,100759022,19.40,,
United Kingdom Atomic Energy Authority,United Kingdom Atomic Energy Authority,21/03/2015,RAIL TRAVEL,SUPPORT SERVICES,Employees Expenses,100762020,41.50,,
United Kingdom Atomic Energy Authority,United Kingdom Atomic Energy Authority,21/03/2015,RAIL TRAVEL,SUPPORT SERVICES,Employees Expenses,100762026,73.10,,
United Kingdom Atomic Energy Authority,United Kingdom Atomic Energy Authority,21/03/2015,RAIL TRAVEL,SUPPORT SERVICES,Employees Expenses,100762027,44.60,,
United Kingdom Atomic Energy Authority,United Kingdom Atomic Energy Authority,21/03/2015,RAIL TRAVEL,SUPPORT SERVICES,Employees Expenses,100762029,195.50,,
United Kingdom Atomic Energy Authority,United Kingdom Atomic Energy Authority,28/02/2015,ROAD TRAVEL,SUPPORT SERVICES,Employees Expenses,100759019,29.00,,
United Kingdom Atomic Energy Authority,United Kingdom Atomic Energy Authority,28/02/2015,ROAD TRAVEL,SUPPORT SERVICES,Employees Expenses,100759020,6.50,,
United Kingdom Atomic Energy Authority,United Kingdom Atomic Energy Authority,21/03/2015,ROAD TRAVEL,SUPPORT SERVICES,Employees Expenses,100762026,4.08,,
United Kingdom Atomic Energy Authority,United Kingdom Atomic Energy Authority,21/03/2015,ROAD TRAVEL,SUPPORT SERVICES,Employees Expenses,100762027,5.75,,
United Kingdom Atomic Energy Authority,United Kingdom Atomic Energy Authority,21/03/2015,ROAD TRAVEL,SUPPORT SERVICES,Employees Expenses,100762029,25.42,,
United Kingdom Atomic Energy Authority,United Kingdom Atomic Energy Authority,26/03/2015,OTHER EMPLOYEE EXPENSES,SUPPORT SERVICES,Employees Expenses,100762555,3.00,,
United Kingdom Atomic Energy Authority,United Kingdom Atomic Energy Authority,26/03/2015,SUBSISTENCE,SUPPORT SERVICES,Employees Expenses,100762532,5.00,,
United Kingdom Atomic Energy Authority,United Kingdom Atomic Energy Authority,26/03/2015,MILEAGE ALLOWANCE,SUPPORT SERVICES,Employees Expenses,100762532,14.06,,
United Kingdom Atomic Energy Authority,United Kingdom Atomic Energy Authority,26/03/2015,ROAD TRAVEL,SUPPORT SERVICES,Employees Expenses,100762532,28.00,,
United Kingdom Atomic Energy Authority,United Kingdom Atomic Energy Authority,26/03/2015,OTHER EMPLOYEE EXPENSES,SUPPORT SERVICES,Employees Expenses,100762532,5.00,,
United Kingdom Atomic Energy Authority,United Kingdom Atomic Energy Authority,08/03/2015,PROFESSIONAL SUBSCRIPTION,SUPPORT SERVICES,Employees Expenses,100759079,211.00,,
United Kingdom Atomic Energy Authority,United Kingdom Atomic Energy Authority,26/02/2015,Employees Expenses,,Employees Expenses,1900060753,2003.11,CUL14137,
United Kingdom Atomic Energy Authority,United Kingdom Atomic Energy Authority,26/02/2015,Employees Expenses,,Employees Expenses,1900060754,1537.5,CUL14138,
United Kingdom Atomic Energy Authority,United Kingdom Atomic Energy Authority,26/02/2015,Employees Expenses,,Employees Expenses,1900060755,21.44,CUL14139,
United Kingdom Atomic Energy Authority,United Kingdom Atomic Energy Authority,26/02/2015,Employees Expenses,,Employees Expenses,1900060756,266.33,CUL14140,
United Kingdom Atomic Energy Authority,United Kingdom Atomic Energy Authority,02/03/2015,PROFESSIONAL SUBSCRIPTION,SUPPORT SERVICES,Equality Challenge Unit,1900060761,500,CUL14145,
United Kingdom Atomic Energy Authority,United Kingdom Atomic Energy Authority,25/03/2015,MATERIALS & SPARES,FUSION,ERIKS UK,5100319220,1130.55,,
United Kingdom Atomic Energy Authority,United Kingdom Atomic Energy Authority,09/03/2015,PLANT & EQUIPMENT,FUSION,ERODEX UK LTD,5100318283,145.35,,
United Kingdom Atomic Energy Authority,United Kingdom Atomic Energy Authority,09/03/2015,PLANT & EQUIPMENT,FUSION,ERODEX UK LTD,5100318284,254,,
United Kingdom Atomic Energy Authority,United Kingdom Atomic Energy Authority,25/03/2015,PLANT & EQUIPMENT,FUSION,ERODEX UK LTD,5100319147,536.93,,
United Kingdom Atomic Energy Authority,United Kingdom Atomic Energy Authority,18/03/2015,PLANT & EQUIPMENT,FUSION,ERODEX UK LTD,5100318810,906.48,,
United Kingdom Atomic Energy Authority,United Kingdom Atomic Energy Authority,19/03/2015,OTHER EXTERNAL COSTS,,ESO,1900060802,904.09,CUL14181,
United Kingdom Atomic Energy Authority,United Kingdom Atomic Energy Authority,11/03/2015,PROFESSIONAL SERVICES,FUSION,ESR TECHNOLOGY LTD,5100318132,2737,,
United Kingdom Atomic Energy Authority,United Kingdom Atomic Energy Authority,25/02/2015,MATERIALS & SPARES,FUSION,ETS CABLE COMPONENTS,5100317703,347.6,,
United Kingdom Atomic Energy Authority,United Kingdom Atomic Energy Authority,25/02/2015,PROFESSIONAL SERVICES,FUSION,EUROPEAN INSTRUMENTS,5100317566,1351.55,,
United Kingdom Atomic Energy Authority,United Kingdom Atomic Energy Authority,09/03/2015,CONSUMABLES,FUSION,EUROTHERM LTD,5100318140,190,,
United Kingdom Atomic Energy Authority,United Kingdom Atomic Energy Authority,25/03/2015,PROFESSIONAL SERVICES,FUSION,FAITHFUL & GOULD,5100319214,1150,,
United Kingdom Atomic Energy Authority,United Kingdom Atomic Energy Authority,25/03/2015,PROFESSIONAL SERVICES,FUSION,FAITHFUL & GOULD,5100319318,-2750,,
United Kingdom Atomic Energy Authority,United Kingdom Atomic Energy Authority,25/03/2015,PROFESSIONAL SERVICES,FUSION,FAITHFUL & GOULD,5100319319,2750,,
United Kingdom Atomic Energy Authority,United Kingdom Atomic Energy Authority,25/03/2015,PROFESSIONAL SERVICES,FUSION,FAITHFUL & GOULD,5100319321,-1150,,
United Kingdom Atomic Energy Authority,United Kingdom Atomic Energy Authority,25/03/2015,PROFESSIONAL SERVICES,FUSION,FAITHFUL & GOULD,5100319323,1150,,
United Kingdom Atomic Energy Authority,United Kingdom Atomic Energy Authority,02/03/2015,PROFESSIONAL SERVICES,FUSION,FAITHFUL & GOULD,5100317721,4878.46,,
United Kingdom Atomic Energy Authority,United Kingdom Atomic Energy Authority,02/03/2015,PROFESSIONAL SERVICES,FUSION,FAITHFUL & GOULD,5100317723,4548.88,,
United Kingdom Atomic Energy Authority,United Kingdom Atomic Energy Authority,25/03/2015,PROFESSIONAL SERVICES,FUSION,FAITHFUL & GOULD,5100319253,4878.46,,
United Kingdom Atomic Energy Authority,United Kingdom Atomic Energy Authority,25/03/2015,MATERIALS & SPARES,SUPPORT SERVICES,FARNELL ELECTRONIC,5100319184,201.65,,
United Kingdom Atomic Energy Authority,United Kingdom Atomic Energy Authority,09/03/2015,MATERIALS & SPARES,FUSION,FARNELL ELECTRONIC,5100318224,67.5,,
United Kingdom Atomic Energy Authority,United Kingdom Atomic Energy Authority,30/03/2015,MATERIALS & SPARES,FUSION,FARNELL ELECTRONIC,5100318840,107.71,,
United Kingdom Atomic Energy Authority,United Kingdom Atomic Energy Authority,30/03/2015,MATERIALS & SPARES,FUSION,FARNELL ELECTRONIC,5100318959,58.55,,
United Kingdom Atomic Energy Authority,United Kingdom Atomic Energy Authority,25/02/2015,MATERIALS & SPARES,FUSION,FARNELL ELECTRONIC,5100317455,21.4,,
United Kingdom Atomic Energy Authority,United Kingdom Atomic Energy Authority,25/02/2015,MATERIALS & SPARES,FUSION,FARNELL ELECTRONIC,5100317470,21.18,,
United Kingdom Atomic Energy Authority,United Kingdom Atomic Energy Authority,25/02/2015,MATERIALS & SPARES,FUSION,FARNELL ELECTRONIC,5100317472,345.8,,
United Kingdom Atomic Energy Authority,United Kingdom Atomic Energy Authority,25/02/2015,MATERIALS & SPARES,FUSION,FARNELL ELECTRONIC,5100317491,0.82,,
United Kingdom Atomic Energy Authority,United Kingdom Atomic Energy Authority,02/03/2015,MATERIALS & SPARES,FUSION,FARNELL ELECTRONIC,5100317924,75.37,,
United Kingdom Atomic Energy Authority,United Kingdom Atomic Energy Authority,09/03/2015,MATERIALS & SPARES,FUSION,FARNELL ELECTRONIC,5100318000,52.03,,
United Kingdom Atomic Energy Authority,United Kingdom Atomic Energy Authority,09/03/2015,MATERIALS & SPARES,FUSION,FARNELL ELECTRONIC,5100318219,22.05,,
United Kingdom Atomic Energy Authority,United Kingdom Atomic Energy Authority,09/03/2015,MATERIALS & SPARES,FUSION,FARNELL ELECTRONIC,5100318225,5.76,,
United Kingdom Atomic Energy Authority,United Kingdom Atomic Energy Authority,09/03/2015,MATERIALS & SPARES,FUSION,FARNELL ELECTRONIC,5100318347,13.53,,
United Kingdom Atomic Energy Authority,United Kingdom Atomic Energy Authority,09/03/2015,MATERIALS & SPARES,FUSION,FARNELL ELECTRONIC,5100318350,501.38,,
United Kingdom Atomic Energy Authority,United Kingdom Atomic Energy Authority,30/03/2015,MATERIALS & SPARES,FUSION,FARNELL ELECTRONIC,5100318841,7.19,,
United Kingdom Atomic Energy Authority,United Kingdom Atomic Energy Authority,30/03/2015,MATERIALS & SPARES,FUSION,FARNELL ELECTRONIC,5100318843,22.66,,
United Kingdom Atomic Energy Authority,United Kingdom Atomic Energy Authority,30/03/2015,MATERIALS & SPARES,FUSION,FARNELL ELECTRONIC,5100318920,94.75,,
United Kingdom Atomic Energy Authority,United Kingdom Atomic Energy Authority,30/03/2015,MATERIALS & SPARES,FUSION,FARNELL ELECTRONIC,5100318925,17.14,,
United Kingdom Atomic Energy Authority,United Kingdom Atomic Energy Authority,30/03/2015,MATERIALS & SPARES,FUSION,FARNELL ELECTRONIC,5100318926,29.27,,
United Kingdom Atomic Energy Authority,United Kingdom Atomic Energy Authority,25/03/2015,MATERIALS & SPARES,FUSION,FARNELL ELECTRONIC,5100319167,6.8,,
United Kingdom Atomic Energy Authority,United Kingdom Atomic Energy Authority,25/02/2015,MATERIALS & SPARES,FUSION,FARNELL ELECTRONIC,5100317279,29.4,,
United Kingdom Atomic Energy Authority,United Kingdom Atomic Energy Authority,25/02/2015,MATERIALS & SPARES,FUSION,FARNELL ELECTRONIC,5100317495,11.58,,
United Kingdom Atomic Energy Authority,United Kingdom Atomic Energy Authority,04/03/2015,MATERIALS & SPARES,FUSION,FARNELL ELECTRONIC,5100316374,27.85,,
United Kingdom Atomic Energy Authority,United Kingdom Atomic Energy Authority,25/02/2015,MATERIALS & SPARES,FUSION,FARNELL ELECTRONIC,5100317498,109.6,,
United Kingdom Atomic Energy Authority,United Kingdom Atomic Energy Authority,09/03/2015,MATERIALS & SPARES,FUSION,FARNELL ELECTRONIC,5100317991,101.32,,
United Kingdom Atomic Energy Authority,United Kingdom Atomic Energy Authority,16/03/2015,MATERIALS & SPARES,FUSION,FARNELL ELECTRONIC,5100318702,43.42,,
United Kingdom Atomic Energy Authority,United Kingdom Atomic Energy Authority,16/03/2015,MATERIALS & SPARES,FUSION,FARNELL ELECTRONIC,5100318703,45.23,,
United Kingdom Atomic Energy Authority,United Kingdom Atomic Energy Authority,25/03/2015,MATERIALS & SPARES,FUSION,FARNELL ELECTRONIC,5100319177,106.84,,
United Kingdom Atomic Energy Authority,United Kingdom Atomic Energy Authority,25/03/2015,MATERIALS & SPARES,FUSION,FARNELL ELECTRONIC,5100319183,32.85,,
United Kingdom Atomic Energy Authority,United Kingdom Atomic Energy Authority,09/03/2015,MATERIALS & SPARES,FUSION,FARNELL ELECTRONIC,5100317972,386.69,,
United Kingdom Atomic Energy Authority,United Kingdom Atomic Energy Authority,30/03/2015,MATERIALS & SPARES,FUSION,FARNELL ELECTRONIC,5100317999,93.42,,
United Kingdom Atomic Energy Authority,United Kingdom Atomic Energy Authority,25/03/2015,MATERIALS & SPARES,FUSION,FARNELL ELECTRONIC,5100319169,53.1,,
United Kingdom Atomic Energy Authority,United Kingdom Atomic Energy Authority,25/03/2015,MATERIALS & SPARES,FUSION,FARNELL ELECTRONIC,5100319170,0.4,,
United Kingdom Atomic Energy Authority,United Kingdom Atomic Energy Authority,25/03/2015,MATERIALS & SPARES,FUSION,FARNELL ELECTRONIC,5100319258,53.04,,
United Kingdom Atomic Energy Authority,United Kingdom Atomic Energy Authority,25/03/2015,MATERIALS & SPARES,FUSION,FARNELL ELECTRONIC,5100319261,116.54,,
United Kingdom Atomic Energy Authority,United Kingdom Atomic Energy Authority,30/03/2015,MATERIALS & SPARES,FUSION,FARNELL ELECTRONIC,5100318215,71.07,,
United Kingdom Atomic Energy Authority,United Kingdom Atomic Energy Authority,09/03/2015,MATERIALS & SPARES,FUSION,FARNELL ELECTRONIC,5100318222,91.7,,
United Kingdom Atomic Energy Authority,United Kingdom Atomic Energy Authority,25/02/2015,MATERIALS & SPARES,FUSION,FARNELL ELECTRONIC,5100317515,54.68,,
United Kingdom Atomic Energy Authority,United Kingdom Atomic Energy Authority,25/02/2015,MATERIALS & SPARES,FUSION,FARNELL ELECTRONIC,5100317522,574.02,,
United Kingdom Atomic Energy Authority,United Kingdom Atomic Energy Authority,25/03/2015,MATERIALS & SPARES,FUSION,FARNELL ELECTRONIC,5100319191,137.07,,
United Kingdom Atomic Energy Authority,United Kingdom Atomic Energy Authority,25/03/2015,MATERIALS & SPARES,FUSION,FARNELL ELECTRONIC,5100319257,36.93,,
United Kingdom Atomic Energy Authority,United Kingdom Atomic Energy Authority,25/03/2015,MATERIALS & SPARES,FUSION,FARNELL ELECTRONIC,5100319262,16.45,,
United Kingdom Atomic Energy Authority,United Kingdom Atomic Energy Authority,25/02/2015,MATERIALS & SPARES,FUSION,FARNELL ELECTRONIC,5100317494,208.12,,
United Kingdom Atomic Energy Authority,United Kingdom Atomic Energy Authority,25/02/2015,MATERIALS & SPARES,FUSION,FARNELL ELECTRONIC,5100317501,12,,
United Kingdom Atomic Energy Authority,United Kingdom Atomic Energy Authority,25/02/2015,MATERIALS & SPARES,FUSION,FARNELL ELECTRONIC,5100317508,16.79,,
United Kingdom Atomic Energy Authority,United Kingdom Atomic Energy Authority,25/02/2015,MATERIALS & SPARES,FUSION,FARNELL ELECTRONIC,5100317529,127.59,,
United Kingdom Atomic Energy Authority,United Kingdom Atomic Energy Authority,11/03/2015,MATERIALS & SPARES,FUSION,FARNELL ELECTRONIC,5100317914,86.99,,
United Kingdom Atomic Energy Authority,United Kingdom Atomic Energy Authority,11/03/2015,MATERIALS & SPARES,FUSION,FARNELL ELECTRONIC,5100317923,240.36,,
United Kingdom Atomic Energy Authority,United Kingdom Atomic Energy Authority,02/03/2015,MATERIALS & SPARES,FUSION,FARNELL ELECTRONIC,5100317930,63.83,,
United Kingdom Atomic Energy Authority,United Kingdom Atomic Energy Authority,11/03/2015,MATERIALS & SPARES,FUSION,FARNELL ELECTRONIC,5100317962,30.5,,
United Kingdom Atomic Energy Authority,United Kingdom Atomic Energy Authority,04/03/2015,MATERIALS & SPARES,FUSION,FARNELL ELECTRONIC,5100317964,146.66,,
United Kingdom Atomic Energy Authority,United Kingdom Atomic Energy Authority,09/03/2015,MATERIALS & SPARES,FUSION,FARNELL ELECTRONIC,5100317995,95.46,,
United Kingdom Atomic Energy Authority,United Kingdom Atomic Energy Authority,04/03/2015,MATERIALS & SPARES,FUSION,FARNELL ELECTRONIC,5100318003,-76.8,,
United Kingdom Atomic Energy Authority,United Kingdom Atomic Energy Authority,09/03/2015,MATERIALS & SPARES,FUSION,FARNELL ELECTRONIC,5100318216,42.74,,
United Kingdom Atomic Energy Authority,United Kingdom Atomic Energy Authority,11/03/2015,MATERIALS & SPARES,FUSION,FARNELL ELECTRONIC,5100318229,258.44,,
United Kingdom Atomic Energy Authority,United Kingdom Atomic Energy Authority,11/03/2015,MATERIALS & SPARES,FUSION,FARNELL ELECTRONIC,5100318352,21,,
United Kingdom Atomic Energy Authority,United Kingdom Atomic Energy Authority,09/03/2015,MATERIALS & SPARES,FUSION,FARNELL ELECTRONIC,5100318372,44.3,,
United Kingdom Atomic Energy Authority,United Kingdom Atomic Energy Authority,11/03/2015,MATERIALS & SPARES,FUSION,FARNELL ELECTRONIC,5100318375,178.2,,
United Kingdom Atomic Energy Authority,United Kingdom Atomic Energy Authority,16/03/2015,MATERIALS & SPARES,FUSION,FARNELL ELECTRONIC,5100318683,88.9,,
United Kingdom Atomic Energy Authority,United Kingdom Atomic Energy Authority,16/03/2015,MATERIALS & SPARES,FUSION,FARNELL ELECTRONIC,5100318684,44.69,,
United Kingdom Atomic Energy Authority,United Kingdom Atomic Energy Authority,16/03/2015,MATERIALS & SPARES,FUSION,FARNELL ELECTRONIC,5100318687,203.52,,
United Kingdom Atomic Energy Authority,United Kingdom Atomic Energy Authority,16/03/2015,MATERIALS & SPARES,FUSION,FARNELL ELECTRONIC,5100318688,110.78,,
United Kingdom Atomic Energy Authority,United Kingdom Atomic Energy Authority,16/03/2015,MATERIALS & SPARES,FUSION,FARNELL ELECTRONIC,5100318700,94.06,,
United Kingdom Atomic Energy Authority,United Kingdom Atomic Energy Authority,30/03/2015,MATERIALS & SPARES,FUSION,FARNELL ELECTRONIC,5100318914,5.98,,
United Kingdom Atomic Energy Authority,United Kingdom Atomic Energy Authority,30/03/2015,MATERIALS & SPARES,FUSION,FARNELL ELECTRONIC,5100318917,10.5,,
United Kingdom Atomic Energy Authority,United Kingdom Atomic Energy Authority,30/03/2015,MATERIALS & SPARES,FUSION,FARNELL ELECTRONIC,5100318921,175.34,,
United Kingdom Atomic Energy Authority,United Kingdom Atomic Energy Authority,25/03/2015,MATERIALS & SPARES,FUSION,FARNELL ELECTRONIC,5100319168,3.24,,
United Kingdom Atomic Energy Authority,United Kingdom Atomic Energy Authority,25/03/2015,MATERIALS & SPARES,FUSION,FARNELL ELECTRONIC,5100319189,106.61,,
United Kingdom Atomic Energy Authority,United Kingdom Atomic Energy Authority,04/03/2015,MATERIALS & SPARES,FUSION,FARNELL ELECTRONIC,5100316813,153.59,,
United Kingdom Atomic Energy Authority,United Kingdom Atomic Energy Authority,25/02/2015,MATERIALS & SPARES,FUSION,FARNELL ELECTRONIC,5100317465,93.5,,
United Kingdom Atomic Energy Authority,United Kingdom Atomic Energy Authority,25/02/2015,MATERIALS & SPARES,FUSION,FARNELL ELECTRONIC,5100317466,10.3,,
United Kingdom Atomic Energy Authority,United Kingdom Atomic Energy Authority,25/02/2015,MATERIALS & SPARES,FUSION,FARNELL ELECTRONIC,5100317469,12,,
United Kingdom Atomic Energy Authority,United Kingdom Atomic Energy Authority,25/02/2015,MATERIALS & SPARES,FUSION,FARNELL ELECTRONIC,5100317530,1.23,,
United Kingdom Atomic Energy Authority,United Kingdom Atomic Energy Authority,02/03/2015,MATERIALS & SPARES,FUSION,FARNELL ELECTRONIC,5100317816,78.07,,
United Kingdom Atomic Energy Authority,United Kingdom Atomic Energy Authority,11/03/2015,MATERIALS & SPARES,FUSION,FARNELL ELECTRONIC,5100317918,316.89,,
United Kingdom Atomic Energy Authority,United Kingdom Atomic Energy Authority,09/03/2015,MATERIALS & SPARES,FUSION,FARNELL ELECTRONIC,5100317992,6.55,,
United Kingdom Atomic Energy Authority,United Kingdom Atomic Energy Authority,11/03/2015,MATERIALS & SPARES,FUSION,FARNELL ELECTRONIC,5100317993,359.57,,
United Kingdom Atomic Energy Authority,United Kingdom Atomic Energy Authority,04/03/2015,MATERIALS & SPARES,FUSION,FARNELL ELECTRONIC,5100318006,-17.29,,
United Kingdom Atomic Energy Authority,United Kingdom Atomic Energy Authority,09/03/2015,MATERIALS & SPARES,FUSION,FARNELL ELECTRONIC,5100318221,325.78,,
United Kingdom Atomic Energy Authority,United Kingdom Atomic Energy Authority,11/03/2015,MATERIALS & SPARES,FUSION,FARNELL ELECTRONIC,5100318348,190.59,,
United Kingdom Atomic Energy Authority,United Kingdom Atomic Energy Authority,09/03/2015,MATERIALS & SPARES,FUSION,FARNELL ELECTRONIC,5100318356,360.75,,
United Kingdom Atomic Energy Authority,United Kingdom Atomic Energy Authority,16/03/2015,MATERIALS & SPARES,FUSION,FARNELL ELECTRONIC,5100318686,221.95,,
United Kingdom Atomic Energy Authority,United Kingdom Atomic Energy Authority,16/03/2015,MATERIALS & SPARES,FUSION,FARNELL ELECTRONIC,5100318709,220.89,,
United Kingdom Atomic Energy Authority,United Kingdom Atomic Energy Authority,30/03/2015,MATERIALS & SPARES,FUSION,FARNELL ELECTRONIC,5100318955,116.63,,
United Kingdom Atomic Energy Authority,United Kingdom Atomic Energy Authority,30/03/2015,MATERIALS & SPARES,FUSION,FARNELL ELECTRONIC,5100318956,68.96,,
United Kingdom Atomic Energy Authority,United Kingdom Atomic Energy Authority,30/03/2015,MATERIALS & SPARES,FUSION,FARNELL ELECTRONIC,5100318960,211.2,,
United Kingdom Atomic Energy Authority,United Kingdom Atomic Energy Authority,25/03/2015,MATERIALS & SPARES,FUSION,FARNELL ELECTRONIC,5100319164,276.68,,
United Kingdom Atomic Energy Authority,United Kingdom Atomic Energy Authority,25/03/2015,MATERIALS & SPARES,FUSION,FARNELL ELECTRONIC,5100319187,208.46,,
United Kingdom Atomic Energy Authority,United Kingdom Atomic Energy Authority,25/02/2015,MATERIALS & SPARES,FUSION,FARNELL ELECTRONIC,5100317458,17.12,,
United Kingdom Atomic Energy Authority,United Kingdom Atomic Energy Authority,02/03/2015,MATERIALS & SPARES,FUSION,FARNELL ELECTRONIC,5100317917,82.2,,
United Kingdom Atomic Energy Authority,United Kingdom Atomic Energy Authority,09/03/2015,MATERIALS & SPARES,FUSION,FARNELL ELECTRONIC,5100318220,91.73,,
United Kingdom Atomic Energy Authority,United Kingdom Atomic Energy Authority,09/03/2015,MATERIALS & SPARES,FUSION,FARNELL ELECTRONIC,5100318368,22.89,,
United Kingdom Atomic Energy Authority,United Kingdom Atomic Energy Authority,16/03/2015,MATERIALS & SPARES,FUSION,FARNELL ELECTRONIC,5100318682,43.3,,
United Kingdom Atomic Energy Authority,United Kingdom Atomic Energy Authority,30/03/2015,MATERIALS & SPARES,FUSION,FARNELL ELECTRONIC,5100318842,564.59,,
United Kingdom Atomic Energy Authority,United Kingdom Atomic Energy Authority,25/02/2015,MATERIALS & SPARES,FUSION,FARNELL ELECTRONIC,5100317473,194.58,,
United Kingdom Atomic Energy Authority,United Kingdom Atomic Energy Authority,02/03/2015,MATERIALS & SPARES,FUSION,FARNELL ELECTRONIC,5100317815,194.42,,
United Kingdom Atomic Energy Authority,United Kingdom Atomic Energy Authority,09/03/2015,MATERIALS & SPARES,FUSION,FARNELL ELECTRONIC,5100318359,102.45,,
United Kingdom Atomic Energy Authority,United Kingdom Atomic Energy Authority,30/03/2015,MATERIALS & SPARES,FUSION,FARNELL ELECTRONIC,5100318924,213.07,,
United Kingdom Atomic Energy Authority,United Kingdom Atomic Energy Authority,25/03/2015,MATERIALS & SPARES,FUSION,FARNELL ELECTRONIC,5100319263,86.35,,
United Kingdom Atomic Energy Authority,United Kingdom Atomic Energy Authority,25/02/2015,MATERIALS & SPARES,FUSION,FARNELL ELECTRONIC,5100317461,187.93,,
United Kingdom Atomic Energy Authority,United Kingdom Atomic Energy Authority,11/03/2015,MATERIALS & SPARES,FUSION,FARNELL ELECTRONIC,5100317403,150.51,,
United Kingdom Atomic Energy Authority,United Kingdom Atomic Energy Authority,11/03/2015,MATERIALS & SPARES,FUSION,FARNELL ELECTRONIC,5100317404,150.51,,
United Kingdom Atomic Energy Authority,United Kingdom Atomic Energy Authority,25/02/2015,MATERIALS & SPARES,FUSION,FARNELL ELECTRONIC,5100317467,43.7,,
United Kingdom Atomic Energy Authority,United Kingdom Atomic Energy Authority,11/03/2015,MATERIALS & SPARES,FUSION,FARNELL ELECTRONIC,5100317505,150.51,,
United Kingdom Atomic Energy Authority,United Kingdom Atomic Energy Authority,02/03/2015,MATERIALS & SPARES,FUSION,FARNELL ELECTRONIC,5100317916,85.87,,
United Kingdom Atomic Energy Authority,United Kingdom Atomic Energy Authority,09/03/2015,MATERIALS & SPARES,FUSION,FARNELL ELECTRONIC,5100317979,118.92,,
United Kingdom Atomic Energy Authority,United Kingdom Atomic Energy Authority,09/03/2015,MATERIALS & SPARES,FUSION,FARNELL ELECTRONIC,5100318226,1811.41,,
United Kingdom Atomic Energy Authority,United Kingdom Atomic Energy Authority,09/03/2015,MATERIALS & SPARES,FUSION,FARNELL ELECTRONIC,5100318357,146.68,,
United Kingdom Atomic Energy Authority,United Kingdom Atomic Energy Authority,11/03/2015,MATERIALS & SPARES,FUSION,FARNELL ELECTRONIC,5100318360,151.3,,
United Kingdom Atomic Energy Authority,United Kingdom Atomic Energy Authority,30/03/2015,MATERIALS & SPARES,FUSION,FARNELL ELECTRONIC,5100318915,502.98,,
United Kingdom Atomic Energy Authority,United Kingdom Atomic Energy Authority,30/03/2015,MATERIALS & SPARES,FUSION,FARNELL ELECTRONIC,5100318923,777.52,,
United Kingdom Atomic Energy Authority,United Kingdom Atomic Energy Authority,30/03/2015,MATERIALS & SPARES,FUSION,FARNELL ELECTRONIC,5100318972,116.32,,
United Kingdom Atomic Energy Authority,United Kingdom Atomic Energy Authority,30/03/2015,MATERIALS & SPARES,FUSION,FARNELL ELECTRONIC,5100318974,582.87,,
United Kingdom Atomic Energy Authority,United Kingdom Atomic Energy Authority,25/03/2015,MATERIALS & SPARES,FUSION,FARNELL ELECTRONIC,5100319163,9.8,,
United Kingdom Atomic Energy Authority,United Kingdom Atomic Energy Authority,25/03/2015,MATERIALS & SPARES,FUSION,FARNELL ELECTRONIC,5100319186,158.04,,
United Kingdom Atomic Energy Authority,United Kingdom Atomic Energy Authority,25/03/2015,MATERIALS & SPARES,FUSION,FARNELL ELECTRONIC,5100319190,19.8,,
United Kingdom Atomic Energy Authority,United Kingdom Atomic Energy Authority,25/03/2015,MATERIALS & SPARES,FUSION,FARNELL ELECTRONIC,5100319260,104.1,,
United Kingdom Atomic Energy Authority,United Kingdom Atomic Energy Authority,30/03/2015,MATERIALS & SPARES,FUSION,FARNELL ELECTRONIC,5100318922,101.45,,
United Kingdom Atomic Energy Authority,United Kingdom Atomic Energy Authority,18/03/2015,MATERIALS & SPARES,FUSION,FARNELL ELECTRONIC,5100317273,196.28,,
United Kingdom Atomic Energy Authority,United Kingdom Atomic Energy Authority,18/03/2015,MATERIALS & SPARES,FUSION,FARNELL ELECTRONIC,5100317457,114.8,,
United Kingdom Atomic Energy Authority,United Kingdom Atomic Energy Authority,25/02/2015,MATERIALS & SPARES,FUSION,FARNELL ELECTRONIC,5100317460,9.73,,
United Kingdom Atomic Energy Authority,United Kingdom Atomic Energy Authority,25/02/2015,MATERIALS & SPARES,FUSION,FARNELL ELECTRONIC,5100317527,19.46,,
United Kingdom Atomic Energy Authority,United Kingdom Atomic Energy Authority,02/03/2015,MATERIALS & SPARES,FUSION,FARNELL ELECTRONIC,5100317919,27.5,,
United Kingdom Atomic Energy Authority,United Kingdom Atomic Energy Authority,30/03/2015,MATERIALS & SPARES,FUSION,FARNELL ELECTRONIC,5100317925,48.84,,
United Kingdom Atomic Energy Authority,United Kingdom Atomic Energy Authority,02/03/2015,MATERIALS & SPARES,FUSION,FARNELL ELECTRONIC,5100317961,86.44,,
United Kingdom Atomic Energy Authority,United Kingdom Atomic Energy Authority,11/03/2015,MATERIALS & SPARES,FUSION,FARNELL ELECTRONIC,5100318367,9.73,,
United Kingdom Atomic Energy Authority,United Kingdom Atomic Energy Authority,30/03/2015,MATERIALS & SPARES,FUSION,FARNELL ELECTRONIC,5100318957,138.01,,
United Kingdom Atomic Energy Authority,United Kingdom Atomic Energy Authority,25/03/2015,MATERIALS & SPARES,FUSION,FARNELL ELECTRONIC,5100319175,1133.68,,
United Kingdom Atomic Energy Authority,United Kingdom Atomic Energy Authority,16/03/2015,MATERIALS & SPARES,FUSION,FARNELL ELECTRONIC,5100318708,888.4,,
United Kingdom Atomic Energy Authority,United Kingdom Atomic Energy Authority,25/03/2015,MATERIALS & SPARES,FUSION,FARNELL ELECTRONIC,5100319188,36.52,,
United Kingdom Atomic Energy Authority,United Kingdom Atomic Energy Authority,25/02/2015,MATERIALS & SPARES,FUSION,FARNELL ELECTRONIC,5100317449,94.15,,
United Kingdom Atomic Energy Authority,United Kingdom Atomic Energy Authority,25/02/2015,MATERIALS & SPARES,FUSION,FARNELL ELECTRONIC,5100317452,40,,
United Kingdom Atomic Energy Authority,United Kingdom Atomic Energy Authority,25/02/2015,MATERIALS & SPARES,FUSION,FARNELL ELECTRONIC,5100317462,7.14,,
United Kingdom Atomic Energy Authority,United Kingdom Atomic Energy Authority,25/02/2015,MATERIALS & SPARES,FUSION,FARNELL ELECTRONIC,5100317463,1428.56,,
United Kingdom Atomic Energy Authority,United Kingdom Atomic Energy Authority,25/02/2015,MATERIALS & SPARES,FUSION,FARNELL ELECTRONIC,5100317464,13.4,,
United Kingdom Atomic Energy Authority,United Kingdom Atomic Energy Authority,09/03/2015,MATERIALS & SPARES,FUSION,FARNELL ELECTRONIC,5100317985,19.68,,
United Kingdom Atomic Energy Authority,United Kingdom Atomic Energy Authority,09/03/2015,MATERIALS & SPARES,FUSION,FARNELL ELECTRONIC,5100318228,9.42,,
United Kingdom Atomic Energy Authority,United Kingdom Atomic Energy Authority,16/03/2015,MATERIALS & SPARES,FUSION,FARNELL ELECTRONIC,5100318704,200.79,,
United Kingdom Atomic Energy Authority,United Kingdom Atomic Energy Authority,25/03/2015,MATERIALS & SPARES,FUSION,FARNELL ELECTRONIC,5100319166,21.34,,
United Kingdom Atomic Energy Authority,United Kingdom Atomic Energy Authority,30/03/2015,MATERIALS & SPARES,FUSION,FARNELL ELECTRONIC,5100316865,83.34,,
United Kingdom Atomic Energy Authority,United Kingdom Atomic Energy Authority,30/03/2015,MATERIALS & SPARES,FUSION,FARNELL ELECTRONIC,5100316957,862.18,,
United Kingdom Atomic Energy Authority,United Kingdom Atomic Energy Authority,30/03/2015,MATERIALS & SPARES,FUSION,FARNELL ELECTRONIC,5100316958,1100.7,,
United Kingdom Atomic Energy Authority,United Kingdom Atomic Energy Authority,30/03/2015,MATERIALS & SPARES,FUSION,FARNELL ELECTRONIC,5100316959,2916.38,,
United Kingdom Atomic Energy Authority,United Kingdom Atomic Energy Authority,30/03/2015,MATERIALS & SPARES,FUSION,FARNELL ELECTRONIC,5100316978,0.25,,
United Kingdom Atomic Energy Authority,United Kingdom Atomic Energy Authority,30/03/2015,MATERIALS & SPARES,FUSION,FARNELL ELECTRONIC,5100316984,597.97,,
United Kingdom Atomic Energy Authority,United Kingdom Atomic Energy Authority,30/03/2015,MATERIALS & SPARES,FUSION,FARNELL ELECTRONIC,5100317001,161.13,,
United Kingdom Atomic Energy Authority,United Kingdom Atomic Energy Authority,30/03/2015,MATERIALS & SPARES,FUSION,FARNELL ELECTRONIC,5100317002,30.46,,
United Kingdom Atomic Energy Authority,United Kingdom Atomic Energy Authority,30/03/2015,MATERIALS & SPARES,FUSION,FARNELL ELECTRONIC,5100317003,1532.42,,
United Kingdom Atomic Energy Authority,United Kingdom Atomic Energy Authority,30/03/2015,MATERIALS & SPARES,FUSION,FARNELL ELECTRONIC,5100317006,31.33,,
United Kingdom Atomic Energy Authority,United Kingdom Atomic Energy Authority,30/03/2015,MATERIALS & SPARES,FUSION,FARNELL ELECTRONIC,5100317010,20.79,,
United Kingdom Atomic Energy Authority,United Kingdom Atomic Energy Authority,30/03/2015,MATERIALS & SPARES,FUSION,FARNELL ELECTRONIC,5100317012,34.8,,
United Kingdom Atomic Energy Authority,United Kingdom Atomic Energy Authority,30/03/2015,MATERIALS & SPARES,FUSION,FARNELL ELECTRONIC,5100317013,4.72,,
United Kingdom Atomic Energy Authority,United Kingdom Atomic Energy Authority,30/03/2015,MATERIALS & SPARES,FUSION,FARNELL ELECTRONIC,5100317014,8.45,,
United Kingdom Atomic Energy Authority,United Kingdom Atomic Energy Authority,30/03/2015,MATERIALS & SPARES,FUSION,FARNELL ELECTRONIC,5100317015,42.73,,
United Kingdom Atomic Energy Authority,United Kingdom Atomic Energy Authority,30/03/2015,MATERIALS & SPARES,FUSION,FARNELL ELECTRONIC,5100317406,882.84,,
United Kingdom Atomic Energy Authority,United Kingdom Atomic Energy Authority,30/03/2015,MATERIALS & SPARES,FUSION,FARNELL ELECTRONIC,5100317474,154.29,,
United Kingdom Atomic Energy Authority,United Kingdom Atomic Energy Authority,30/03/2015,MATERIALS & SPARES,FUSION,FARNELL ELECTRONIC,5100317496,657.19,,
United Kingdom Atomic Energy Authority,United Kingdom Atomic Energy Authority,25/02/2015,MATERIALS & SPARES,FUSION,FARNELL ELECTRONIC,5100317524,211.3,,
United Kingdom Atomic Energy Authority,United Kingdom Atomic Energy Authority,30/03/2015,MATERIALS & SPARES,FUSION,FARNELL ELECTRONIC,5100317528,238.49,,
United Kingdom Atomic Energy Authority,United Kingdom Atomic Energy Authority,30/03/2015,MATERIALS & SPARES,FUSION,FARNELL ELECTRONIC,5100317921,26.24,,
United Kingdom Atomic Energy Authority,United Kingdom Atomic Energy Authority,30/03/2015,MATERIALS & SPARES,FUSION,FARNELL ELECTRONIC,5100317963,107.06,,
United Kingdom Atomic Energy Authority,United Kingdom Atomic Energy Authority,09/03/2015,MATERIALS & SPARES,FUSION,FARNELL ELECTRONIC,5100317990,120.86,,
United Kingdom Atomic Energy Authority,United Kingdom Atomic Energy Authority,09/03/2015,MATERIALS & SPARES,FUSION,FARNELL ELECTRONIC,5100318217,37.87,,
United Kingdom Atomic Energy Authority,United Kingdom Atomic Energy Authority,09/03/2015,MATERIALS & SPARES,FUSION,FARNELL ELECTRONIC,5100318218,147.77,,
United Kingdom Atomic Energy Authority,United Kingdom Atomic Energy Authority,30/03/2015,MATERIALS & SPARES,FUSION,FARNELL ELECTRONIC,5100318223,14.5,,
United Kingdom Atomic Energy Authority,United Kingdom Atomic Energy Authority,30/03/2015,MATERIALS & SPARES,FUSION,FARNELL ELECTRONIC,5100318227,10.66,,
United Kingdom Atomic Energy Authority,United Kingdom Atomic Energy Authority,30/03/2015,MATERIALS & SPARES,FUSION,FARNELL ELECTRONIC,5100318230,293.45,,
United Kingdom Atomic Energy Authority,United Kingdom Atomic Energy Authority,09/03/2015,MATERIALS & SPARES,FUSION,FARNELL ELECTRONIC,5100318351,188.35,,
United Kingdom Atomic Energy Authority,United Kingdom Atomic Energy Authority,09/03/2015,MATERIALS & SPARES,FUSION,FARNELL ELECTRONIC,5100318353,459,,
United Kingdom Atomic Energy Authority,United Kingdom Atomic Energy Authority,16/03/2015,MATERIALS & SPARES,FUSION,FARNELL ELECTRONIC,5100318689,5.3,,
United Kingdom Atomic Energy Authority,United Kingdom Atomic Energy Authority,30/03/2015,MATERIALS & SPARES,FUSION,FARNELL ELECTRONIC,5100318701,193.99,,
United Kingdom Atomic Energy Authority,United Kingdom Atomic Energy Authority,16/03/2015,MATERIALS & SPARES,FUSION,FARNELL ELECTRONIC,5100318705,285.06,,
United Kingdom Atomic Energy Authority,United Kingdom Atomic Energy Authority,16/03/2015,MATERIALS & SPARES,FUSION,FARNELL ELECTRONIC,5100318707,0.95,,
United Kingdom Atomic Energy Authority,United Kingdom Atomic Energy Authority,30/03/2015,MATERIALS & SPARES,FUSION,FARNELL ELECTRONIC,5100318918,180.17,,
United Kingdom Atomic Energy Authority,United Kingdom Atomic Energy Authority,30/03/2015,MATERIALS & SPARES,FUSION,FARNELL ELECTRONIC,5100318958,571.19,,
United Kingdom Atomic Energy Authority,United Kingdom Atomic Energy Authority,30/03/2015,MATERIALS & SPARES,FUSION,FARNELL ELECTRONIC,5100318975,633.7,,
United Kingdom Atomic Energy Authority,United Kingdom Atomic Energy Authority,25/03/2015,MATERIALS & SPARES,FUSION,FARNELL ELECTRONIC,5100319181,10.6,,
United Kingdom Atomic Energy Authority,United Kingdom Atomic Energy Authority,04/03/2015,MATERIALS & SPARES,FUSION,FARNELL ELECTRONIC,5100317138,243.5,,
United Kingdom Atomic Energy Authority,United Kingdom Atomic Energy Authority,04/03/2015,MATERIALS & SPARES,FUSION,FARNELL ELECTRONIC,5100317454,5.95,,
United Kingdom Atomic Energy Authority,United Kingdom Atomic Energy Authority,04/03/2015,MATERIALS & SPARES,FUSION,FARNELL ELECTRONIC,5100317468,0.72,,
United Kingdom Atomic Energy Authority,United Kingdom Atomic Energy Authority,25/02/2015,MATERIALS & SPARES,FUSION,FARNELL ELECTRONIC,5100317471,0.08,,
United Kingdom Atomic Energy Authority,United Kingdom Atomic Energy Authority,04/03/2015,MATERIALS & SPARES,FUSION,FARNELL ELECTRONIC,5100317490,1.79,,
United Kingdom Atomic Energy Authority,United Kingdom Atomic Energy Authority,04/03/2015,MATERIALS & SPARES,FUSION,FARNELL ELECTRONIC,5100317497,11.4,,
United Kingdom Atomic Energy Authority,United Kingdom Atomic Energy Authority,25/02/2015,MATERIALS & SPARES,FUSION,FARNELL ELECTRONIC,5100317499,3.8,,
United Kingdom Atomic Energy Authority,United Kingdom Atomic Energy Authority,04/03/2015,MATERIALS & SPARES,FUSION,FARNELL ELECTRONIC,5100317500,26.4,,
United Kingdom Atomic Energy Authority,United Kingdom Atomic Energy Authority,09/03/2015,MATERIALS & SPARES,FUSION,FARNELL ELECTRONIC,5100318349,0.4,,
United Kingdom Atomic Energy Authority,United Kingdom Atomic Energy Authority,02/03/2015,MATERIALS & SPARES,FUSION,FARNELL ELECTRONIC,5100317922,30.72,,
United Kingdom Atomic Energy Authority,United Kingdom Atomic Energy Authority,02/03/2015,PLANT & EQUIPMENT,FUSION,FEI UK,5100317606,1732,,
United Kingdom Atomic Energy Authority,United Kingdom Atomic Energy Authority,18/03/2015,MATERIALS & SPARES,FUSION,Fibregrid Ltd,5100317931,10680,,
United Kingdom Atomic Energy Authority,United Kingdom Atomic Energy Authority,25/02/2015,MATERIALS & SPARES,FUSION,Fine- Align Ltd,5100316524,6454.8,,
United Kingdom Atomic Energy Authority,United Kingdom Atomic Energy Authority,25/02/2015,PLANT & EQUIPMENT,SUPPORT SERVICES,FISHER SCIENTIFIC UK LTD,5100317482,251.71,,
United Kingdom Atomic Energy Authority,United Kingdom Atomic Energy Authority,25/03/2015,PLANT & EQUIPMENT,SUPPORT SERVICES,FISHER SCIENTIFIC UK LTD,5100319156,106.14,,
United Kingdom Atomic Energy Authority,United Kingdom Atomic Energy Authority,25/02/2015,PLANT & EQUIPMENT,FUSION,FISHER SCIENTIFIC UK LTD,5100317339,179.86,,
United Kingdom Atomic Energy Authority,United Kingdom Atomic Energy Authority,25/02/2015,PLANT & EQUIPMENT,FUSION,FISHER SCIENTIFIC UK LTD,5100317609,26.31,,
United Kingdom Atomic Energy Authority,United Kingdom Atomic Energy Authority,09/03/2015,PLANT & EQUIPMENT,FUSION,FISHER SCIENTIFIC UK LTD,5100318018,327.09,,
United Kingdom Atomic Energy Authority,United Kingdom Atomic Energy Authority,09/03/2015,PLANT & EQUIPMENT,FUSION,FISHER SCIENTIFIC UK LTD,5100318021,307.16,,
United Kingdom Atomic Energy Authority,United Kingdom Atomic Energy Authority,16/03/2015,PLANT & EQUIPMENT,FUSION,FISHER SCIENTIFIC UK LTD,5100318750,109.83,,
United Kingdom Atomic Energy Authority,United Kingdom Atomic Energy Authority,09/03/2015,PLANT & EQUIPMENT,FUSION,FISHER SCIENTIFIC UK LTD,5100316754,687.33,,
United Kingdom Atomic Energy Authority,United Kingdom Atomic Energy Authority,25/03/2015,PLANT & EQUIPMENT,FUSION,FISHER SCIENTIFIC UK LTD,5100317152,444.98,,
United Kingdom Atomic Energy Authority,United Kingdom Atomic Energy Authority,25/02/2015,PLANT & EQUIPMENT,FUSION,FISHER SCIENTIFIC UK LTD,5100317479,45.86,,
United Kingdom Atomic Energy Authority,United Kingdom Atomic Energy Authority,25/02/2015,PLANT & EQUIPMENT,FUSION,FISHER SCIENTIFIC UK LTD,5100317480,45.86,,
United Kingdom Atomic Energy Authority,United Kingdom Atomic Energy Authority,25/02/2015,PLANT & EQUIPMENT,FUSION,FISHER SCIENTIFIC UK LTD,5100317481,45.86,,
United Kingdom Atomic Energy Authority,United Kingdom Atomic Energy Authority,02/03/2015,PLANT & EQUIPMENT,FUSION,FISHER SCIENTIFIC UK LTD,5100317607,490.91,,
United Kingdom Atomic Energy Authority,United Kingdom Atomic Energy Authority,09/03/2015,PLANT & EQUIPMENT,FUSION,FISHER SCIENTIFIC UK LTD,5100318019,91.72,,
United Kingdom Atomic Energy Authority,United Kingdom Atomic Energy Authority,09/03/2015,PLANT & EQUIPMENT,FUSION,FISHER SCIENTIFIC UK LTD,5100318254,521.93,,
United Kingdom Atomic Energy Authority,United Kingdom Atomic Energy Authority,09/03/2015,PLANT & EQUIPMENT,FUSION,FISHER SCIENTIFIC UK LTD,5100318255,2211.18,,
United Kingdom Atomic Energy Authority,United Kingdom Atomic Energy Authority,09/03/2015,PLANT & EQUIPMENT,FUSION,FISHER SCIENTIFIC UK LTD,5100318342,998.6,,
United Kingdom Atomic Energy Authority,United Kingdom Atomic Energy Authority,18/03/2015,PLANT & EQUIPMENT,FUSION,FISHER SCIENTIFIC UK LTD,5100318638,138.14,,
United Kingdom Atomic Energy Authority,United Kingdom Atomic Energy Authority,16/03/2015,PLANT & EQUIPMENT,FUSION,FISHER SCIENTIFIC UK LTD,5100318748,1423.94,,
United Kingdom Atomic Energy Authority,United Kingdom Atomic Energy Authority,16/03/2015,PLANT & EQUIPMENT,FUSION,FISHER SCIENTIFIC UK LTD,5100318752,1453.58,,
United Kingdom Atomic Energy Authority,United Kingdom Atomic Energy Authority,23/03/2015,PLANT & EQUIPMENT,FUSION,FISHER SCIENTIFIC UK LTD,5100318879,209.96,,
United Kingdom Atomic Energy Authority,United Kingdom Atomic Energy Authority,23/03/2015,PLANT & EQUIPMENT,FUSION,FISHER SCIENTIFIC UK LTD,5100319006,500.59,,
United Kingdom Atomic Energy Authority,United Kingdom Atomic Energy Authority,23/03/2015,PLANT & EQUIPMENT,FUSION,FISHER SCIENTIFIC UK LTD,5100319007,1251.47,,
United Kingdom Atomic Energy Authority,United Kingdom Atomic Energy Authority,23/03/2015,PLANT & EQUIPMENT,FUSION,FISHER SCIENTIFIC UK LTD,5100319008,817.64,,
United Kingdom Atomic Energy Authority,United Kingdom Atomic Energy Authority,23/03/2015,PLANT & EQUIPMENT,FUSION,FISHER SCIENTIFIC UK LTD,5100319009,750.89,,
United Kingdom Atomic Energy Authority,United Kingdom Atomic Energy Authority,20/03/2015,PLANT & EQUIPMENT,FUSION,FISHER SCIENTIFIC UK LTD,5100319106,-1453.58,,
United Kingdom Atomic Energy Authority,United Kingdom Atomic Energy Authority,20/03/2015,PLANT & EQUIPMENT,FUSION,FISHER SCIENTIFIC UK LTD,5100319107,1453.58,,
United Kingdom Atomic Energy Authority,United Kingdom Atomic Energy Authority,16/03/2015,PLANT & EQUIPMENT,FUSION,FISHER SCIENTIFIC UK LTD,5100318560,39.27,,
United Kingdom Atomic Energy Authority,United Kingdom Atomic Energy Authority,16/03/2015,MATERIALS & SPARES,FUSION,FLOWSERVE FLOW CONTROL (UK) LTD,5100318479,789.5,,
United Kingdom Atomic Energy Authority,United Kingdom Atomic Energy Authority,02/03/2015,PLANT SPARES,FUSION,FLUID CONTROL LTD,5100317769,3983.31,,
United Kingdom Atomic Energy Authority,United Kingdom Atomic Energy Authority,04/03/2015,MATERIALS & SPARES,FUSION,FORGEWELD LTD,5100317915,574.1,,
United Kingdom Atomic Energy Authority,United Kingdom Atomic Energy Authority,09/03/2015,PROFESSIONAL SERVICES,FUSION,FORTRESS INTERLOCKS LTD,5100317989,100,,
United Kingdom Atomic Energy Authority,United Kingdom Atomic Energy Authority,09/03/2015,MATERIALS & SPARES,FUSION,FORWARD 2000 LTD,5100318354,184.06,,
United Kingdom Atomic Energy Authority,United Kingdom Atomic Energy Authority,09/03/2015,MATERIALS & SPARES,FUSION,FORWARD 2000 LTD,5100317770,5199.18,,
United Kingdom Atomic Energy Authority,United Kingdom Atomic Energy Authority,25/02/2015,MATERIALS & SPARES,FUSION,FTI LTD,5100317743,178.76,,
United Kingdom Atomic Energy Authority,United Kingdom Atomic Energy Authority,02/03/2015,MATERIALS & SPARES,FUSION,FTI LTD,5100317824,53.07,,
United Kingdom Atomic Energy Authority,United Kingdom Atomic Energy Authority,02/03/2015,MATERIALS & SPARES,FUSION,FTI LTD,5100317825,649.39,,
United Kingdom Atomic Energy Authority,United Kingdom Atomic Energy Authority,16/03/2015,MATERIALS & SPARES,FUSION,FTI LTD,5100318520,144.26,,
United Kingdom Atomic Energy Authority,United Kingdom Atomic Energy Authority,16/03/2015,MATERIALS & SPARES,FUSION,FTI LTD,5100318680,410.1,,
United Kingdom Atomic Energy Authority,United Kingdom Atomic Energy Authority,16/03/2015,MATERIALS & SPARES,FUSION,FTI LTD,5100318521,43.61,,
United Kingdom Atomic Energy Authority,United Kingdom Atomic Energy Authority,04/03/2015,MATERIALS & SPARES,FUSION,FTI LTD,5100317966,618.72,,
United Kingdom Atomic Energy Authority,United Kingdom Atomic Energy Authority,16/03/2015,PROFESSIONAL SUBSCRIPTION,FUSION,FuseNet Association,1900060786,2138.43,CUL14169,
United Kingdom Atomic Energy Authority,United Kingdom Atomic Energy Authority,11/03/2015,DELIVERY & CARRIAGE,FUSION,Galloway Group Ltd,1900060779,1539.17,CUL14162,
United Kingdom Atomic Energy Authority,United Kingdom Atomic Energy Authority,11/03/2015,MATERIALS & SPARES,FUSION,GARNER OSBORNE CIRCUITS LTD,5100317652,525.12,,
United Kingdom Atomic Energy Authority,United Kingdom Atomic Energy Authority,16/03/2015,MATERIALS & SPARES,FUSION,GARNER OSBORNE CIRCUITS LTD,5100317653,442.68,,
United Kingdom Atomic Energy Authority,United Kingdom Atomic Energy Authority,16/03/2015,MATERIALS & SPARES,FUSION,GARNER OSBORNE CIRCUITS LTD,5100318563,270.52,,
United Kingdom Atomic Energy Authority,United Kingdom Atomic Energy Authority,25/03/2015,MATERIALS & SPARES,FUSION,GARNER OSBORNE CIRCUITS LTD,5100319069,426.3,,
United Kingdom Atomic Energy Authority,United Kingdom Atomic Energy Authority,25/02/2015,MATERIALS & SPARES,FUSION,Gear Cutting Ltd,5100315888,372.5,,
United Kingdom Atomic Energy Authority,United Kingdom Atomic Energy Authority,18/03/2015,MATERIALS & SPARES,FUSION,General Dynamics Global Imaging,5100318526,33390.62,,
United Kingdom Atomic Energy Authority,United Kingdom Atomic Energy Authority,18/03/2015,MATERIALS & SPARES,FUSION,General Dynamics Global Imaging,5100318594,13598.95,,
United Kingdom Atomic Energy Authority,United Kingdom Atomic Energy Authority,18/03/2015,MATERIALS & SPARES,FUSION,General Dynamics Global Imaging,5100318838,-2089.38,,
United Kingdom Atomic Energy Authority,United Kingdom Atomic Energy Authority,18/03/2015,MATERIALS & SPARES,FUSION,General Dynamics Global Imaging,5100318839,-269.1,,
United Kingdom Atomic Energy Authority,United Kingdom Atomic Energy Authority,18/03/2015,MATERIALS & SPARES,FUSION,General Dynamics Global Imaging,5100318530,19642.86,,
United Kingdom Atomic Energy Authority,United Kingdom Atomic Energy Authority,18/03/2015,MATERIALS & SPARES,FUSION,General Dynamics Global Imaging,5100318531,19642.86,,
United Kingdom Atomic Energy Authority,United Kingdom Atomic Energy Authority,18/03/2015,MATERIALS & SPARES,FUSION,General Dynamics Global Imaging,5100318532,1879.98,,
United Kingdom Atomic Energy Authority,United Kingdom Atomic Energy Authority,18/03/2015,MATERIALS & SPARES,FUSION,General Dynamics Global Imaging,5100318533,1879.98,,
United Kingdom Atomic Energy Authority,United Kingdom Atomic Energy Authority,09/03/2015,CONSUMABLES,FUSION,GM BAILEY AIR CONDITIONING,5100317363,565.1,,
United Kingdom Atomic Energy Authority,United Kingdom Atomic Energy Authority,25/02/2015,MATERIALS & SPARES,FUSION,GREYHOUND CHROMATOGRAPHY,5100317724,488.7,,
United Kingdom Atomic Energy Authority,United Kingdom Atomic Energy Authority,02/03/2015,PROFESSIONAL SERVICES,PROPERTY,GRUNDON WASTE MANAGEMENT LTD,5100317059,270.24,,
United Kingdom Atomic Energy Authority,United Kingdom Atomic Energy Authority,02/03/2015,PROFESSIONAL SERVICES,PROPERTY,GRUNDON WASTE MANAGEMENT LTD,5100317060,270.24,,
United Kingdom Atomic Energy Authority,United Kingdom Atomic Energy Authority,02/03/2015,PROFESSIONAL SERVICES,PROPERTY,GRUNDON WASTE MANAGEMENT LTD,5100317064,636.6,,
United Kingdom Atomic Energy Authority,United Kingdom Atomic Energy Authority,02/03/2015,PROFESSIONAL SERVICES,PROPERTY,GRUNDON WASTE MANAGEMENT LTD,5100317067,79.4,,
United Kingdom Atomic Energy Authority,United Kingdom Atomic Energy Authority,18/03/2015,PROFESSIONAL SERVICES,PROPERTY,GRUNDON WASTE MANAGEMENT LTD,5100318609,824.61,,
United Kingdom Atomic Energy Authority,United Kingdom Atomic Energy Authority,18/03/2015,PROFESSIONAL SERVICES,PROPERTY,GRUNDON WASTE MANAGEMENT LTD,5100318631,248.88,,
United Kingdom Atomic Energy Authority,United Kingdom Atomic Energy Authority,18/03/2015,PROFESSIONAL SERVICES,PROPERTY,GRUNDON WASTE MANAGEMENT LTD,5100318633,110,,
United Kingdom Atomic Energy Authority,United Kingdom Atomic Energy Authority,02/03/2015,PROFESSIONAL SERVICES,PROPERTY,GRUNDON WASTE MANAGEMENT LTD,5100317056,860.88,,
United Kingdom Atomic Energy Authority,United Kingdom Atomic Energy Authority,02/03/2015,PROFESSIONAL SERVICES,PROPERTY,GRUNDON WASTE MANAGEMENT LTD,5100317058,122.12,,
United Kingdom Atomic Energy Authority,United Kingdom Atomic Energy Authority,02/03/2015,PROFESSIONAL SERVICES,PROPERTY,GRUNDON WASTE MANAGEMENT LTD,5100317061,110,,
United Kingdom Atomic Energy Authority,United Kingdom Atomic Energy Authority,02/03/2015,PROFESSIONAL SERVICES,PROPERTY,GRUNDON WASTE MANAGEMENT LTD,5100317063,110,,
United Kingdom Atomic Energy Authority,United Kingdom Atomic Energy Authority,02/03/2015,PROFESSIONAL SERVICES,PROPERTY,GRUNDON WASTE MANAGEMENT LTD,5100317065,96.12,,
United Kingdom Atomic Energy Authority,United Kingdom Atomic Energy Authority,02/03/2015,PROFESSIONAL SERVICES,PROPERTY,GRUNDON WASTE MANAGEMENT LTD,5100317068,122.12,,
United Kingdom Atomic Energy Authority,United Kingdom Atomic Energy Authority,18/03/2015,PROFESSIONAL SERVICES,PROPERTY,GRUNDON WASTE MANAGEMENT LTD,5100318612,111.44,,
United Kingdom Atomic Energy Authority,United Kingdom Atomic Energy Authority,18/03/2015,PROFESSIONAL SERVICES,PROPERTY,GRUNDON WASTE MANAGEMENT LTD,5100318615,248.88,,
United Kingdom Atomic Energy Authority,United Kingdom Atomic Energy Authority,18/03/2015,PROFESSIONAL SERVICES,PROPERTY,GRUNDON WASTE MANAGEMENT LTD,5100318632,110,,
United Kingdom Atomic Energy Authority,United Kingdom Atomic Energy Authority,18/03/2015,PROFESSIONAL SERVICES,PROPERTY,GRUNDON WASTE MANAGEMENT LTD,5100318634,583.2,,
United Kingdom Atomic Energy Authority,United Kingdom Atomic Energy Authority,18/03/2015,PROFESSIONAL SERVICES,PROPERTY,GRUNDON WASTE MANAGEMENT LTD,5100318635,85.44,,
United Kingdom Atomic Energy Authority,United Kingdom Atomic Energy Authority,18/03/2015,PROFESSIONAL SERVICES,PROPERTY,GRUNDON WASTE MANAGEMENT LTD,5100318636,68.72,,
United Kingdom Atomic Energy Authority,United Kingdom Atomic Energy Authority,18/03/2015,PROFESSIONAL SERVICES,PROPERTY,GRUNDON WASTE MANAGEMENT LTD,5100318637,111.44,,
United Kingdom Atomic Energy Authority,United Kingdom Atomic Energy Authority,23/03/2015,PROFESSIONAL SERVICES,PROPERTY,GRUNDON WASTE MANAGEMENT LTD,5100319108,-85.44,,
United Kingdom Atomic Energy Authority,United Kingdom Atomic Energy Authority,23/03/2015,PROFESSIONAL SERVICES,PROPERTY,GRUNDON WASTE MANAGEMENT LTD,5100319109,85.44,,
United Kingdom Atomic Energy Authority,United Kingdom Atomic Energy Authority,04/03/2015,PLANT & EQUIPMENT,FUSION,H L HYDRAULIK GMBH,5100317205,424.3,,
United Kingdom Atomic Energy Authority,United Kingdom Atomic Energy Authority,23/03/2015,MATERIALS & SPARES,FUSION,Haesco Ltd,5100319013,20567,,
United Kingdom Atomic Energy Authority,United Kingdom Atomic Energy Authority,23/03/2015,MATERIALS & SPARES,FUSION,HAMAMATSU PHOTONICS LTD,5100319052,5365,,
United Kingdom Atomic Energy Authority,United Kingdom Atomic Energy Authority,09/03/2015,PLANT SPARES,FUSION,HARDMETAL ENG CORNWALL LTD,5100318309,2506.14,,
United Kingdom Atomic Energy Authority,United Kingdom Atomic Energy Authority,11/03/2015,PLANT SPARES,FUSION,HARDMETAL ENG CORNWALL LTD,5100318306,4852,,
United Kingdom Atomic Energy Authority,United Kingdom Atomic Energy Authority,09/03/2015,TAXIS,FUSION,HAROLDS CARS,5100318121,4985.1,,
United Kingdom Atomic Energy Authority,United Kingdom Atomic Energy Authority,23/03/2015,MATERIALS & SPARES,FUSION,Harting Ltd,5100318881,2795.2,,
United Kingdom Atomic Energy Authority,United Kingdom Atomic Energy Authority,09/03/2015,REPAIRS & MAINTENANCE,FUSION,HEXAGON METROLOGY,5100318341,1630,,
United Kingdom Atomic Energy Authority,United Kingdom Atomic Energy Authority,09/03/2015,PLANT & EQUIPMENT,FUSION,HFH - Holiday Fileding Hocking Ltd,1900060773,1828,CUL14156,
United Kingdom Atomic Energy Authority,United Kingdom Atomic Energy Authority,09/03/2015,DESIGN & CONSTRUCTION,PROPERTY,HILLMOORE FIRE PROTECTION LIMITED,5100318384,17146.75,,
United Kingdom Atomic Energy Authority,United Kingdom Atomic Energy Authority,16/03/2015,DESIGN & CONSTRUCTION,PROPERTY,HILLMOORE FIRE PROTECTION LIMITED,5100318519,19650.83,,
United Kingdom Atomic Energy Authority,United Kingdom Atomic Energy Authority,02/03/2015,PROFESSIONAL SERVICES,FUSION,HILLS WASTE SOLUTIONS LTD,5100316625,15,,
United Kingdom Atomic Energy Authority,United Kingdom Atomic Energy Authority,02/03/2015,PROFESSIONAL SERVICES,FUSION,HILLS WASTE SOLUTIONS LTD,5100316626,10,,
United Kingdom Atomic Energy Authority,United Kingdom Atomic Energy Authority,02/03/2015,PROFESSIONAL SERVICES,FUSION,HILLS WASTE SOLUTIONS LTD,5100316627,30,,
United Kingdom Atomic Energy Authority,United Kingdom Atomic Energy Authority,02/03/2015,PROFESSIONAL SERVICES,FUSION,HILLS WASTE SOLUTIONS LTD,5100316628,15,,
United Kingdom Atomic Energy Authority,United Kingdom Atomic Energy Authority,02/03/2015,PROFESSIONAL SERVICES,FUSION,HILLS WASTE SOLUTIONS LTD,5100316629,2964.04,,
United Kingdom Atomic Energy Authority,United Kingdom Atomic Energy Authority,25/03/2015,PROFESSIONAL SERVICES,FUSION,HILLS WASTE SOLUTIONS LTD,5100318241,1849.52,,
United Kingdom Atomic Energy Authority,United Kingdom Atomic Energy Authority,25/03/2015,PROFESSIONAL SERVICES,FUSION,HILLS WASTE SOLUTIONS LTD,5100318242,15,,
United Kingdom Atomic Energy Authority,United Kingdom Atomic Energy Authority,25/03/2015,PROFESSIONAL SERVICES,FUSION,HILLS WASTE SOLUTIONS LTD,5100318243,30,,
United Kingdom Atomic Energy Authority,United Kingdom Atomic Energy Authority,25/03/2015,PROFESSIONAL SERVICES,FUSION,HILLS WASTE SOLUTIONS LTD,5100318244,10,,
United Kingdom Atomic Energy Authority,United Kingdom Atomic Energy Authority,25/03/2015,PROFESSIONAL SERVICES,FUSION,HILLS WASTE SOLUTIONS LTD,5100318246,15,,
United Kingdom Atomic Energy Authority,United Kingdom Atomic Energy Authority,20/03/2015,PROFESSIONAL SERVICES,FUSION,HILLS WASTE SOLUTIONS LTD,5100319103,-2964.04,,
United Kingdom Atomic Energy Authority,United Kingdom Atomic Energy Authority,20/03/2015,PROFESSIONAL SERVICES,FUSION,HILLS WASTE SOLUTIONS LTD,5100319104,2964.04,,
United Kingdom Atomic Energy Authority,United Kingdom Atomic Energy Authority,09/03/2015,PLANT SPARES,FUSION,HILTI GB LTD,5100318263,451.1,,
United Kingdom Atomic Energy Authority,United Kingdom Atomic Energy Authority,25/02/2015,PLANT SPARES,FUSION,HILTI GB LTD,5100317677,67.75,,
United Kingdom Atomic Energy Authority,United Kingdom Atomic Energy Authority,16/03/2015,PLANT SPARES,FUSION,HILTI GB LTD,5100318538,1063,,
United Kingdom Atomic Energy Authority,United Kingdom Atomic Energy Authority,09/03/2015,STATIONERY,FUSION,HOBS REPROGRAPHICS PLC,5100317981,199.28,,
United Kingdom Atomic Energy Authority,United Kingdom Atomic Energy Authority,09/03/2015,STATIONERY,FUSION,HOBS REPROGRAPHICS PLC,5100317982,80,,
United Kingdom Atomic Energy Authority,United Kingdom Atomic Energy Authority,11/03/2015,TRAVEL,travel,Hogg Robinson(Travel)Ltd T/A HRG UK,5100318319,10736.9,,
United Kingdom Atomic Energy Authority,United Kingdom Atomic Energy Authority,18/03/2015,PROFESSIONAL SERVICES,FUSION,HONEYWELL ANALYTICS (SALES &SERVICE,5100318007,1217.4,,
United Kingdom Atomic Energy Authority,United Kingdom Atomic Energy Authority,18/03/2015,PROFESSIONAL SERVICES,FUSION,HONEYWELL ANALYTICS (SALES &SERVICE,5100318539,960,,
United Kingdom Atomic Energy Authority,United Kingdom Atomic Energy Authority,04/03/2015,PROFESSIONAL SERVICES,FUSION,HONEYWELL ANALYTICS (SALES &SERVICE,5100317170,22816.4,,
United Kingdom Atomic Energy Authority,United Kingdom Atomic Energy Authority,18/03/2015,PROFESSIONAL SERVICES,FUSION,HONEYWELL ANALYTICS (SALES &SERVICE,5100318009,592.42,,
United Kingdom Atomic Energy Authority,United Kingdom Atomic Energy Authority,25/02/2015,MATERIALS & SPARES,FUSION,HOTCHKISS AIR SUPPLY,5100317674,375.7,,
United Kingdom Atomic Energy Authority,United Kingdom Atomic Energy Authority,23/03/2015,MATERIALS & SPARES,FUSION,HOTCHKISS AIR SUPPLY,5100318902,58.4,,
United Kingdom Atomic Energy Authority,United Kingdom Atomic Energy Authority,25/03/2015,MATERIALS & SPARES,FUSION,HOTCHKISS AIR SUPPLY,5100319216,473.85,,
United Kingdom Atomic Energy Authority,United Kingdom Atomic Energy Authority,25/02/2015,MATERIALS & SPARES,FUSION,HPC GEARS LTD,5100315894,56.51,,
United Kingdom Atomic Energy Authority,United Kingdom Atomic Energy Authority,25/02/2015,PROFESSIONAL SERVICES,FUSION,HUTTON ENGINEERING (PRECISION) LTD,5100317675,342.58,,
United Kingdom Atomic Energy Authority,United Kingdom Atomic Energy Authority,02/03/2015,PROFESSIONAL SERVICES,FUSION,HUTTON ENGINEERING (PRECISION) LTD,5100317846,2396.63,,
United Kingdom Atomic Energy Authority,United Kingdom Atomic Energy Authority,25/02/2015,CLEANING,FUSION,HYDROBLAST,5100317224,470,,
United Kingdom Atomic Energy Authority,United Kingdom Atomic Energy Authority,09/03/2015,CLEANING,FUSION,HYDROBLAST,5100318277,1032,,
United Kingdom Atomic Energy Authority,United Kingdom Atomic Energy Authority,16/03/2015,STATIONERY,PROPERTY,IDENTILAM PLC,5100318483,718.3,,
United Kingdom Atomic Energy Authority,United Kingdom Atomic Energy Authority,23/03/2015,STATIONERY,PROPERTY,IDENTILAM PLC,5100318836,2180,,
United Kingdom Atomic Energy Authority,United Kingdom Atomic Energy Authority,09/03/2015,MATERIALS & SPARES,FUSION,Idom Merebrook Ltd,5100317544,31809.1,,
United Kingdom Atomic Energy Authority,United Kingdom Atomic Energy Authority,18/03/2015,OTHER EXTERNAL COSTS,,IEE - MCE,1900060794,637.2,CUL14175,
United Kingdom Atomic Energy Authority,United Kingdom Atomic Energy Authority,04/03/2015,DELIVERY & CARRIAGE,FUSION,ILF Ltd,1900060765,147.5,CUL14149,
United Kingdom Atomic Energy Authority,United Kingdom Atomic Energy Authority,09/03/2015,MEDICAL EXPENSES,FUSION,IMASS LTD,5100317986,4985.41,,
United Kingdom Atomic Energy Authority,United Kingdom Atomic Energy Authority,09/03/2015,MEDICAL EXPENSES,FUSION,IMASS LTD,5100318120,4985.41,,
United Kingdom Atomic Energy Authority,United Kingdom Atomic Energy Authority,25/02/2015,UNIVERSITY PLACEMENT,FUSION,IMPERIAL COLLEGE,5100315575,45061.24,,
United Kingdom Atomic Energy Authority,United Kingdom Atomic Energy Authority,16/03/2015,PLANT & EQUIPMENT,FUSION,INDUSTRIAL APPARATUS CONSULTANTS LTD,5100318535,920,,
United Kingdom Atomic Energy Authority,United Kingdom Atomic Energy Authority,25/02/2015,MATERIALS & SPARES,FUSION,Industrial Technical Ltd,5100317714,428.35,,
United Kingdom Atomic Energy Authority,United Kingdom Atomic Energy Authority,25/02/2015,MATERIALS & SPARES,FUSION,Industrial Technical Ltd,5100317739,170.75,,
United Kingdom Atomic Energy Authority,United Kingdom Atomic Energy Authority,25/02/2015,MATERIALS & SPARES,FUSION,Industrial Technical Ltd,5100317740,145.6,,
United Kingdom Atomic Energy Authority,United Kingdom Atomic Energy Authority,09/03/2015,MATERIALS & SPARES,FUSION,Industrial Technical Ltd,5100318105,412.7,,
United Kingdom Atomic Energy Authority,United Kingdom Atomic Energy Authority,25/03/2015,MATERIALS & SPARES,FUSION,Industrial Technical Ltd,5100319221,192,,
United Kingdom Atomic Energy Authority,United Kingdom Atomic Energy Authority,25/03/2015,MATERIALS & SPARES,FUSION,Industrial Technical Ltd,5100319224,145.2,,
United Kingdom Atomic Energy Authority,United Kingdom Atomic Energy Authority,25/03/2015,MATERIALS & SPARES,FUSION,Industrial Technical Ltd,5100319225,231.3,,
United Kingdom Atomic Energy Authority,United Kingdom Atomic Energy Authority,25/02/2015,MATERIALS & SPARES,FUSION,Industrial Technical Ltd,5100317716,2721.8,,
United Kingdom Atomic Energy Authority,United Kingdom Atomic Energy Authority,25/02/2015,MATERIALS & SPARES,FUSION,Industrial Technical Ltd,5100317717,44.93,,
United Kingdom Atomic Energy Authority,United Kingdom Atomic Energy Authority,02/03/2015,MATERIALS & SPARES,FUSION,Industrial Technical Ltd,5100317742,1607.4,,
United Kingdom Atomic Energy Authority,United Kingdom Atomic Energy Authority,02/03/2015,MATERIALS & SPARES,FUSION,Industrial Technical Ltd,5100317738,9384.55,,
United Kingdom Atomic Energy Authority,United Kingdom Atomic Energy Authority,09/03/2015,MATERIALS & SPARES,FUSION,Industrial Technical Ltd,5100318106,372.71,,
United Kingdom Atomic Energy Authority,United Kingdom Atomic Energy Authority,25/03/2015,MATERIALS & SPARES,FUSION,Industrial Technical Ltd,5100319227,2121.62,,
United Kingdom Atomic Energy Authority,United Kingdom Atomic Energy Authority,25/03/2015,MATERIALS & SPARES,FUSION,Industrial Technical Ltd,5100319332,-372.71,,
United Kingdom Atomic Energy Authority,United Kingdom Atomic Energy Authority,25/03/2015,MATERIALS & SPARES,FUSION,Industrial Technical Ltd,5100319333,372.71,,
United Kingdom Atomic Energy Authority,United Kingdom Atomic Energy Authority,25/02/2015,MATERIALS & SPARES,FUSION,Industrial Technical Ltd,5100317715,473.5,,
United Kingdom Atomic Energy Authority,United Kingdom Atomic Energy Authority,25/03/2015,MATERIALS & SPARES,FUSION,Industrial Technical Ltd,5100319228,209.03,,
United Kingdom Atomic Energy Authority,United Kingdom Atomic Energy Authority,25/03/2015,MATERIALS & SPARES,PROPERTY,Industrial Technical Ltd,5100319223,225,,
United Kingdom Atomic Energy Authority,United Kingdom Atomic Energy Authority,23/03/2015,PLANT & EQUIPMENT,FUSION,INNOLAS UK LTD,5100318919,3505,,
United Kingdom Atomic Energy Authority,United Kingdom Atomic Energy Authority,18/03/2015,PLANT & EQUIPMENT,FUSION,INSIGHT DIRECT LTD,5100318759,114.98,,
United Kingdom Atomic Energy Authority,United Kingdom Atomic Energy Authority,09/03/2015,PLANT & EQUIPMENT,FUSION,INSIGHT DIRECT LTD,5100318091,301.99,,
United Kingdom Atomic Energy Authority,United Kingdom Atomic Energy Authority,09/03/2015,PLANT & EQUIPMENT,FUSION,INSIGHT DIRECT LTD,5100318090,818.99,,
United Kingdom Atomic Energy Authority,United Kingdom Atomic Energy Authority,25/02/2015,PLANT & EQUIPMENT,FUSION,INSIGHT DIRECT LTD,5100317310,1065.65,,
United Kingdom Atomic Energy Authority,United Kingdom Atomic Energy Authority,25/02/2015,PLANT & EQUIPMENT,SUPPORT SERVICES,INSIGHT DIRECT LTD,5100317241,24.99,,
United Kingdom Atomic Energy Authority,United Kingdom Atomic Energy Authority,09/03/2015,PLANT & EQUIPMENT,SUPPORT SERVICES,INSIGHT DIRECT LTD,5100318086,218.98,,
United Kingdom Atomic Energy Authority,United Kingdom Atomic Energy Authority,09/03/2015,TRAINING COURSE FEES,FUSION,INSTITUTE OF MECHANICAL ENGINEERS,5100316904,998,,
United Kingdom Atomic Energy Authority,United Kingdom Atomic Energy Authority,09/03/2015,TRAINING COURSE FEES,FUSION,INSTITUTE OF MECHANICAL ENGINEERS,5100317753,-998,,
United Kingdom Atomic Energy Authority,United Kingdom Atomic Energy Authority,18/03/2015,TRAINING COURSE FEES,FUSION,INSTITUTE OF MECHANICAL ENGINEERS,5100318953,150,,
United Kingdom Atomic Energy Authority,United Kingdom Atomic Energy Authority,18/03/2015,TRAINING COURSE FEES,FUSION,INSTITUTE OF MECHANICAL ENGINEERS,5100316588,150,,
United Kingdom Atomic Energy Authority,United Kingdom Atomic Energy Authority,09/03/2015,TRAINING COURSE FEES,FUSION,INSTITUTE OF MECHANICAL ENGINEERS,5100317654,150,,
United Kingdom Atomic Energy Authority,United Kingdom Atomic Energy Authority,19/03/2015,CONFERENCES/MEETINGS,FUSION,Institute of Physics - Conferences,1900060799,285,CUL14185,
United Kingdom Atomic Energy Authority,United Kingdom Atomic Energy Authority,25/02/2015,PLANT & EQUIPMENT,FUSION,INSTRUMENT TECHNOLOGY LTD,5100317390,230,,
